Workbook

Sheet Main
B10: 2022-09-13
B12: Sheet No. | C12: Template Name | D12: Summary
B13: 1 | C13: Future Intra | D13: For Intraday trading in F&O segment
B14: 2 | C14: Cash Intra | D14: For Intraday trading in cash market segment
B15: 3 | C15: Mid-cap Intra | D15: For Intraday trading in Mid-cap stocks
B16: 4 | C16: Bulk Deals | D16: Reveals Bulk Deals carried on NSE & BSE
B17: 5 | C17: Call Tracker
K27: `

Sheet Future Intra
M5: Back to Main Page
A6: FOR INTRA DAY TRADING | L6: =Main!B10 -> 2022-09-13
A9: Sr.no | B9: Sector | C9: Scrip | D9: Expiry Date | E9: CLOSE RATE | F9: Pivot Point | G9: Supports | J9: Resistances
E10: Point | F10: Point | G10: S1 | H10: S2 | I10: S3 | J10: R1 | K10: R2 | L10: R3 | M10: HIGH | N10: LOW | O10: OI | P10: % Change in OI
A11: 1 | B11: Index | C11: NIFTY | D11: 2022-09-29 | E11: 17964.35 | F11: 17953.62 | G11: 17882.83 | H11: 17801.32 | I11: 17730.53 | J11: 18035.13 | K11: 18105.92 | L11: 18187.43 | M11: 18024.4 | N11: 17872.1 | O11: 14462500 | P11: 2.49%
A12: 2 | B12: Index | C12: BANKNIFTY | D12: 2022-09-29 | E12: 40673.70 | F12: 40634.33 | G12: 40498.67 | H12: 40323.63 | I12: 40187.97 | J12: 40809.37 | K12: 40945.03 | L12: 41120.07 | M12: 40770 | N12: 40459.3 | O12: 2503050 | P12: 0.96%
A13: 3 | B13: Index | C13: FINNIFTY | D13: 2022-09-27 | E13: 18493.70 | F13: 18487.52 | G13: 18416.18 | H13: 18338.67 | I13: 18267.33 | J13: 18565.03 | K13: 18636.37 | L13: 18713.88 | M13: 18558.85 | N13: 18410 | O13: 4720 | P13: -0.84%
A14: 4 | B14: Index | C14: MIDCPNIFTY | D14: 2022-09-27 | E14: 7540.00 | F14: 2513.33 | G14: 5026.67 | H14: 2513.33 | I14: 5026.67 | J14: 5026.67 | K14: 2513.33 | L14: 5026.67 | M14: 0 | N14: 0 | O14: 525 | P14: 0.00%
A15: 5 | B15: Chemical | C15: AARTIIND | D15: 2022-09-29 | E15: 892.10 | F15: 884.40 | G15: 870.60 | H15: 849.10 | I15: 835.30 | J15: 905.90 | K15: 919.70 | L15: 941.20 | M15: 898.2 | N15: 862.9 | O15: 3220650 | P15: 13.75%
A16: 6 | B16: Capital_Goods | C16: ABB | D16: 2022-09-29 | E16: 3348.70 | F16: 3346.92 | G16: 3326.83 | H16: 3304.97 | I16: 3284.88 | J16: 3368.78 | K16: 3388.87 | L16: 3410.73 | M16: 3367 | N16: 3325.05 | O16: 1202250 | P16: 1.78%
A17: 7 | B17: Pharma | C17: ABBOTINDIA | D17: 2022-09-29 | E17: 18258.95 | F17: 18304.98 | G17: 18174.97 | H17: 18090.98 | I17: 17960.97 | J17: 18388.97 | K17: 18518.98 | L17: 18602.97 | M17: 18435 | N17: 18221 | O17: 54320 | P17: 5.76%
A18: 8 | B18: Others | C18: ABCAPITAL | D18: 2022-09-29 | E18: 119.35 | F18: 118.43 | G18: 116.47 | H18: 113.58 | I18: 111.62 | J18: 121.32 | K18: 123.28 | L18: 126.17 | M18: 120.4 | N18: 115.55 | O18: 26168400 | P18: 6.83%
A19: 9 | B19: Textile | C19: ABFRL | D19: 2022-09-29 | E19: 325.90 | F19: 326.83 | G19: 323.72 | H19: 321.53 | I19: 318.42 | J19: 329.02 | K19: 332.13 | L19: 334.32 | M19: 329.95 | N19: 324.65 | O19: 10301200 | P19: -1.69%
A20: 10 | B20: Cement | C20: ACC | D20: 2022-09-29 | E20: 2516.05 | F20: 2453.67 | G20: 2382.33 | H20: 2248.62 | I20: 2177.28 | J20: 2587.38 | K20: 2658.72 | L20: 2792.43 | M20: 2525 | N20: 2319.95 | O20: 4237750 | P20: 9.54%
A21: 11 | B21: Others | C21: ADANIENT | D21: 2022-09-29 | E21: 3481.45 | F21: 3486.18 | G21: 3465.67 | H21: 3449.88 | I21: 3429.37 | J21: 3501.97 | K21: 3522.48 | L21: 3538.27 | M21: 3506.7 | N21: 3470.4 | O21: 17167500 | P21: -0.73%
A22: 12 | B22: Others | C22: ADANIPORTS | D22: 2022-09-29 | E22: 941.50 | F22: 902.03 | G22: 859.37 | H22: 777.23 | I22: 734.57 | J22: 984.17 | K22: 1026.83 | L22: 1108.97 | M22: 944.7 | N22: 819.9 | O22: 73406250 | P22: -1.41%
A23: 13 | B23: Pharma | C23: ALKEM | D23: 2022-09-29 | E23: 3214.95 | F23: 3211.43 | G23: 3187.87 | H23: 3160.78 | I23: 3137.22 | J23: 3238.52 | K23: 3262.08 | L23: 3289.17 | M23: 3235 | N23: 3184.35 | O23: 451000 | P23: -1.44%
A24: 14 | B24: Automobile | C24: AMARAJABAT | D24: 2022-09-29 | E24: 548.60 | F24: 544.47 | G24: 539.33 | H24: 530.07 | I24: 524.93 | J24: 553.73 | K24: 558.87 | L24: 568.13 | M24: 549.6 | N24: 535.2 | O24: 6726000 | P24: 0.21%
A25: 15 | B25: Cement | C25: AMBUJACEM | D25: 2022-09-29 | E25: 476.85 | F25: 466.30 | G25: 451.70 | H25: 426.55 | I25: 411.95 | J25: 491.45 | K25: 506.05 | L25: 531.20 | M25: 480.9 | N25: 441.15 | O25: 76104000 | P25: -6.42%
A26: 16 | B26: Others | C26: APOLLOHOSP | D26: 2022-09-29 | E26: 4503.00 | F26: 4494.43 | G26: 4468.57 | H26: 4434.13 | I26: 4408.27 | J26: 4528.87 | K26: 4554.73 | L26: 4589.17 | M26: 4520.3 | N26: 4460 | O26: 1664375 | P26: -0.67%
A27: 17 | B27: Automobile | C27: APOLLOTYRE | D27: 2022-09-29 | E27: 285.45 | F27: 282.07 | G27: 278.23 | H27: 271.02 | I27: 267.18 | J27: 289.28 | K27: 293.12 | L27: 300.33 | M27: 285.9 | N27: 274.85 | O27: 13184500 | P27: 10.40%
A28: 18 | B28: Automobile | C28: ASHOKLEY | D28: 2022-09-29 | E28: 165.95 | F28: 166.45 | G28: 165.05 | H28: 164.15 | I28: 162.75 | J28: 167.35 | K28: 168.75 | L28: 169.65 | M28: 167.85 | N28: 165.55 | O28: 49755000 | P28: 0.39%
A29: 19 | B29: FMCG | C29: ASIANPAINT | D29: 2022-09-29 | E29: 3450.05 | F29: 3453.50 | G29: 3435.25 | H29: 3420.45 | I29: 3402.20 | J29: 3468.30 | K29: 3486.55 | L29: 3501.35 | M29: 3471.75 | N29: 3438.7 | O29: 5540400 | P29: 0.28%
A30: 20 | B30: Others | C30: ASTRAL | D30: 2022-09-29 | E30: 2546.55 | F30: 2542.90 | G30: 2505.85 | H30: 2465.15 | I30: 2428.10 | J30: 2583.60 | K30: 2620.65 | L30: 2661.35 | M30: 2579.95 | N30: 2502.2 | O30: 1620575 | P30: 9.58%
A31: 21 | B31: Others | C31: ATUL | D31: 2022-09-29 | E31: 9669.70 | F31: 9550.27 | G31: 9360.53 | H31: 9051.37 | I31: 8861.63 | J31: 9859.43 | K31: 10049.17 | L31: 10358.33 | M31: 9740 | N31: 9241.1 | O31: 208050 | P31: 29.51%
A32: 22 | B32: Banking | C32: AUBANK | D32: 2022-09-29 | E32: 662.75 | F32: 660.23 | G32: 656.57 | H32: 650.38 | I32: 646.72 | J32: 666.42 | K32: 670.08 | L32: 676.27 | M32: 663.9 | N32: 654.05 | O32: 6626000 | P32: -3.54%
A33: 23 | B33: Pharma | C33: AUROPHARMA | D33: 2022-09-29 | E33: 553.85 | F33: 551.48 | G33: 546.27 | H33: 538.68 | I33: 533.47 | J33: 559.07 | K33: 564.28 | L33: 571.87 | M33: 556.7 | N33: 543.9 | O33: 13335000 | P33: 0.05%
A34: 24 | B34: Banking | C34: AXISBANK | D34: 2022-09-29 | E34: 801.40 | F34: 798.37 | G34: 790.78 | H34: 780.17 | I34: 772.58 | J34: 808.98 | K34: 816.57 | L34: 827.18 | M34: 805.95 | N34: 787.75 | O34: 43326000 | P34: -3.78%
A35: 25 | B35: Automobile | C35: BAJAJ-AUTO | D35: 2022-09-29 | E35: 3866.75 | F35: 3852.07 | G35: 3827.73 | H35: 3788.72 | I35: 3764.38 | J35: 3891.08 | K35: 3915.42 | L35: 3954.43 | M35: 3876.4 | N35: 3813.05 | O35: 3136750 | P35: 0.20%
A36: 26 | B36: Finance | C36: BAJAJFINSV | D36: 2022-09-29 | E36: 17214.75 | F36: 17260.52 | G36: 17084.18 | H36: 16953.62 | I36: 16777.28 | J36: 17391.08 | K36: 17567.42 | L36: 17697.98 | M36: 17436.85 | N36: 17129.95 | O36: 976600 | P36: 7.68%
A37: 27 | B37: Finance | C37: BAJFINANCE | D37: 2022-09-29 | E37: 7328.70 | F37: 7300.17 | G37: 7241.83 | H37: 7154.97 | I37: 7096.63 | J37: 7387.03 | K37: 7445.37 | L37: 7532.23 | M37: 7358.5 | N37: 7213.3 | O37: 4606875 | P37: -1.76%
A38: 28 | B38: Automobile | C38: BALKRISIND | D38: 2022-09-29 | E38: 2006.40 | F38: 2017.82 | G38: 1988.58 | H38: 1970.77 | I38: 1941.53 | J38: 2035.63 | K38: 2064.87 | L38: 2082.68 | M38: 2047.05 | N38: 2000 | O38: 2947500 | P38: 4.18%
A39: 29 | B39: Others | C39: BALRAMCHIN | D39: 2022-09-29 | E39: 378.70 | F39: 379.03 | G39: 376.12 | H39: 373.53 | I39: 370.62 | J39: 381.62 | K39: 384.53 | L39: 387.12 | M39: 381.95 | N39: 376.45 | O39: 7686400 | P39: -0.33%
A40: 30 | B40: Banking | C40: BANDHANBNK | D40: 2022-09-29 | E40: 290.25 | F40: 292.10 | G40: 287.60 | H40: 284.95 | I40: 280.45 | J40: 294.75 | K40: 299.25 | L40: 301.90 | M40: 296.6 | N40: 289.45 | O40: 29869200 | P40: 1.92%
A41: 31 | B41: Banking | C41: BANKBARODA | D41: 2022-09-29 | E41: 139.60 | F41: 139.62 | G41: 138.83 | H41: 138.07 | I41: 137.28 | J41: 140.38 | K41: 141.17 | L41: 141.93 | M41: 140.4 | N41: 138.85 | O41: 91458900 | P41: -1.04%
A42: 32 | B42: FMCG | C42: BATAINDIA | D42: 2022-09-29 | E42: 1923.45 | F42: 1923.17 | G42: 1910.58 | H42: 1897.72 | I42: 1885.13 | J42: 1936.03 | K42: 1948.62 | L42: 1961.48 | M42: 1935.75 | N42: 1910.3 | O42: 2161225 | P42: 4.41%
A43: 33 | B43: Capital_Goods | C43: BEL | D43: 2022-09-29 | E43: 338.85 | F43: 335.07 | G43: 330.43 | H43: 322.02 | I43: 317.38 | J43: 343.48 | K43: 348.12 | L43: 356.53 | M43: 339.7 | N43: 326.65 | O43: 25118000 | P43: -2.56%
A44: 34 | B44: FMCG | C44: BERGEPAINT | D44: 2022-09-29 | E44: 667.40 | F44: 669.20 | G44: 664.40 | H44: 661.40 | I44: 656.60 | J44: 672.20 | K44: 677.00 | L44: 680.00 | M44: 674 | N44: 666.2 | O44: 6898100 | P44: 0.59%
A45: 35 | B45: Automobile | C45: BHARATFORG | D45: 2022-09-29 | E45: 786.45 | F45: 790.20 | G45: 781.50 | H45: 776.55 | I45: 767.85 | J45: 795.15 | K45: 803.85 | L45: 808.80 | M45: 798.9 | N45: 785.25 | O45: 7850000 | P45: 1.26%
A46: 36 | B46: Telecom | C46: BHARTIARTL | D46: 2022-09-29 | E46: 765.95 | F46: 765.93 | G46: 763.12 | H46: 760.28 | I46: 757.47 | J46: 768.77 | K46: 771.58 | L46: 774.42 | M46: 768.75 | N46: 763.1 | O46: 47779300 | P46: 0.15%
A47: 37 | B47: Capital_Goods | C47: BHEL | D47: 2022-09-29 | E47: 63.70 | F47: 63.80 | G47: 63.00 | H47: 62.30 | I47: 61.50 | J47: 64.50 | K47: 65.30 | L47: 66.00 | M47: 64.6 | N47: 63.1 | O47: 119763000 | P47: 0.42%
A48: 38 | B48: Pharma | C48: BIOCON | D48: 2022-09-29 | E48: 305.20 | F48: 305.27 | G48: 303.58 | H48: 301.97 | I48: 300.28 | J48: 306.88 | K48: 308.57 | L48: 310.18 | M48: 306.95 | N48: 303.65 | O48: 19761600 | P48: -0.46%
A49: 39 | B49: Automobile | C49: BOSCHLTD | D49: 2022-09-29 | E49: 17345.00 | F49: 17355.18 | G49: 17235.37 | H49: 17125.73 | I49: 17005.92 | J49: 17464.82 | K49: 17584.63 | L49: 17694.27 | M49: 17475 | N49: 17245.55 | O49: 198900 | P49: 1.20%
A50: 40 | B50: Oil_Gas | C50: BPCL | D50: 2022-09-29 | E50: 344.35 | F50: 343.62 | G50: 340.28 | H50: 336.22 | I50: 332.88 | J50: 347.68 | K50: 351.02 | L50: 355.08 | M50: 346.95 | N50: 339.55 | O50: 14513400 | P50: 1.09%
A51: 41 | B51: FMCG | C51: BRITANNIA | D51: 2022-09-29 | E51: 3690.10 | F51: 3686.08 | G51: 3664.87 | H51: 3639.63 | I51: 3618.42 | J51: 3711.32 | K51: 3732.53 | L51: 3757.77 | M51: 3707.3 | N51: 3660.85 | O51: 1563600 | P51: -1.23%
A52: 42 | B52: Technology | C52: BSOFT | D52: 2022-09-29 | E52: 339.15 | F52: 337.80 | G52: 331.90 | H52: 324.65 | I52: 318.75 | J52: 345.05 | K52: 350.95 | L52: 358.20 | M52: 343.7 | N52: 330.55 | O52: 9048000 | P52: 0.74%
A53: 43 | B53: Banking | C53: CANBK | D53: 2022-09-29 | E53: 248.60 | F53: 247.85 | G53: 245.05 | H53: 241.50 | I53: 238.70 | J53: 251.40 | K53: 254.20 | L53: 257.75 | M53: 250.65 | N53: 244.3 | O53: 43383600 | P53: 2.84%
A54: 44 | B54: Finance | C54: CANFINHOME | D54: 2022-09-29 | E54: 660.05 | F54: 656.52 | G54: 651.03 | H54: 642.02 | I54: 636.53 | J54: 665.53 | K54: 671.02 | L54: 680.03 | M54: 662 | N54: 647.5 | O54: 2073825 | P54: 2.01%
A55: 45 | B55: Others | C55: CHAMBLFERT | D55: 2022-09-29 | E55: 365.40 | F55: 361.85 | G55: 357.20 | H55: 349.00 | I55: 344.35 | J55: 370.05 | K55: 374.70 | L55: 382.90 | M55: 366.5 | N55: 353.65 | O55: 6646500 | P55: -2.01%
A56: 46 | B56: Finance | C56: CHOLAFIN | D56: 2022-09-29 | E56: 802.75 | F56: 799.92 | G56: 792.43 | H56: 782.12 | I56: 774.63 | J56: 810.23 | K56: 817.72 | L56: 828.03 | M56: 807.4 | N56: 789.6 | O56: 6882500 | P56: -2.08%
A57: 47 | B57: Pharma | C57: CIPLA | D57: 2022-09-29 | E57: 1063.60 | F57: 1063.33 | G57: 1058.77 | H57: 1053.93 | I57: 1049.37 | J57: 1068.17 | K57: 1072.73 | L57: 1077.57 | M57: 1067.9 | N57: 1058.5 | O57: 7708350 | P57: -0.04%
A58: 48 | B58: Others | C58: COALINDIA | D58: 2022-09-29 | E58: 231.55 | F58: 232.95 | G58: 226.60 | H58: 221.65 | I58: 215.30 | J58: 237.90 | K58: 244.25 | L58: 249.20 | M58: 239.3 | N58: 228 | O58: 37396800 | P58: 13.64%
A59: 49 | B59: Technology | C59: COFORGE | D59: 2022-09-29 | E59: 3627.00 | F59: 3623.47 | G59: 3581.48 | H59: 3535.97 | I59: 3493.98 | J59: 3668.98 | K59: 3710.97 | L59: 3756.48 | M59: 3665.45 | N59: 3577.95 | O59: 844800 | P59: -5.39%
A60: 50 | B60: FMCG | C60: COLPAL | D60: 2022-09-29 | E60: 1640.00 | F60: 1642.57 | G60: 1634.63 | H60: 1629.27 | I60: 1621.33 | J60: 1647.93 | K60: 1655.87 | L60: 1661.23 | M60: 1650.5 | N60: 1637.2 | O60: 2752050 | P60: -1.64%
A61: 51 | B61: Others | C61: CONCOR | D61: 2022-09-29 | E61: 765.95 | F61: 763.78 | G61: 756.32 | H61: 746.68 | I61: 739.22 | J61: 773.42 | K61: 780.88 | L61: 790.52 | M61: 771.25 | N61: 754.15 | O61: 7289000 | P61: 3.40%
A62: 52 | B62: Others | C62: COROMANDEL | D62: 2022-09-29 | E62: 1052.50 | F62: 1052.08 | G62: 1043.12 | H62: 1033.73 | I62: 1024.77 | J62: 1061.47 | K62: 1070.43 | L62: 1079.82 | M62: 1061.05 | N62: 1042.7 | O62: 1427300 | P62: 5.10%
A63: 53 | B63: Capital_Goods | C63: CROMPTON | D63: 2022-09-29 | E63: 421.20 | F63: 420.63 | G63: 418.07 | H63: 414.93 | I63: 412.37 | J63: 423.77 | K63: 426.33 | L63: 429.47 | M63: 423.2 | N63: 417.5 | O63: 3966000 | P63: -3.33%
A64: 54 | B64: Banking | C64: CUB | D64: 2022-09-29 | E64: 181.95 | F64: 180.78 | G64: 178.87 | H64: 175.78 | I64: 173.87 | J64: 183.87 | K64: 185.78 | L64: 188.87 | M64: 182.7 | N64: 177.7 | O64: 8965000 | P64: -4.01%
A65: 55 | B65: Capital_Goods | C65: CUMMINSIND | D65: 2022-09-29 | E65: 1227.35 | F65: 1228.37 | G65: 1219.78 | H65: 1212.22 | I65: 1203.63 | J65: 1235.93 | K65: 1244.52 | L65: 1252.08 | M65: 1236.95 | N65: 1220.8 | O65: 3811800 | P65: 2.50%
A66: 56 | B66: FMCG | C66: DABUR | D66: 2022-09-29 | E66: 572.55 | F66: 574.63 | G66: 569.02 | H66: 565.48 | I66: 559.87 | J66: 578.17 | K66: 583.78 | L66: 587.32 | M66: 580.25 | N66: 571.1 | O66: 9725000 | P66: 2.01%
A67: 57 | B67: Cement | C67: DALBHARAT | D67: 2022-09-29 | E67: 1702.90 | F67: 1688.30 | G67: 1669.10 | H67: 1635.30 | I67: 1616.10 | J67: 1722.10 | K67: 1741.30 | L67: 1775.10 | M67: 1707.5 | N67: 1654.5 | O67: 1567500 | P67: 1.13%
A68: 58 | B68: Chemical | C68: DEEPAKNTR | D68: 2022-09-29 | E68: 2189.85 | F68: 2148.88 | G68: 2099.87 | H68: 2009.88 | I68: 1960.87 | J68: 2238.87 | K68: 2287.88 | L68: 2377.87 | M68: 2197.9 | N68: 2058.9 | O68: 2096250 | P68: 1.54%
A69: 59 | B69: Others | C69: DELTACORP | D69: 2022-09-29 | E69: 210.20 | F69: 210.10 | G69: 209.20 | H69: 208.20 | I69: 207.30 | J69: 211.10 | K69: 212.00 | L69: 213.00 | M69: 211 | N69: 209.1 | O69: 20108900 | P69: -0.66%
A70: 60 | B70: Pharma | C70: DIVISLAB | D70: 2022-09-29 | E70: 3687.25 | F70: 3666.08 | G70: 3633.17 | H70: 3579.08 | I70: 3546.17 | J70: 3720.17 | K70: 3753.08 | L70: 3807.17 | M70: 3699 | N70: 3612 | O70: 2990250 | P70: -5.62%
A71: 61 | B71: Others | C71: DIXON | D71: 2022-09-29 | E71: 4481.70 | F71: 4506.65 | G71: 4433.45 | H71: 4385.20 | I71: 4312.00 | J71: 4554.90 | K71: 4628.10 | L71: 4676.35 | M71: 4579.85 | N71: 4458.4 | O71: 618500 | P71: 4.92%
A72: 62 | B72: Realty | C72: DLF | D72: 2022-09-29 | E72: 411.90 | F72: 407.55 | G72: 401.65 | H72: 391.40 | I72: 385.50 | J72: 417.80 | K72: 423.70 | L72: 433.95 | M72: 413.45 | N72: 397.3 | O72: 42089850 | P72: 7.51%
A73: 63 | B73: Pharma | C73: DRREDDY | D73: 2022-09-29 | E73: 4270.55 | F73: 4273.45 | G73: 4249.60 | H73: 4228.65 | I73: 4204.80 | J73: 4294.40 | K73: 4318.25 | L73: 4339.20 | M73: 4297.3 | N73: 4252.5 | O73: 2092500 | P73: -0.45%
A74: 64 | B74: Automobile | C74: EICHERMOT | D74: 2022-09-29 | E74: 3522.30 | F74: 3507.05 | G74: 3474.20 | H74: 3426.10 | I74: 3393.25 | J74: 3555.15 | K74: 3588.00 | L74: 3636.10 | M74: 3539.9 | N74: 3458.95 | O74: 3390100 | P74: 3.11%
A75: 65 | B75: Automobile | C75: ESCORTS | D75: 2022-09-29 | E75: 1991.50 | F75: 1998.50 | G75: 1972.65 | H75: 1953.80 | I75: 1927.95 | J75: 2017.35 | K75: 2043.20 | L75: 2062.05 | M75: 2024.35 | N75: 1979.65 | O75: 1805100 | P75: 1.67%
A76: 66 | B76: Automobile | C76: EXIDEIND | D76: 2022-09-29 | E76: 175.35 | F76: 174.78 | G76: 172.42 | H76: 169.48 | I76: 167.12 | J76: 177.72 | K76: 180.08 | L76: 183.02 | M76: 177.15 | N76: 171.85 | O76: 28620000 | P76: 2.87%
A77: 67 | B77: Banking | C77: FEDERALBNK | D77: 2022-09-29 | E77: 120.50 | F77: 120.40 | G77: 119.60 | H77: 118.70 | I77: 117.90 | J77: 121.30 | K77: 122.10 | L77: 123.00 | M77: 121.2 | N77: 119.5 | O77: 97960000 | P77: 4.19%
A78: 68 | B78: Technology | C78: FSL | D78: 2022-09-29 | E78: 117.90 | F78: 117.92 | G78: 117.03 | H78: 116.17 | I78: 115.28 | J78: 118.78 | K78: 119.67 | L78: 120.53 | M78: 118.8 | N78: 117.05 | O78: 19146400 | P78: 0.52%
A79: 69 | B79: Oil_Gas | C79: GAIL | D79: 2022-09-29 | E79: 93.05 | F79: 93.00 | G79: 92.65 | H79: 92.25 | I79: 91.90 | J79: 93.40 | K79: 93.75 | L79: 94.15 | M79: 93.35 | N79: 92.6 | O79: 59346900 | P79: 1.41%
A80: 70 | B80: Pharma | C80: GLENMARK | D80: 2022-09-29 | E80: 392.00 | F80: 391.67 | G80: 388.58 | H80: 385.17 | I80: 382.08 | J80: 395.08 | K80: 398.17 | L80: 401.58 | M80: 394.75 | N80: 388.25 | O80: 7969500 | P80: 0.90%
A81: 71 | B81: Infrastructure | C81: GMRINFRA | D81: 2022-09-29 | E81: 39.55 | F81: 39.63 | G81: 39.17 | H81: 38.78 | I81: 38.32 | J81: 40.02 | K81: 40.48 | L81: 40.87 | M81: 40.1 | N81: 39.25 | O81: 134932500 | P81: 1.47%
A82: 72 | B82: Others | C82: GNFC | D82: 2022-09-29 | E82: 774.80 | F82: 767.38 | G82: 755.37 | H82: 735.93 | I82: 723.92 | J82: 786.82 | K82: 798.83 | L82: 818.27 | M82: 779.4 | N82: 747.95 | O82: 6207500 | P82: -5.84%
A83: 73 | B83: FMCG | C83: GODREJCP | D83: 2022-09-29 | E83: 950.90 | F83: 951.03 | G83: 943.87 | H83: 936.83 | I83: 929.67 | J83: 958.07 | K83: 965.23 | L83: 972.27 | M83: 958.2 | N83: 944 | O83: 6335000 | P83: 3.19%
A84: 74 | B84: Realty | C84: GODREJPROP | D84: 2022-09-29 | E84: 1467.70 | F84: 1455.48 | G84: 1422.12 | H84: 1376.53 | I84: 1343.17 | J84: 1501.07 | K84: 1534.43 | L84: 1580.02 | M84: 1488.85 | N84: 1409.9 | O84: 4048850 | P84: -0.12%
A85: 75 | B85: Pharma | C85: GRANULES | D85: 2022-09-29 | E85: 308.70 | F85: 309.40 | G85: 306.10 | H85: 303.50 | I85: 300.20 | J85: 312.00 | K85: 315.30 | L85: 317.90 | M85: 312.7 | N85: 306.8 | O85: 9818000 | P85: -0.43%
A86: 76 | B86: Cement | C86: GRASIM | D86: 2022-09-29 | E86: 1774.80 | F86: 1767.82 | G86: 1757.28 | H86: 1739.77 | I86: 1729.23 | J86: 1785.33 | K86: 1795.87 | L86: 1813.38 | M86: 1778.35 | N86: 1750.3 | O86: 8146250 | P86: -0.72%
A87: 77 | B87: Oil_Gas | C87: GSPL | D87: 2022-09-29 | E87: 254.10 | F87: 254.73 | G87: 251.07 | H87: 248.03 | I87: 244.37 | J87: 257.77 | K87: 261.43 | L87: 264.47 | M87: 258.4 | N87: 251.7 | O87: 5142500 | P87: 4.84%
A88: 78 | B88: Oil_Gas | C88: GUJGASLTD | D88: 2022-09-29 | E88: 511.30 | F88: 509.93 | G88: 503.52 | H88: 495.73 | I88: 489.32 | J88: 517.72 | K88: 524.13 | L88: 531.92 | M88: 516.35 | N88: 502.15 | O88: 5045000 | P88: -1.34%
A89: 79 | B89: Others | C89: HAL | D89: 2022-09-29 | E89: 2628.25 | F89: 2579.65 | G89: 2506.30 | H89: 2384.35 | I89: 2311.00 | J89: 2701.60 | K89: 2774.95 | L89: 2896.90 | M89: 2653 | N89: 2457.7 | O89: 4192825 | P89: 13.75%
A90: 80 | B90: Capital_Goods | C90: HAVELLS | D90: 2022-09-29 | E90: 1387.05 | F90: 1377.37 | G90: 1362.88 | H90: 1338.72 | I90: 1324.23 | J90: 1401.53 | K90: 1416.02 | L90: 1440.18 | M90: 1391.85 | N90: 1353.2 | O90: 4554500 | P90: -0.30%
A91: 81 | B91: Technology | C91: HCLTECH | D91: 2022-09-29 | E91: 958.30 | F91: 960.15 | G91: 954.20 | H91: 950.10 | I91: 944.15 | J91: 964.25 | K91: 970.20 | L91: 974.30 | M91: 966.1 | N91: 956.05 | O91: 19966800 | P91: -1.96%
A92: 82 | B92: Finance | C92: HDFC | D92: 2022-09-29 | E92: 2431.70 | F92: 2436.38 | G92: 2423.27 | H92: 2414.83 | I92: 2401.72 | J92: 2444.82 | K92: 2457.93 | L92: 2466.37 | M92: 2449.5 | N92: 2427.95 | O92: 17720400 | P92: 1.02%
A93: 83 | B93: Finance | C93: HDFCAMC | D93: 2022-09-29 | E93: 2046.10 | F93: 2044.33 | G93: 2029.27 | H93: 2012.43 | I93: 1997.37 | J93: 2061.17 | K93: 2076.23 | L93: 2093.07 | M93: 2059.4 | N93: 2027.5 | O93: 2475600 | P93: -1.57%
A94: 84 | B94: Banking | C94: HDFCBANK | D94: 2022-09-29 | E94: 1498.40 | F94: 1499.98 | G94: 1493.97 | H94: 1489.53 | I94: 1483.52 | J94: 1504.42 | K94: 1510.43 | L94: 1514.87 | M94: 1506 | N94: 1495.55 | O94: 55815100 | P94: -0.01%
A95: 85 | B95: Finance | C95: HDFCLIFE | D95: 2022-09-29 | E95: 582.40 | F95: 581.28 | G95: 575.37 | H95: 568.33 | I95: 562.42 | J95: 588.32 | K95: 594.23 | L95: 601.27 | M95: 587.2 | N95: 574.25 | O95: 22064900 | P95: 1.12%
A96: 86 | B96: Automobile | C96: HEROMOTOCO | D96: 2022-09-29 | E96: 2869.65 | F96: 2864.37 | G96: 2847.08 | H96: 2824.52 | I96: 2807.23 | J96: 2886.93 | K96: 2904.22 | L96: 2926.78 | M96: 2881.65 | N96: 2841.8 | O96: 2735400 | P96: -1.67%
A97: 87 | B97: Metals | C97: HINDALCO | D97: 2022-09-29 | E97: 433.45 | F97: 432.93 | G97: 430.92 | H97: 428.38 | I97: 426.37 | J97: 435.47 | K97: 437.48 | L97: 440.02 | M97: 434.95 | N97: 430.4 | O97: 25995650 | P97: -1.60%
A98: 88 | B98: Metals | C98: HINDCOPPER | D98: 2022-09-29 | E98: 119.65 | F98: 119.68 | G98: 118.97 | H98: 118.28 | I98: 117.57 | J98: 120.37 | K98: 121.08 | L98: 121.77 | M98: 120.4 | N98: 119 | O98: 19870300 | P98: -2.26%
A99: 89 | B99: Oil_Gas | C99: HINDPETRO | D99: 2022-09-29 | E99: 251.30 | F99: 250.40 | G99: 246.60 | H99: 241.90 | I99: 238.10 | J99: 255.10 | K99: 258.90 | L99: 263.60 | M99: 254.2 | N99: 245.7 | O99: 19404900 | P99: -3.39%
A100: 90 | B100: FMCG | C100: HINDUNILVR | D100: 2022-09-29 | E100: 2592.90 | F100: 2596.07 | G100: 2581.88 | H100: 2570.87 | I100: 2556.68 | J100: 2607.08 | K100: 2621.27 | L100: 2632.28 | M100: 2610.25 | N100: 2585.05 | O100: 8950800 | P100: -2.35%
A101: 91 | B101: Others | C101: HONAUT | D101: 2022-09-29 | E101: 41740.50 | F101: 41999.10 | G101: 41398.20 | H101: 41055.90 | I101: 40455.00 | J101: 42341.40 | K101: 42942.30 | L101: 43284.60 | M101: 42600 | N101: 41656.8 | O101: 11970 | P101: 2.05%
A102: 92 | B102: Finance | C102: IBULHSGFIN | D102: 2022-09-29 | E102: 135.20 | F102: 136.72 | G102: 132.48 | H102: 129.77 | I102: 125.53 | J102: 139.43 | K102: 143.67 | L102: 146.38 | M102: 140.95 | N102: 134 | O102: 50160000 | P102: 14.90%
A103: 93 | B103: Banking | C103: ICICIBANK | D103: 2022-09-29 | E103: 909.95 | F103: 908.20 | G103: 904.70 | H103: 899.45 | I103: 895.95 | J103: 913.45 | K103: 916.95 | L103: 922.20 | M103: 911.7 | N103: 902.95 | O103: 83166875 | P103: 2.50%
A104: 94 | B104: Finance | C104: ICICIGI | D104: 2022-09-29 | E104: 1246.90 | F104: 1241.57 | G104: 1229.13 | H104: 1211.37 | I104: 1198.93 | J104: 1259.33 | K104: 1271.77 | L104: 1289.53 | M104: 1254 | N104: 1223.8 | O104: 4316300 | P104: 3.95%
A105: 95 | B105: Finance | C105: ICICIPRULI | D105: 2022-09-29 | E105: 589.50 | F105: 588.93 | G105: 583.07 | H105: 576.63 | I105: 570.77 | J105: 595.37 | K105: 601.23 | L105: 607.67 | M105: 594.8 | N105: 582.5 | O105: 8556000 | P105: -0.96%
A106: 96 | B106: Telecom | C106: IDEA | D106: 2022-09-29 | E106: 9.70 | F106: 9.72 | G106: 9.63 | H106: 9.57 | I106: 9.48 | J106: 9.78 | K106: 9.87 | L106: 9.93 | M106: 9.8 | N106: 9.65 | O106: 665420000 | P106: -0.39%
A107: 97 | B107: Finance | C107: IDFC | D107: 2022-09-29 | E107: 69.45 | F107: 69.37 | G107: 69.08 | H107: 68.72 | I107: 68.43 | J107: 69.73 | K107: 70.02 | L107: 70.38 | M107: 69.65 | N107: 69 | O107: 127460000 | P107: -0.08%
A108: 98 | B108: Banking | C108: IDFCFIRSTB | D108: 2022-09-29 | E108: 51.15 | F108: 51.05 | G108: 50.75 | H108: 50.35 | I108: 50.05 | J108: 51.45 | K108: 51.75 | L108: 52.15 | M108: 51.35 | N108: 50.65 | O108: 157110000 | P108: 0.06%
A109: 99 | B109: Others | C109: IEX | D109: 2022-09-29 | E109: 164.15 | F109: 163.08 | G109: 161.47 | H109: 158.78 | I109: 157.17 | J109: 165.77 | K109: 167.38 | L109: 170.07 | M109: 164.7 | N109: 160.4 | O109: 62808750 | P109: -2.82%
A110: 100 | B110: Oil_Gas | C110: IGL | D110: 2022-09-29 | E110: 426.90 | F110: 424.83 | G110: 419.32 | H110: 411.73 | I110: 406.22 | J110: 432.42 | K110: 437.93 | L110: 445.52 | M110: 430.35 | N110: 417.25 | O110: 14081375 | P110: -3.03%
A111: 101 | B111: Infrastructure | C111: INDHOTEL | D111: 2022-09-29 | E111: 316.05 | F111: 315.62 | G111: 313.73 | H111: 311.42 | I111: 309.53 | J111: 317.93 | K111: 319.82 | L111: 322.13 | M111: 317.5 | N111: 313.3 | O111: 26171154 | P111: -1.88%
A112: 102 | B112: Cement | C112: INDIACEM | D112: 2022-09-29 | E112: 240.95 | F112: 238.43 | G112: 234.62 | H112: 228.28 | I112: 224.47 | J112: 244.77 | K112: 248.58 | L112: 254.92 | M112: 242.25 | N112: 232.1 | O112: 14926300 | P112: 4.53%
A113: 103 | B113: Others | C113: INDIAMART | D113: 2022-09-29 | E113: 4791.15 | F113: 4802.48 | G113: 4767.02 | H113: 4742.88 | I113: 4707.42 | J113: 4826.62 | K113: 4862.08 | L113: 4886.22 | M113: 4837.95 | N113: 4778.35 | O113: 379200 | P113: -0.39%
A114: 104 | B114: Others | C114: INDIGO | D114: 2022-09-29 | E114: 1932.45 | F114: 1938.35 | G114: 1922.05 | H114: 1911.65 | I114: 1895.35 | J114: 1948.75 | K114: 1965.05 | L114: 1975.45 | M114: 1954.65 | N114: 1927.95 | O114: 4879500 | P114: -1.32%
A115: 105 | B115: Banking | C115: INDUSINDBK | D115: 2022-09-29 | E115: 1140.90 | F115: 1140.22 | G115: 1133.63 | H115: 1126.37 | I115: 1119.78 | J115: 1147.48 | K115: 1154.07 | L115: 1161.33 | M115: 1146.8 | N115: 1132.95 | O115: 23377500 | P115: -1.68%
A116: 106 | B116: Telecom | C116: INDUSTOWER | D116: 2022-09-29 | E116: 206.05 | F116: 206.22 | G116: 204.78 | H116: 203.52 | I116: 202.08 | J116: 207.48 | K116: 208.92 | L116: 210.18 | M116: 207.65 | N116: 204.95 | O116: 15330000 | P116: -0.42%
A117: 107 | B117: Technology | C117: INFY | D117: 2022-09-29 | E117: 1535.90 | F117: 1535.33 | G117: 1523.67 | H117: 1511.43 | I117: 1499.77 | J117: 1547.57 | K117: 1559.23 | L117: 1571.47 | M117: 1547 | N117: 1523.1 | O117: 35500500 | P117: -1.64%
A118: 108 | B118: Technology | C118: INTELLECT | D118: 2022-09-29 | E118: 624.70 | F118: 626.23 | G118: 619.47 | H118: 614.23 | I118: 607.47 | J118: 631.47 | K118: 638.23 | L118: 643.47 | M118: 633 | N118: 621 | O118: 1920750 | P118: 3.52%
A119: 109 | B119: Oil_Gas | C119: IOC | D119: 2022-09-29 | E119: 73.05 | F119: 72.88 | G119: 72.37 | H119: 71.68 | I119: 71.17 | J119: 73.57 | K119: 74.08 | L119: 74.77 | M119: 73.4 | N119: 72.2 | O119: 103486500 | P119: 6.88%
A120: 110 | B120: Pharma | C120: IPCALAB | D120: 2022-09-29 | E120: 879.65 | F120: 879.62 | G120: 872.78 | H120: 865.92 | I120: 859.08 | J120: 886.48 | K120: 893.32 | L120: 900.18 | M120: 886.45 | N120: 872.75 | O120: 1505400 | P120: -2.61%
A121: 111 | B121: Others | C121: IRCTC | D121: 2022-09-29 | E121: 723.60 | F121: 721.40 | G121: 714.45 | H121: 705.30 | I121: 698.35 | J121: 730.55 | K121: 737.50 | L121: 746.65 | M121: 728.35 | N121: 712.25 | O121: 12943875 | P121: -2.37%
A122: 112 | B122: FMCG | C122: ITC | D122: 2022-09-29 | E122: 331.00 | F122: 331.15 | G122: 329.90 | H122: 328.80 | I122: 327.55 | J122: 332.25 | K122: 333.50 | L122: 334.60 | M122: 332.4 | N122: 330.05 | O122: 82646400 | P122: -1.35%
A123: 113 | B123: Metals | C123: JINDALSTEL | D123: 2022-09-29 | E123: 442.65 | F123: 439.63 | G123: 435.02 | H123: 427.38 | I123: 422.77 | J123: 447.27 | K123: 451.88 | L123: 459.52 | M123: 444.25 | N123: 432 | O123: 28427500 | P123: 1.09%
A124: 114 | B124: Cement | C124: JKCEMENT | D124: 2022-09-29 | E124: 2868.20 | F124: 2858.00 | G124: 2820.25 | H124: 2772.30 | I124: 2734.55 | J124: 2905.95 | K124: 2943.70 | L124: 2991.65 | M124: 2895.75 | N124: 2810.05 | O124: 388750 | P124: 16.13%
A125: 115 | B125: Metals | C125: JSWSTEEL | D125: 2022-09-29 | E125: 688.45 | F125: 688.83 | G125: 682.32 | H125: 676.18 | I125: 669.67 | J125: 694.97 | K125: 701.48 | L125: 707.62 | M125: 695.35 | N125: 682.7 | O125: 30199500 | P125: -4.90%
A126: 116 | B126: Others | C126: JUBLFOOD | D126: 2022-09-29 | E126: 628.00 | F126: 621.87 | G126: 612.53 | H126: 597.07 | I126: 587.73 | J126: 637.33 | K126: 646.67 | L126: 662.13 | M126: 631.2 | N126: 606.4 | O126: 11610000 | P126: 3.74%
A127: 117 | B127: Banking | C127: KOTAKBANK | D127: 2022-09-29 | E127: 1934.45 | F127: 1937.20 | G127: 1921.50 | H127: 1908.55 | I127: 1892.85 | J127: 1950.15 | K127: 1965.85 | L127: 1978.80 | M127: 1952.9 | N127: 1924.25 | O127: 19840800 | P127: 0.98%
A128: 118 | B128: Finance | C128: L&TFH | D128: 2022-09-29 | E128: 81.10 | F128: 80.92 | G128: 79.98 | H128: 78.87 | I128: 77.93 | J128: 82.03 | K128: 82.97 | L128: 84.08 | M128: 81.85 | N128: 79.8 | O128: 56890500 | P128: -0.51%
A129: 119 | B129: Others | C129: LALPATHLAB | D129: 2022-09-29 | E129: 2377.45 | F129: 2375.87 | G129: 2356.58 | H129: 2335.72 | I129: 2316.43 | J129: 2396.73 | K129: 2416.02 | L129: 2436.88 | M129: 2395.15 | N129: 2355 | O129: 1498750 | P129: 2.43%
A130: 120 | B130: Pharma | C130: LAURUSLABS | D130: 2022-09-29 | E130: 549.85 | F130: 552.53 | G130: 545.37 | H130: 540.88 | I130: 533.72 | J130: 557.02 | K130: 564.18 | L130: 568.67 | M130: 559.7 | N130: 548.05 | O130: 5840100 | P130: 3.59%
A131: 121 | B131: Finance | C131: LICHSGFIN | D131: 2022-09-29 | E131: 431.70 | F131: 431.95 | G131: 429.50 | H131: 427.30 | I131: 424.85 | J131: 434.15 | K131: 436.60 | L131: 438.80 | M131: 434.4 | N131: 429.75 | O131: 15328000 | P131: 2.30%
A132: 122 | B132: Capital_Goods | C132: LT | D132: 2022-09-29 | E132: 1969.25 | F132: 1966.72 | G132: 1956.83 | H132: 1944.42 | I132: 1934.53 | J132: 1979.13 | K132: 1989.02 | L132: 2001.43 | M132: 1976.6 | N132: 1954.3 | O132: 10135200 | P132: -0.41%
A133: 123 | B133: Technology | C133: LTI | D133: 2022-09-29 | E133: 4820.90 | F133: 4795.43 | G133: 4741.92 | H133: 4662.93 | I133: 4609.42 | J133: 4874.42 | K133: 4927.93 | L133: 5006.92 | M133: 4848.95 | N133: 4716.45 | O133: 1365300 | P133: -4.55%
A134: 124 | B134: Technology | C134: LTTS | D134: 2022-09-29 | E134: 3832.20 | F134: 3820.53 | G134: 3791.62 | H134: 3751.03 | I134: 3722.12 | J134: 3861.12 | K134: 3890.03 | L134: 3930.62 | M134: 3849.45 | N134: 3779.95 | O134: 934800 | P134: -8.21%
A135: 125 | B135: Pharma | C135: LUPIN | D135: 2022-09-29 | E135: 675.20 | F135: 674.28 | G135: 670.97 | H135: 666.73 | I135: 663.42 | J135: 678.52 | K135: 681.83 | L135: 686.07 | M135: 677.6 | N135: 670.05 | O135: 8550150 | P135: -1.50%
A136: 126 | B136: Automobile | C136: M&M | D136: 2022-09-29 | E136: 1304.35 | F136: 1307.77 | G136: 1298.13 | H136: 1291.92 | I136: 1282.28 | J136: 1313.98 | K136: 1323.62 | L136: 1329.83 | M136: 1317.4 | N136: 1301.55 | O136: 11613700 | P136: 1.57%
A137: 127 | B137: Finance | C137: M&MFIN | D137: 2022-09-29 | E137: 226.05 | F137: 225.75 | G137: 224.35 | H137: 222.65 | I137: 221.25 | J137: 227.45 | K137: 228.85 | L137: 230.55 | M137: 227.15 | N137: 224.05 | O137: 21564000 | P137: 1.77%
A138: 128 | B138: Finance | C138: MANAPPURAM | D138: 2022-09-29 | E138: 106.25 | F138: 106.57 | G138: 105.53 | H138: 104.82 | I138: 103.78 | J138: 107.28 | K138: 108.32 | L138: 109.03 | M138: 107.6 | N138: 105.85 | O138: 34128000 | P138: 1.25%
A139: 129 | B139: FMCG | C139: MARICO | D139: 2022-09-29 | E139: 524.90 | F139: 525.03 | G139: 522.67 | H139: 520.43 | I139: 518.07 | J139: 527.27 | K139: 529.63 | L139: 531.87 | M139: 527.4 | N139: 522.8 | O139: 8114400 | P139: -0.91%
A140: 130 | B140: Automobile | C140: MARUTI | D140: 2022-09-29 | E140: 8972.50 | F140: 8992.03 | G140: 8934.02 | H140: 8895.53 | I140: 8837.52 | J140: 9030.52 | K140: 9088.53 | L140: 9127.02 | M140: 9050.05 | N140: 8953.55 | O140: 4026300 | P140: -0.40%
A141: 131 | B141: FMCG | C141: MCDOWELL-N | D141: 2022-09-29 | E141: 843.85 | F141: 834.47 | G141: 821.63 | H141: 799.42 | I141: 786.58 | J141: 856.68 | K141: 869.52 | L141: 891.73 | M141: 847.3 | N141: 812.25 | O141: 17375625 | P141: 3.36%
A142: 132 | B142: Others | C142: MCX | D142: 2022-09-29 | E142: 1260.40 | F142: 1260.65 | G142: 1252.60 | H142: 1244.80 | I142: 1236.75 | J142: 1268.45 | K142: 1276.50 | L142: 1284.30 | M142: 1268.7 | N142: 1252.85 | O142: 3560800 | P142: -0.82%
A143: 133 | B143: Pharma | C143: METROPOLIS | D143: 2022-09-29 | E143: 1502.75 | F143: 1496.33 | G143: 1484.02 | H143: 1465.28 | I143: 1452.97 | J143: 1515.07 | K143: 1527.38 | L143: 1546.12 | M143: 1508.65 | N143: 1477.6 | O143: 1216800 | P143: 0.30%
A144: 134 | B144: Finance | C144: MFSL | D144: 2022-09-29 | E144: 791.90 | F144: 795.35 | G144: 785.70 | H144: 779.50 | I144: 769.85 | J144: 801.55 | K144: 811.20 | L144: 817.40 | M144: 805 | N144: 789.15 | O144: 2007200 | P144: 13.40%
A145: 135 | B145: Oil_Gas | C145: MGL | D145: 2022-09-29 | E145: 893.10 | F145: 890.97 | G145: 885.18 | H145: 877.27 | I145: 871.48 | J145: 898.88 | K145: 904.67 | L145: 912.58 | M145: 896.75 | N145: 883.05 | O145: 2776800 | P145: -0.32%
A146: 136 | B146: Technology | C146: MINDTREE | D146: 2022-09-29 | E146: 3406.05 | F146: 3389.05 | G146: 3353.10 | H146: 3300.15 | I146: 3264.20 | J146: 3442.00 | K146: 3477.95 | L146: 3530.90 | M146: 3425 | N146: 3336.1 | O146: 2911800 | P146: -0.55%
A147: 137 | B147: Automobile | C147: MOTHERSON | D147: 2022-09-29 | E147: 125.95 | F147: 125.57 | G147: 124.83 | H147: 123.72 | I147: 122.98 | J147: 126.68 | K147: 127.42 | L147: 128.53 | M147: 126.3 | N147: 124.45 | O147: 46858500 | P147: -2.86%
A148: 138 | B148: Technology | C148: MPHASIS | D148: 2022-09-29 | E148: 2168.85 | F148: 2167.95 | G148: 2149.90 | H148: 2130.95 | I148: 2112.90 | J148: 2186.90 | K148: 2204.95 | L148: 2223.90 | M148: 2186 | N148: 2149 | O148: 2186275 | P148: -2.69%
A149: 139 | B149: Automobile | C149: MRF | D149: 2022-09-29 | E149: 86240.60 | F149: 85623.60 | G149: 84867.00 | H149: 83493.40 | I149: 82736.80 | J149: 86997.20 | K149: 87753.80 | L149: 89127.40 | M149: 86380.2 | N149: 84250 | O149: 62390 | P149: -2.73%
A150: 140 | B150: Finance | C150: MUTHOOTFIN | D150: 2022-09-29 | E150: 1043.80 | F150: 1047.22 | G150: 1036.98 | H150: 1030.17 | I150: 1019.93 | J150: 1054.03 | K150: 1064.27 | L150: 1071.08 | M150: 1057.45 | N150: 1040.4 | O150: 6058500 | P150: 1.56%
A151: 141 | B151: Metals | C151: NATIONALUM | D151: 2022-09-29 | E151: 80.30 | F151: 80.07 | G151: 79.68 | H151: 79.07 | I151: 78.68 | J151: 80.68 | K151: 81.07 | L151: 81.68 | M151: 80.45 | N151: 79.45 | O151: 63541750 | P151: -0.17%
A152: 142 | B152: Others | C152: NAUKRI | D152: 2022-09-29 | E152: 4328.15 | F152: 4326.58 | G152: 4281.77 | H152: 4235.38 | I152: 4190.57 | J152: 4372.97 | K152: 4417.78 | L152: 4464.17 | M152: 4371.4 | N152: 4280.2 | O152: 1841500 | P152: -0.67%
A153: 143 | B153: Chemical | C153: NAVINFLUOR | D153: 2022-09-29 | E153: 4675.40 | F153: 4580.82 | G153: 4474.63 | H153: 4273.87 | I153: 4167.68 | J153: 4781.58 | K153: 4887.77 | L153: 5088.53 | M153: 4687 | N153: 4380.05 | O153: 630000 | P153: 10.72%
A154: 144 | B154: FMCG | C154: NESTLEIND | D154: 2022-09-29 | E154: 19061.30 | F154: 19092.98 | G154: 18954.37 | H154: 18847.43 | I154: 18708.82 | J154: 19199.92 | K154: 19338.53 | L154: 19445.47 | M154: 19231.6 | N154: 18986.05 | O154: 306920 | P154: -1.13%
A155: 145 | B155: Metals | C155: NMDC | D155: 2022-09-29 | E155: 127.20 | F155: 126.58 | G155: 125.72 | H155: 124.23 | I155: 123.37 | J155: 128.07 | K155: 128.93 | L155: 130.42 | M155: 127.45 | N155: 125.1 | O155: 57067250 | P155: 1.50%
A156: 146 | B156: Power | C156: NTPC | D156: 2022-09-29 | E156: 166.80 | F156: 167.07 | G156: 165.78 | H156: 164.77 | I156: 163.48 | J156: 168.08 | K156: 169.37 | L156: 170.38 | M156: 168.35 | N156: 166.05 | O156: 84901500 | P156: -4.48%
A157: 147 | B157: Realty | C157: OBEROIRLTY | D157: 2022-09-29 | E157: 1063.35 | F157: 1055.22 | G157: 1036.13 | H157: 1008.92 | I157: 989.83 | J157: 1082.43 | K157: 1101.52 | L157: 1128.73 | M157: 1074.3 | N157: 1028 | O157: 4942700 | P157: -0.44%
A158: 148 | B158: Technology | C158: OFSS | D158: 2022-09-29 | E158: 3222.70 | F158: 3203.27 | G158: 3173.53 | H158: 3124.37 | I158: 3094.63 | J158: 3252.43 | K158: 3282.17 | L158: 3331.33 | M158: 3233 | N158: 3154.1 | O158: 575000 | P158: -3.72%
A159: 149 | B159: Oil_Gas | C159: ONGC | D159: 2022-09-29 | E159: 134.45 | F159: 134.68 | G159: 133.62 | H159: 132.78 | I159: 131.72 | J159: 135.52 | K159: 136.58 | L159: 137.42 | M159: 135.75 | N159: 133.85 | O159: 52860500 | P159: 0.63%
A160: 150 | B160: Textile | C160: PAGEIND | D160: 2022-09-29 | E160: 49377.40 | F160: 49507.67 | G160: 49099.13 | H160: 48820.87 | I160: 48412.33 | J160: 49785.93 | K160: 50194.47 | L160: 50472.73 | M160: 49916.2 | N160: 49229.4 | O160: 94830 | P160: 0.02%
A161: 151 | B161: Pharma | C161: PEL | D161: 2022-09-29 | E161: 1025.40 | F161: 1027.30 | G161: 1016.60 | H161: 1007.80 | I161: 997.10 | J161: 1036.10 | K161: 1046.80 | L161: 1055.60 | M161: 1038 | N161: 1018.5 | O161: 7011400 | P161: 0.50%
A162: 152 | B162: Technology | C162: PERSISTENT | D162: 2022-09-29 | E162: 3432.65 | F162: 3443.58 | G162: 3400.22 | H162: 3367.78 | I162: 3324.42 | J162: 3476.02 | K162: 3519.38 | L162: 3551.82 | M162: 3486.95 | N162: 3411.15 | O162: 743100 | P162: -3.01%
A163: 153 | B163: Oil_Gas | C163: PETRONET | D163: 2022-09-29 | E163: 219.80 | F163: 219.47 | G163: 218.53 | H163: 217.27 | I163: 216.33 | J163: 220.73 | K163: 221.67 | L163: 222.93 | M163: 220.4 | N163: 218.2 | O163: 14535000 | P163: -0.06%
A164: 154 | B164: Finance | C164: PFC | D164: 2022-09-29 | E164: 116.15 | F164: 116.52 | G164: 115.03 | H164: 113.92 | I164: 112.43 | J164: 117.63 | K164: 119.12 | L164: 120.23 | M164: 118 | N164: 115.4 | O164: 57746800 | P164: 2.41%
A165: 155 | B165: FMCG | C165: PIDILITIND | D165: 2022-09-29 | E165: 2873.50 | F165: 2872.65 | G165: 2855.90 | H165: 2838.30 | I165: 2821.55 | J165: 2890.25 | K165: 2907.00 | L165: 2924.60 | M165: 2889.4 | N165: 2855.05 | O165: 2639500 | P165: -0.81%
A166: 156 | B166: Chemical | C166: PIIND | D166: 2022-09-29 | E166: 3291.85 | F166: 3290.62 | G166: 3260.23 | H166: 3228.62 | I166: 3198.23 | J166: 3322.23 | K166: 3352.62 | L166: 3384.23 | M166: 3321 | N166: 3259 | O166: 1670500 | P166: 0.26%
A167: 157 | B167: Banking | C167: PNB | D167: 2022-09-29 | E167: 40.40 | F167: 40.05 | G167: 39.55 | H167: 38.70 | I167: 38.20 | J167: 40.90 | K167: 41.40 | L167: 42.25 | M167: 40.55 | N167: 39.2 | O167: 259184000 | P167: 7.59%
A168: 158 | B168: Others | C168: POLYCAB | D168: 2022-09-29 | E168: 2563.90 | F168: 2558.92 | G168: 2541.93 | H168: 2519.97 | I168: 2502.98 | J168: 2580.88 | K168: 2597.87 | L168: 2619.83 | M168: 2575.9 | N168: 2536.95 | O168: 841800 | P168: -2.94%
A169: 159 | B169: Power | C169: POWERGRID | D169: 2022-09-29 | E169: 225.10 | F169: 224.73 | G169: 223.67 | H169: 222.23 | I169: 221.17 | J169: 226.17 | K169: 227.23 | L169: 228.67 | M169: 225.8 | N169: 223.3 | O169: 47147400 | P169: -0.26%
A170: 160 | B170: Media | C170: PVR | D170: 2022-09-29 | E170: 1899.10 | F170: 1901.07 | G170: 1881.18 | H170: 1863.27 | I170: 1843.38 | J170: 1918.98 | K170: 1938.87 | L170: 1956.78 | M170: 1920.95 | N170: 1883.15 | O170: 3309724 | P170: -10.08%
A171: 161 | B171: Others | C171: RAIN | D171: 2022-09-29 | E171: 186.60 | F171: 186.57 | G171: 184.43 | H171: 182.27 | I171: 180.13 | J171: 188.73 | K171: 190.87 | L171: 193.03 | M171: 188.7 | N171: 184.4 | O171: 12323500 | P171: 2.18%
A172: 162 | B172: Cement | C172: RAMCOCEM | D172: 2022-09-29 | E172: 798.75 | F172: 790.57 | G172: 779.08 | H172: 759.42 | I172: 747.93 | J172: 810.23 | K172: 821.72 | L172: 841.38 | M172: 802.05 | N172: 770.9 | O172: 5037950 | P172: 2.03%
A173: 163 | B173: Banking | C173: RBLBANK | D173: 2022-09-29 | E173: 128.60 | F173: 129.08 | G173: 127.72 | H173: 126.83 | I173: 125.47 | J173: 129.97 | K173: 131.33 | L173: 132.22 | M173: 130.45 | N173: 128.2 | O173: 61170000 | P173: 1.17%
A174: 164 | B174: Power | C174: RECLTD | D174: 2022-09-29 | E174: 106.40 | F174: 106.50 | G174: 105.90 | H174: 105.40 | I174: 104.80 | J174: 107.00 | K174: 107.60 | L174: 108.10 | M174: 107.1 | N174: 106 | O174: 33160000 | P174: 0.36%
A175: 165 | B175: Oil_Gas | C175: RELIANCE | D175: 2022-09-29 | E175: 2605.45 | F175: 2602.77 | G175: 2582.58 | H175: 2559.72 | I175: 2539.53 | J175: 2625.63 | K175: 2645.82 | L175: 2668.68 | M175: 2622.95 | N175: 2579.9 | O175: 34741000 | P175: -2.33%
A176: 166 | B176: Metals | C176: SAIL | D176: 2022-09-29 | E176: 83.75 | F176: 83.50 | G176: 83.05 | H176: 82.35 | I176: 81.90 | J176: 84.20 | K176: 84.65 | L176: 85.35 | M176: 83.95 | N176: 82.8 | O176: 106248000 | P176: -0.90%
A177: 167 | B177: Banking | C177: SBICARD | D177: 2022-09-29 | E177: 953.65 | F177: 953.27 | G177: 949.18 | H177: 944.72 | I177: 940.63 | J177: 957.73 | K177: 961.82 | L177: 966.28 | M177: 957.35 | N177: 948.8 | O177: 5130400 | P177: -0.42%
A178: 168 | B178: Finance | C178: SBILIFE | D178: 2022-09-29 | E178: 1312.15 | F178: 1309.58 | G178: 1301.47 | H178: 1290.78 | I178: 1282.67 | J178: 1320.27 | K178: 1328.38 | L178: 1339.07 | M178: 1317.7 | N178: 1298.9 | O178: 5568000 | P178: -0.17%
A179: 169 | B179: Banking | C179: SBIN | D179: 2022-09-29 | E179: 555.70 | F179: 555.58 | G179: 552.27 | H179: 548.83 | I179: 545.52 | J179: 559.02 | K179: 562.33 | L179: 565.77 | M179: 558.9 | N179: 552.15 | O179: 51369000 | P179: -1.29%
A180: 170 | B180: Cement | C180: SHREECEM | D180: 2022-09-29 | E180: 24149.75 | F180: 24187.18 | G180: 23577.57 | H180: 23005.38 | I180: 22395.77 | J180: 24759.37 | K180: 25368.98 | L180: 25941.17 | M180: 24796.8 | N180: 23615 | O180: 460950 | P180: 2.62%
A181: 171 | B181: Capital_Goods | C181: SIEMENS | D181: 2022-09-29 | E181: 2969.55 | F181: 2960.65 | G181: 2928.30 | H181: 2887.05 | I181: 2854.70 | J181: 3001.90 | K181: 3034.25 | L181: 3075.50 | M181: 2993 | N181: 2919.4 | O181: 1741300 | P181: -1.31%
A182: 172 | B182: Textile | C182: SRF | D182: 2022-09-29 | E182: 2739.75 | F182: 2715.57 | G182: 2681.13 | H182: 2622.52 | I182: 2588.08 | J182: 2774.18 | K182: 2808.62 | L182: 2867.23 | M182: 2750 | N182: 2656.95 | O182: 3397500 | P182: 1.33%
A183: 173 | B183: Finance | C183: SRTRANSFIN | D183: 2022-09-29 | E183: 1336.45 | F183: 1330.38 | G183: 1320.27 | H183: 1304.08 | I183: 1293.97 | J183: 1346.57 | K183: 1356.68 | L183: 1372.87 | M183: 1340.5 | N183: 1314.2 | O183: 4009200 | P183: 1.06%
A184: 174 | B184: Pharma | C184: SUNPHARMA | D184: 2022-09-29 | E184: 892.70 | F184: 893.73 | G184: 889.47 | H184: 886.23 | I184: 881.97 | J184: 896.97 | K184: 901.23 | L184: 904.47 | M184: 898 | N184: 890.5 | O184: 22697500 | P184: 0.07%
A185: 175 | B185: Media | C185: SUNTV | D185: 2022-09-29 | E185: 522.90 | F185: 521.12 | G185: 517.08 | H185: 511.27 | I185: 507.23 | J185: 526.93 | K185: 530.97 | L185: 536.78 | M185: 525.15 | N185: 515.3 | O185: 10860000 | P185: 1.69%
A186: 176 | B186: Pharma | C186: SYNGENE | D186: 2022-09-29 | E186: 570.90 | F186: 572.23 | G186: 566.97 | H186: 563.03 | I186: 557.77 | J186: 576.17 | K186: 581.43 | L186: 585.37 | M186: 577.5 | N186: 568.3 | O186: 4380000 | P186: -4.76%
A187: 177 | B187: Chemical | C187: TATACHEM | D187: 2022-09-29 | E187: 1166.85 | F187: 1134.35 | G187: 1098.50 | H187: 1030.15 | I187: 994.30 | J187: 1202.70 | K187: 1238.55 | L187: 1306.90 | M187: 1170.2 | N187: 1066 | O187: 8201000 | P187: 7.12%
A188: 178 | B188: Telecom | C188: TATACOMM | D188: 2022-09-29 | E188: 1260.35 | F188: 1261.32 | G188: 1246.13 | H188: 1231.92 | I188: 1216.73 | J188: 1275.53 | K188: 1290.72 | L188: 1304.93 | M188: 1276.5 | N188: 1247.1 | O188: 3137000 | P188: 0.43%
A189: 179 | B189: FMCG | C189: TATACONSUM | D189: 2022-09-29 | E189: 829.65 | F189: 828.22 | G189: 823.53 | H189: 817.42 | I189: 812.73 | J189: 834.33 | K189: 839.02 | L189: 845.13 | M189: 832.9 | N189: 822.1 | O189: 8108100 | P189: 0.45%
A190: 180 | B190: Automobile | C190: TATAMOTORS | D190: 2022-09-29 | E190: 452.55 | F190: 451.50 | G190: 448.85 | H190: 445.15 | I190: 442.50 | J190: 455.20 | K190: 457.85 | L190: 461.55 | M190: 454.15 | N190: 447.8 | O190: 71031975 | P190: -3.02%
A191: 181 | B191: Power | C191: TATAPOWER | D191: 2022-09-29 | E191: 244.15 | F191: 244.22 | G191: 242.73 | H191: 241.32 | I191: 239.83 | J191: 245.63 | K191: 247.12 | L191: 248.53 | M191: 245.7 | N191: 242.8 | O191: 106812000 | P191: 0.23%
A192: 182 | B192: Metals | C192: TATASTEEL | D192: 2022-09-29 | E192: 108.35 | F192: 107.90 | G192: 107.25 | H192: 106.15 | I192: 105.50 | J192: 109.00 | K192: 109.65 | L192: 110.75 | M192: 108.55 | N192: 106.8 | O192: 255765000 | P192: -0.15%
A193: 183 | B193: Technology | C193: TCS | D193: 2022-09-29 | E193: 3258.00 | F193: 3259.00 | G193: 3237.00 | H193: 3216.00 | I193: 3194.00 | J193: 3280.00 | K193: 3302.00 | L193: 3323.00 | M193: 3281 | N193: 3238 | O193: 11651100 | P193: -1.60%
A194: 184 | B194: Technology | C194: TECHM | D194: 2022-09-29 | E194: 1153.35 | F194: 1154.78 | G194: 1140.57 | H194: 1127.78 | I194: 1113.57 | J194: 1167.57 | K194: 1181.78 | L194: 1194.57 | M194: 1169 | N194: 1142 | O194: 16473600 | P194: -2.81%
A195: 185 | B195: FMCG | C195: TITAN | D195: 2022-09-29 | E195: 2666.80 | F195: 2652.28 | G195: 2632.52 | H195: 2598.23 | I195: 2578.47 | J195: 2686.57 | K195: 2706.33 | L195: 2740.62 | M195: 2672.05 | N195: 2618 | O195: 4338000 | P195: 0.82%
A196: 186 | B196: Pharma | C196: TORNTPHARM | D196: 2022-09-29 | E196: 1512.25 | F196: 1515.45 | G196: 1500.40 | H196: 1488.55 | I196: 1473.50 | J196: 1527.30 | K196: 1542.35 | L196: 1554.20 | M196: 1530.5 | N196: 1503.6 | O196: 1521000 | P196: 0.70%
A197: 187 | B197: Power | C197: TORNTPOWER | D197: 2022-09-29 | E197: 564.25 | F197: 568.27 | G197: 558.48 | H197: 552.72 | I197: 542.93 | J197: 574.03 | K197: 583.82 | L197: 589.58 | M197: 578.05 | N197: 562.5 | O197: 3691500 | P197: 4.55%
A198: 188 | B198: Others | C198: TRENT | D198: 2022-09-29 | E198: 1406.95 | F198: 1408.67 | G198: 1392.78 | H198: 1378.62 | I198: 1362.73 | J198: 1422.83 | K198: 1438.72 | L198: 1452.88 | M198: 1424.55 | N198: 1394.5 | O198: 4476875 | P198: 3.40%
A199: 189 | B199: Automobile | C199: TVSMOTOR | D199: 2022-09-29 | E199: 1052.35 | F199: 1056.73 | G199: 1045.72 | H199: 1039.08 | I199: 1028.07 | J199: 1063.37 | K199: 1074.38 | L199: 1081.02 | M199: 1067.75 | N199: 1050.1 | O199: 7858200 | P199: 0.72%
A200: 190 | B200: FMCG | C200: UBL | D200: 2022-09-29 | E200: 1700.95 | F200: 1697.53 | G200: 1687.77 | H200: 1674.58 | I200: 1664.82 | J200: 1710.72 | K200: 1720.48 | L200: 1733.67 | M200: 1707.3 | N200: 1684.35 | O200: 1214400 | P200: -1.01%
A201: 191 | B201: Cement | C201: ULTRACEMCO | D201: 2022-09-29 | E201: 6899.30 | F201: 6866.13 | G201: 6791.62 | H201: 6683.93 | I201: 6609.42 | J201: 6973.82 | K201: 7048.33 | L201: 7156.02 | M201: 6940.65 | N201: 6758.45 | O201: 2116700 | P201: 1.06%
A202: 192 | B202: Chemical | C202: UPL | D202: 2022-09-29 | E202: 759.60 | F202: 755.42 | G202: 749.23 | H202: 738.87 | I202: 732.68 | J202: 765.78 | K202: 771.97 | L202: 782.33 | M202: 761.6 | N202: 745.05 | O202: 24865100 | P202: 1.71%
A203: 193 | B203: Metals | C203: VEDL | D203: 2022-09-29 | E203: 271.80 | F203: 271.12 | G203: 268.93 | H203: 266.07 | I203: 263.88 | J203: 273.98 | K203: 276.17 | L203: 279.03 | M203: 273.3 | N203: 268.25 | O203: 39906300 | P203: 1.00%
A204: 194 | B204: Capital_Goods | C204: VOLTAS | D204: 2022-09-29 | E204: 972.70 | F204: 974.20 | G204: 968.50 | H204: 964.30 | I204: 958.60 | J204: 978.40 | K204: 984.10 | L204: 988.30 | M204: 979.9 | N204: 970 | O204: 5512000 | P204: 13.12%
A205: 195 | B205: Capital_Goods | C205: WHIRLPOOL | D205: 2022-09-29 | E205: 1767.50 | F205: 1763.63 | G205: 1750.87 | H205: 1734.23 | I205: 1721.47 | J205: 1780.27 | K205: 1793.03 | L205: 1809.67 | M205: 1776.4 | N205: 1747 | O205: 709450 | P205: 3.68%
A206: 196 | B206: Technology | C206: WIPRO | D206: 2022-09-29 | E206: 423.35 | F206: 422.90 | G206: 420.05 | H206: 416.75 | I206: 413.90 | J206: 426.20 | K206: 429.05 | L206: 432.35 | M206: 425.75 | N206: 419.6 | O206: 44132000 | P206: -1.52%
... 17 more rows

Sheet Cash Intra
M5: Back to Main Page
A6: FOR INTRA DAY TRADING | K6: =Main!B10 -> 2022-09-13
A8: Sr.no | C8: CLOSE RATE | D8: Pivot Point | E8: Supports | H8: Resistances
E9: S1 | F9: S2 | G9: S3 | H9: R1 | I9: R2 | J9: R3 | K9: HIGH | L9: LOW | M9: Total Trade Quanity in Lakhs
A10: 1 | B10: Nifty 50 | C10: =VLOOKUP($B10,[1]INDEX!$A$1:$F$50,6,0) -> 17936.35 | D10: =(C10+K10+L10)/3 -> 17935.35 | E10: =+(D10*2)-K10 -> 17890.15 | F10: =+D10-K10+L10 -> 17843.95 | G10: =L10-2*(K10-D10) -> 17798.75 | H10: =(D10*2)-L10 -> 17981.55 | I10: =+D10+K10-L10 -> 18026.75 | J10: =K10+2*(D10-L10) -> 18072.95 | K10: =VLOOKUP($B10,[1]INDEX!$A$1:$F$50,4,0) -> 17980.55 | L10: =VLOOKUP($B10,[1]INDEX!$A$1:$G$50,5,0) -> 17889.15
A11: 2 | B11: Nifty Bank | C11: =VLOOKUP($B11,[1]INDEX!$A$1:$F$50,6,0) -> 40574.00 | D11: =(C11+K11+L11)/3 -> 40545.60 | E11: =+(D11*2)-K11 -> 40406.30 | F11: =+D11-K11+L11 -> 40238.60 | G11: =L11-2*(K11-D11) -> 40099.30 | H11: =(D11*2)-L11 -> 40713.30 | I11: =+D11+K11-L11 -> 40852.60 | J11: =K11+2*(D11-L11) -> 41020.30 | K11: =VLOOKUP($B11,[1]INDEX!$A$1:$F$50,4,0) -> 40684.90 | L11: =VLOOKUP($B11,[1]INDEX!$A$1:$G$50,5,0) -> 40377.90
A12: 3 | B12: Nifty CPSE | C12: =VLOOKUP($B12,[1]INDEX!$A$1:$F$50,6,0) -> 2740.60 | D12: 2740.38 | E12: 2723.42 | F12: 2706.23 | G12: 2689.27 | H12: 2757.57 | I12: 2774.53 | J12: 2791.72 | K12: =VLOOKUP($B12,[1]INDEX!$A$1:$F$50,4,0) -> 2757.35 | L12: =VLOOKUP($B12,[1]INDEX!$A$1:$G$50,5,0) -> 2723.20
A13: 4 | B13: Nifty Infra | C13: =VLOOKUP($B13,[1]INDEX!$A$1:$F$50,6,0) -> 5256.75 | D13: 5244.33 | E13: 5225.12 | F13: 5193.48 | G13: 5174.27 | H13: 5275.97 | I13: 5295.18 | J13: 5326.82 | K13: =VLOOKUP($B13,[1]INDEX!$A$1:$F$50,4,0) -> 5263.55 | L13: =VLOOKUP($B13,[1]INDEX!$A$1:$G$50,5,0) -> 5212.70
A14: 5 | B14: Nifty IT | C14: =VLOOKUP($B14,[1]INDEX!$A$1:$F$50,6,0) -> 29131.20 | D14: 29119.82 | E14: 28943.43 | F14: 28755.67 | G14: 28579.28 | H14: 29307.58 | I14: 29483.97 | J14: 29671.73 | K14: =VLOOKUP($B14,[1]INDEX!$A$1:$F$50,4,0) -> 29296.20 | L14: =VLOOKUP($B14,[1]INDEX!$A$1:$G$50,5,0) -> 28932.05
A15: 6 | B15: Nifty PSE | C15: =VLOOKUP($B15,[1]INDEX!$A$1:$F$50,6,0) -> 4296.70 | D15: 4288.22 | E15: 4276.63 | F15: 4256.57 | G15: 4244.98 | H15: 4308.28 | I15: 4319.87 | J15: 4339.93 | K15: =VLOOKUP($B15,[1]INDEX!$A$1:$F$50,4,0) -> 4299.80 | L15: =VLOOKUP($B15,[1]INDEX!$A$1:$G$50,5,0) -> 4268.15
A16: 7 | B16: Nifty Midcap 50 | C16: =VLOOKUP($B16,[1]INDEX!$A$1:$F$50,6,0) -> 8821.05 | D16: 8803.13 | E16: 8778.47 | F16: 8735.88 | G16: 8711.22 | H16: 8845.72 | I16: 8870.38 | J16: 8912.97 | K16: =VLOOKUP($B16,[1]INDEX!$A$1:$F$50,4,0) -> 8827.80 | L16: =VLOOKUP($B16,[1]INDEX!$A$1:$G$50,5,0) -> 8760.55
A17: 8 | B17: ABB | C17: =VLOOKUP($B17,[1]EQ!$A9:$L5825,6,0) -> 3329.6 | D17: 3329.95 | E17: 3309.90 | F17: 3290.20 | G17: 3270.15 | H17: 3349.65 | I17: 3369.70 | J17: 3389.40 | K17: =VLOOKUP($B17,[1]EQ!$A9:$L5825,4,0) -> 3350 | L17: =VLOOKUP($B17,[1]EQ!$A9:$L5825,5,0) -> 3310.25 | M17: =VLOOKUP($B17,[1]EQ!$A$4:$I$3070,9,0)/100000 -> 1.79592
A18: 9 | B18: ACC | C18: =VLOOKUP($B18,[1]EQ!$A10:$L5826,6,0) -> 2500.85 | D18: 2451.92 | E18: 2389.18 | F18: 2277.52 | G18: 2214.78 | H18: 2563.58 | I18: 2626.32 | J18: 2737.98 | K18: =VLOOKUP($B18,[1]EQ!$A10:$L5826,4,0) -> 2514.65 | L18: =VLOOKUP($B18,[1]EQ!$A10:$L5826,5,0) -> 2340.25 | M18: =VLOOKUP($B18,[1]EQ!$A$4:$I$3070,9,0)/100000 -> 19.90854
A19: 10 | B19: AUBANK | C19: =VLOOKUP($B19,[1]EQ!$A11:$L5827,6,0) -> 660.75 | D19: 658.52 | E19: 654.48 | F19: 648.22 | G19: 644.18 | H19: 664.78 | I19: 668.82 | J19: 675.08 | K19: =VLOOKUP($B19,[1]EQ!$A11:$L5827,4,0) -> 662.55 | L19: =VLOOKUP($B19,[1]EQ!$A11:$L5827,5,0) -> 652.25 | M19: =VLOOKUP($B19,[1]EQ!$A$4:$I$3070,9,0)/100000 -> 10.50504
A20: 11 | B20: ABBOTINDIA | C20: =VLOOKUP($B20,[1]EQ!$A12:$L5828,6,0) -> 18139.95 | D20: 18193.32 | E20: 18036.63 | F20: 17933.32 | G20: 17776.63 | H20: 18296.63 | I20: 18453.32 | J20: 18556.63 | K20: =VLOOKUP($B20,[1]EQ!$A12:$L5828,4,0) -> 18350 | L20: =VLOOKUP($B20,[1]EQ!$A12:$L5828,5,0) -> 18090 | M20: =VLOOKUP($B20,[1]EQ!$A$4:$I$3070,9,0)/100000 -> 0.15525
A21: 12 | B21: ADANIENT | C21: =VLOOKUP($B21,[1]EQ!$A13:$L5829,6,0) -> 3463.8 | D21: 3472.40 | E21: 3449.30 | F21: 3434.80 | G21: 3411.70 | H21: 3486.90 | I21: 3510.00 | J21: 3524.50 | K21: =VLOOKUP($B21,[1]EQ!$A13:$L5829,4,0) -> 3495.5 | L21: =VLOOKUP($B21,[1]EQ!$A13:$L5829,5,0) -> 3457.9 | M21: =VLOOKUP($B21,[1]EQ!$A$4:$I$3070,9,0)/100000 -> 16.47756
A22: 13 | B22: ADANIGREEN | C22: =VLOOKUP($B22,[1]EQ!$A14:$L5830,6,0) -> 2355.95 | D22: 2345.98 | E22: 2326.12 | F22: 2296.28 | G22: 2276.42 | H22: 2375.82 | I22: 2395.68 | J22: 2425.52 | K22: =VLOOKUP($B22,[1]EQ!$A14:$L5830,4,0) -> 2365.85 | L22: =VLOOKUP($B22,[1]EQ!$A14:$L5830,5,0) -> 2316.15 | M22: =VLOOKUP($B22,[1]EQ!$A$4:$I$3070,9,0)/100000 -> 9.47489
A23: 14 | B23: ADANIPORTS | C23: =VLOOKUP($B23,[1]EQ!$A15:$L5831,6,0) -> 938.5 | D23: 930.50 | E23: 919.00 | F23: 899.50 | G23: 888.00 | H23: 950.00 | I23: 961.50 | J23: 981.00 | K23: =VLOOKUP($B23,[1]EQ!$A15:$L5831,4,0) -> 942 | L23: =VLOOKUP($B23,[1]EQ!$A15:$L5831,5,0) -> 911 | M23: =VLOOKUP($B23,[1]EQ!$A$4:$I$3070,9,0)/100000 -> 125.71292
A24: 15 | B24: ATGL | C24: =VLOOKUP($B24,[1]EQ!$A16:$L5832,6,0) -> 3635.4 | D24: 3638.42 | E24: 3596.98 | F24: 3558.57 | G24: 3517.13 | H24: 3676.83 | I24: 3718.27 | J24: 3756.68 | K24: =VLOOKUP($B24,[1]EQ!$A16:$L5832,4,0) -> 3679.85 | L24: =VLOOKUP($B24,[1]EQ!$A16:$L5832,5,0) -> 3600 | M24: =VLOOKUP($B24,[1]EQ!$A$4:$I$3070,9,0)/100000 -> 1.94549
A25: 16 | B25: ADANITRANS | C25: =VLOOKUP($B25,[1]EQ!$A17:$L5833,6,0) -> 4006 | D25: 3980.52 | E25: 3916.63 | F25: 3827.27 | G25: 3763.38 | H25: 4069.88 | I25: 4133.77 | J25: 4223.13 | K25: =VLOOKUP($B25,[1]EQ!$A17:$L5833,4,0) -> 4044.4 | L25: =VLOOKUP($B25,[1]EQ!$A17:$L5833,5,0) -> 3891.15 | M25: =VLOOKUP($B25,[1]EQ!$A$4:$I$3070,9,0)/100000 -> 4.25256
A26: 17 | B26: ABCAPITAL | C26: =VLOOKUP($B26,[1]EQ!$A18:$L5834,6,0) -> 118.85 | D26: 117.93 | E26: 116.02 | F26: 113.18 | G26: 111.27 | H26: 120.77 | I26: 122.68 | J26: 125.52 | K26: =VLOOKUP($B26,[1]EQ!$A18:$L5834,4,0) -> 119.85 | L26: =VLOOKUP($B26,[1]EQ!$A18:$L5834,5,0) -> 115.1 | M26: =VLOOKUP($B26,[1]EQ!$A$4:$I$3070,9,0)/100000 -> 62.80292
A27: 18 | B27: ABFRL | C27: =VLOOKUP($B27,[1]EQ!$A19:$L5835,6,0) -> 324.05 | D27: 325.33 | E27: 321.77 | F27: 319.48 | G27: 315.92 | H27: 327.62 | I27: 331.18 | J27: 333.47 | K27: =VLOOKUP($B27,[1]EQ!$A19:$L5835,4,0) -> 328.9 | L27: =VLOOKUP($B27,[1]EQ!$A19:$L5835,5,0) -> 323.05 | M27: =VLOOKUP($B27,[1]EQ!$A$4:$I$3070,9,0)/100000 -> 18.24015
A28: 19 | B28: APLLTD | C28: =VLOOKUP($B28,[1]EQ!$A20:$L5836,6,0) -> 636.05 | D28: 637.27 | E28: 632.98 | F28: 629.92 | G28: 625.63 | H28: 640.33 | I28: 644.62 | J28: 647.68 | K28: =VLOOKUP($B28,[1]EQ!$A20:$L5836,4,0) -> 641.55 | L28: =VLOOKUP($B28,[1]EQ!$A20:$L5836,5,0) -> 634.2 | M28: =VLOOKUP($B28,[1]EQ!$A$4:$I$3070,9,0)/100000 -> 1.06178
A29: 20 | B29: ALKEM | C29: =VLOOKUP($B29,[1]EQ!$A21:$L5837,6,0) -> 3205.95 | D29: 3207.78 | E29: 3189.82 | F29: 3173.68 | G29: 3155.72 | H29: 3223.92 | I29: 3241.88 | J29: 3258.02 | K29: =VLOOKUP($B29,[1]EQ!$A21:$L5837,4,0) -> 3225.75 | L29: =VLOOKUP($B29,[1]EQ!$A21:$L5837,5,0) -> 3191.65 | M29: =VLOOKUP($B29,[1]EQ!$A$4:$I$3070,9,0)/100000 -> 0.40336
A30: 21 | B30: AMBUJACEM | C30: =VLOOKUP($B30,[1]EQ!$A22:$L5838,6,0) -> 475.65 | D30: 465.25 | E30: 451.00 | F30: 426.35 | G30: 412.10 | H30: 489.90 | I30: 504.15 | J30: 528.80 | K30: =VLOOKUP($B30,[1]EQ!$A22:$L5838,4,0) -> 479.5 | L30: =VLOOKUP($B30,[1]EQ!$A22:$L5838,5,0) -> 440.6 | M30: =VLOOKUP($B30,[1]EQ!$A$4:$I$3070,9,0)/100000 -> 277.59936
A31: 22 | B31: APOLLOHOSP | C31: =VLOOKUP($B31,[1]EQ!$A23:$L5839,6,0) -> 4481.6 | D31: 4476.82 | E31: 4451.83 | F31: 4422.07 | G31: 4397.08 | H31: 4506.58 | I31: 4531.57 | J31: 4561.33 | K31: =VLOOKUP($B31,[1]EQ!$A23:$L5839,4,0) -> 4501.8 | L31: =VLOOKUP($B31,[1]EQ!$A23:$L5839,5,0) -> 4447.05 | M31: =VLOOKUP($B31,[1]EQ!$A$4:$I$3070,9,0)/100000 -> 3.31303
A32: 23 | B32: APOLLOTYRE | C32: =VLOOKUP($B32,[1]EQ!$A24:$L5840,6,0) -> 284 | D32: 280.97 | E32: 276.93 | F32: 269.87 | G32: 265.83 | H32: 288.03 | I32: 292.07 | J32: 299.13 | K32: =VLOOKUP($B32,[1]EQ!$A24:$L5840,4,0) -> 285 | L32: =VLOOKUP($B32,[1]EQ!$A24:$L5840,5,0) -> 273.9 | M32: =VLOOKUP($B32,[1]EQ!$A$4:$I$3070,9,0)/100000 -> 42.82678
A33: 24 | B33: ASHOKLEY | C33: =VLOOKUP($B33,[1]EQ!$A25:$L5841,6,0) -> 165 | D33: 165.60 | E33: 164.00 | F33: 163.00 | G33: 161.40 | H33: 166.60 | I33: 168.20 | J33: 169.20 | K33: =VLOOKUP($B33,[1]EQ!$A25:$L5841,4,0) -> 167.2 | L33: =VLOOKUP($B33,[1]EQ!$A25:$L5841,5,0) -> 164.6 | M33: =VLOOKUP($B33,[1]EQ!$A$4:$I$3070,9,0)/100000 -> 90.42625
A34: 25 | B34: ASIANPAINT | C34: =VLOOKUP($B34,[1]EQ!$A26:$L5842,6,0) -> 3432.2 | D34: 3436.28 | E34: 3418.92 | F34: 3405.63 | G34: 3388.27 | H34: 3449.57 | I34: 3466.93 | J34: 3480.22 | K34: =VLOOKUP($B34,[1]EQ!$A26:$L5842,4,0) -> 3453.65 | L34: =VLOOKUP($B34,[1]EQ!$A26:$L5842,5,0) -> 3423 | M34: =VLOOKUP($B34,[1]EQ!$A$4:$I$3070,9,0)/100000 -> 6.4128
A35: 26 | B35: ASTRAL | C35: =VLOOKUP($B35,[1]EQ!$A27:$L5843,6,0) -> 2552.2 | D35: 2555.90 | E35: 2521.30 | F35: 2490.40 | G35: 2455.80 | H35: 2586.80 | I35: 2621.40 | J35: 2652.30 | K35: =VLOOKUP($B35,[1]EQ!$A27:$L5843,4,0) -> 2590.5 | L35: =VLOOKUP($B35,[1]EQ!$A27:$L5843,5,0) -> 2525 | M35: =VLOOKUP($B35,[1]EQ!$A$4:$I$3070,9,0)/100000 -> 6.03602
A36: 27 | B36: AUROPHARMA | C36: =VLOOKUP($B36,[1]EQ!$A28:$L5844,6,0) -> 551.15 | D36: 548.52 | E36: 543.53 | F36: 535.92 | G36: 530.93 | H36: 556.13 | I36: 561.12 | J36: 568.73 | K36: =VLOOKUP($B36,[1]EQ!$A28:$L5844,4,0) -> 553.5 | L36: =VLOOKUP($B36,[1]EQ!$A28:$L5844,5,0) -> 540.9 | M36: =VLOOKUP($B36,[1]EQ!$A$4:$I$3070,9,0)/100000 -> 10.82603
A37: 28 | B37: DMART | C37: =VLOOKUP($B37,[1]EQ!$A29:$L5845,6,0) -> 4443.95 | D37: 4439.65 | E37: 4404.30 | F37: 4364.65 | G37: 4329.30 | H37: 4479.30 | I37: 4514.65 | J37: 4554.30 | K37: =VLOOKUP($B37,[1]EQ!$A29:$L5845,4,0) -> 4475 | L37: =VLOOKUP($B37,[1]EQ!$A29:$L5845,5,0) -> 4400 | M37: =VLOOKUP($B37,[1]EQ!$A$4:$I$3070,9,0)/100000 -> 2.52381
A38: 29 | B38: AXISBANK | C38: =VLOOKUP($B38,[1]EQ!$A30:$L5846,6,0) -> 801 | D38: 797.60 | E38: 790.20 | F38: 779.40 | G38: 772.00 | H38: 808.40 | I38: 815.80 | J38: 826.60 | K38: =VLOOKUP($B38,[1]EQ!$A30:$L5846,4,0) -> 805 | L38: =VLOOKUP($B38,[1]EQ!$A30:$L5846,5,0) -> 786.8 | M38: =VLOOKUP($B38,[1]EQ!$A$4:$I$3070,9,0)/100000 -> 155.21649
A39: 30 | B39: BAJAJ-AUTO | C39: =VLOOKUP($B39,[1]EQ!$A31:$L5847,6,0) -> 3870.3 | D39: 3861.70 | E39: 3833.60 | F39: 3796.90 | G39: 3768.80 | H39: 3898.40 | I39: 3926.50 | J39: 3963.20 | K39: =VLOOKUP($B39,[1]EQ!$A31:$L5847,4,0) -> 3889.8 | L39: =VLOOKUP($B39,[1]EQ!$A31:$L5847,5,0) -> 3825 | M39: =VLOOKUP($B39,[1]EQ!$A$4:$I$3070,9,0)/100000 -> 3.69281
A40: 31 | B40: BAJFINANCE | C40: =VLOOKUP($B40,[1]EQ!$A32:$L5848,6,0) -> 7286.9 | D40: 7264.88 | E40: 7209.87 | F40: 7132.83 | G40: 7077.82 | H40: 7341.92 | I40: 7396.93 | J40: 7473.97 | K40: =VLOOKUP($B40,[1]EQ!$A32:$L5848,4,0) -> 7319.9 | L40: =VLOOKUP($B40,[1]EQ!$A32:$L5848,5,0) -> 7187.85 | M40: =VLOOKUP($B40,[1]EQ!$A$4:$I$3070,9,0)/100000 -> 8.34716
A41: 32 | B41: BAJAJFINSV | C41: =VLOOKUP($B41,[1]EQ!$A33:$L5849,6,0) -> 17138.05 | D41: 17203.42 | E41: 16986.83 | F41: 16835.62 | G41: 16619.03 | H41: 17354.63 | I41: 17571.22 | J41: 17722.43 | K41: =VLOOKUP($B41,[1]EQ!$A33:$L5849,4,0) -> 17420 | L41: =VLOOKUP($B41,[1]EQ!$A33:$L5849,5,0) -> 17052.2 | M41: =VLOOKUP($B41,[1]EQ!$A$4:$I$3070,9,0)/100000 -> 4.25082
A42: 33 | B42: BAJAJHLDNG | C42: =VLOOKUP($B42,[1]EQ!$A34:$L5850,6,0) -> 6631.75 | D42: 6660.03 | E42: 6526.72 | F42: 6421.68 | G42: 6288.37 | H42: 6765.07 | I42: 6898.38 | J42: 7003.42 | K42: =VLOOKUP($B42,[1]EQ!$A34:$L5850,4,0) -> 6793.35 | L42: =VLOOKUP($B42,[1]EQ!$A34:$L5850,5,0) -> 6555 | M42: =VLOOKUP($B42,[1]EQ!$A$4:$I$3070,9,0)/100000 -> 1.84014
A43: 34 | B43: BALKRISIND | C43: =VLOOKUP($B43,[1]EQ!$A35:$L5851,6,0) -> 2000.45 | D43: 2009.82 | E43: 1982.63 | F43: 1964.82 | G43: 1937.63 | H43: 2027.63 | I43: 2054.82 | J43: 2072.63 | K43: =VLOOKUP($B43,[1]EQ!$A35:$L5851,4,0) -> 2037 | L43: =VLOOKUP($B43,[1]EQ!$A35:$L5851,5,0) -> 1992 | M43: =VLOOKUP($B43,[1]EQ!$A$4:$I$3070,9,0)/100000 -> 5.2795
A44: 35 | B44: BANDHANBNK | C44: =VLOOKUP($B44,[1]EQ!$A36:$L5852,6,0) -> 288.6 | D44: 290.63 | E44: 285.97 | F44: 283.33 | G44: 278.67 | H44: 293.27 | I44: 297.93 | J44: 300.57 | K44: =VLOOKUP($B44,[1]EQ!$A36:$L5852,4,0) -> 295.3 | L44: =VLOOKUP($B44,[1]EQ!$A36:$L5852,5,0) -> 288 | M44: =VLOOKUP($B44,[1]EQ!$A$4:$I$3070,9,0)/100000 -> 54.23112
A45: 36 | B45: BANKBARODA | C45: =VLOOKUP($B45,[1]EQ!$A37:$L5853,6,0) -> 138.85 | D45: 139.05 | E45: 138.20 | F45: 137.55 | G45: 136.70 | H45: 139.70 | I45: 140.55 | J45: 141.20 | K45: =VLOOKUP($B45,[1]EQ!$A37:$L5853,4,0) -> 139.9 | L45: =VLOOKUP($B45,[1]EQ!$A37:$L5853,5,0) -> 138.4 | M45: =VLOOKUP($B45,[1]EQ!$A$4:$I$3070,9,0)/100000 -> 124.57738
A46: 37 | B46: BANKINDIA | C46: =VLOOKUP($B46,[1]EQ!$A38:$L5854,6,0) -> 52.45 | D46: 52.42 | E46: 52.08 | F46: 51.72 | G46: 51.38 | H46: 52.78 | I46: 53.12 | J46: 53.48 | K46: =VLOOKUP($B46,[1]EQ!$A38:$L5854,4,0) -> 52.75 | L46: =VLOOKUP($B46,[1]EQ!$A38:$L5854,5,0) -> 52.05 | M46: =VLOOKUP($B46,[1]EQ!$A$4:$I$3070,9,0)/100000 -> 42.94747
A47: 38 | B47: BATAINDIA | C47: =VLOOKUP($B47,[1]EQ!$A39:$L5855,6,0) -> 1912.3 | D47: 1915.08 | E47: 1902.22 | F47: 1892.13 | G47: 1879.27 | H47: 1925.17 | I47: 1938.03 | J47: 1948.12 | K47: =VLOOKUP($B47,[1]EQ!$A39:$L5855,4,0) -> 1927.95 | L47: =VLOOKUP($B47,[1]EQ!$A39:$L5855,5,0) -> 1905 | M47: =VLOOKUP($B47,[1]EQ!$A$4:$I$3070,9,0)/100000 -> 2.7575
A48: 39 | B48: BERGEPAINT | C48: =VLOOKUP($B48,[1]EQ!$A40:$L5856,6,0) -> 664.5 | D48: 666.52 | E48: 660.23 | F48: 655.97 | G48: 649.68 | H48: 670.78 | I48: 677.07 | J48: 681.33 | K48: =VLOOKUP($B48,[1]EQ!$A40:$L5856,4,0) -> 672.8 | L48: =VLOOKUP($B48,[1]EQ!$A40:$L5856,5,0) -> 662.25 | M48: =VLOOKUP($B48,[1]EQ!$A$4:$I$3070,9,0)/100000 -> 5.47598
A49: 40 | B49: BEL | C49: =VLOOKUP($B49,[1]EQ!$A41:$L5857,6,0) -> 338.55 | D49: 334.80 | E49: 329.80 | F49: 321.05 | G49: 316.05 | H49: 343.55 | I49: 348.55 | J49: 357.30 | K49: =VLOOKUP($B49,[1]EQ!$A41:$L5857,4,0) -> 339.8 | L49: =VLOOKUP($B49,[1]EQ!$A41:$L5857,5,0) -> 326.05 | M49: =VLOOKUP($B49,[1]EQ!$A$4:$I$3070,9,0)/100000 -> 130.24882
A50: 41 | B50: BHARATFORG | C50: =VLOOKUP($B50,[1]EQ!$A42:$L5858,6,0) -> 785 | D50: 790.07 | E50: 778.98 | F50: 772.97 | G50: 761.88 | H50: 796.08 | I50: 807.17 | J50: 813.18 | K50: =VLOOKUP($B50,[1]EQ!$A42:$L5858,4,0) -> 801.15 | L50: =VLOOKUP($B50,[1]EQ!$A42:$L5858,5,0) -> 784.05 | M50: =VLOOKUP($B50,[1]EQ!$A$4:$I$3070,9,0)/100000 -> 15.51719
A51: 42 | B51: BHEL | C51: =VLOOKUP($B51,[1]EQ!$A43:$L5859,6,0) -> 63.8 | D51: 63.87 | E51: 63.23 | F51: 62.67 | G51: 62.03 | H51: 64.43 | I51: 65.07 | J51: 65.63 | K51: =VLOOKUP($B51,[1]EQ!$A43:$L5859,4,0) -> 64.5 | L51: =VLOOKUP($B51,[1]EQ!$A43:$L5859,5,0) -> 63.3 | M51: =VLOOKUP($B51,[1]EQ!$A$4:$I$3070,9,0)/100000 -> 209.00641
A52: 43 | B52: BPCL | C52: =VLOOKUP($B52,[1]EQ!$A44:$L5860,6,0) -> 342.6 | D52: 341.93 | E52: 338.87 | F52: 335.13 | G52: 332.07 | H52: 345.67 | I52: 348.73 | J52: 352.47 | K52: =VLOOKUP($B52,[1]EQ!$A44:$L5860,4,0) -> 345 | L52: =VLOOKUP($B52,[1]EQ!$A44:$L5860,5,0) -> 338.2 | M52: =VLOOKUP($B52,[1]EQ!$A$4:$I$3070,9,0)/100000 -> 27.03189
A53: 44 | B53: BHARTIARTL | C53: =VLOOKUP($B53,[1]EQ!$A45:$L5861,6,0) -> 769.15 | D53: 768.35 | E53: 765.30 | F53: 761.45 | G53: 758.40 | H53: 772.20 | I53: 775.25 | J53: 779.10 | K53: =VLOOKUP($B53,[1]EQ!$A45:$L5861,4,0) -> 771.4 | L53: =VLOOKUP($B53,[1]EQ!$A45:$L5861,5,0) -> 764.5 | M53: =VLOOKUP($B53,[1]EQ!$A$4:$I$3070,9,0)/100000 -> 26.54087
A54: 45 | B54: BIOCON | C54: =VLOOKUP($B54,[1]EQ!$A46:$L5862,6,0) -> 303.55 | D54: 303.90 | E54: 302.20 | F54: 300.85 | G54: 299.15 | H54: 305.25 | I54: 306.95 | J54: 308.30 | K54: =VLOOKUP($B54,[1]EQ!$A46:$L5862,4,0) -> 305.6 | L54: =VLOOKUP($B54,[1]EQ!$A46:$L5862,5,0) -> 302.55 | M54: =VLOOKUP($B54,[1]EQ!$A$4:$I$3070,9,0)/100000 -> 14.45662
A55: 46 | B55: BOSCHLTD | C55: =VLOOKUP($B55,[1]EQ!$A47:$L5863,6,0) -> 17238.95 | D55: 17268.63 | E55: 17172.32 | F55: 17105.68 | G55: 17009.37 | H55: 17335.27 | I55: 17431.58 | J55: 17498.22 | K55: =VLOOKUP($B55,[1]EQ!$A47:$L5863,4,0) -> 17364.95 | L55: =VLOOKUP($B55,[1]EQ!$A47:$L5863,5,0) -> 17202 | M55: =VLOOKUP($B55,[1]EQ!$A$4:$I$3070,9,0)/100000 -> 0.28905
A56: 47 | B56: BRITANNIA | C56: =VLOOKUP($B56,[1]EQ!$A48:$L5864,6,0) -> 3671.85 | D56: 3670.00 | E56: 3642.05 | F56: 3612.25 | G56: 3584.30 | H56: 3699.80 | I56: 3727.75 | J56: 3757.55 | K56: =VLOOKUP($B56,[1]EQ!$A48:$L5864,4,0) -> 3697.95 | L56: =VLOOKUP($B56,[1]EQ!$A48:$L5864,5,0) -> 3640.2 | M56: =VLOOKUP($B56,[1]EQ!$A$4:$I$3070,9,0)/100000 -> 2.12688
A57: 48 | B57: CANBK | C57: =VLOOKUP($B57,[1]EQ!$A49:$L5865,6,0) -> 247.1 | D57: 246.58 | E57: 243.97 | F57: 240.83 | G57: 238.22 | H57: 249.72 | I57: 252.33 | J57: 255.47 | K57: =VLOOKUP($B57,[1]EQ!$A49:$L5865,4,0) -> 249.2 | L57: =VLOOKUP($B57,[1]EQ!$A49:$L5865,5,0) -> 243.45 | M57: =VLOOKUP($B57,[1]EQ!$A$4:$I$3070,9,0)/100000 -> 61.79695
A58: 49 | B58: CHOLAFIN | C58: =VLOOKUP($B58,[1]EQ!$A50:$L5866,6,0) -> 798.2 | D58: 796.93 | E58: 789.92 | F58: 781.63 | G58: 774.62 | H58: 805.22 | I58: 812.23 | J58: 820.52 | K58: =VLOOKUP($B58,[1]EQ!$A50:$L5866,4,0) -> 803.95 | L58: =VLOOKUP($B58,[1]EQ!$A50:$L5866,5,0) -> 788.65 | M58: =VLOOKUP($B58,[1]EQ!$A$4:$I$3070,9,0)/100000 -> 15.69958
A59: 50 | B59: CIPLA | C59: =VLOOKUP($B59,[1]EQ!$A51:$L5867,6,0) -> 1064.75 | D59: 1063.45 | E59: 1058.40 | F59: 1052.05 | G59: 1047.00 | H59: 1069.80 | I59: 1074.85 | J59: 1081.20 | K59: =VLOOKUP($B59,[1]EQ!$A51:$L5867,4,0) -> 1068.5 | L59: =VLOOKUP($B59,[1]EQ!$A51:$L5867,5,0) -> 1057.1 | M59: =VLOOKUP($B59,[1]EQ!$A$4:$I$3070,9,0)/100000 -> 9.36787
A60: 51 | B60: CLEAN | C60: =VLOOKUP($B60,[1]EQ!$A52:$L5868,6,0) -> 1887.6 | D60: 1902.30 | E60: 1867.30 | F60: 1847.00 | G60: 1812.00 | H60: 1922.60 | I60: 1957.60 | J60: 1977.90 | K60: =VLOOKUP($B60,[1]EQ!$A52:$L5868,4,0) -> 1937.3 | L60: =VLOOKUP($B60,[1]EQ!$A52:$L5868,5,0) -> 1882 | M60: =VLOOKUP($B60,[1]EQ!$A$4:$I$3070,9,0)/100000 -> 1.36717
A61: 52 | B61: COALINDIA | C61: =VLOOKUP($B61,[1]EQ!$A53:$L5869,6,0) -> 231.5 | D61: 232.85 | E61: 226.65 | F61: 221.80 | G61: 215.60 | H61: 237.70 | I61: 243.90 | J61: 248.75 | K61: =VLOOKUP($B61,[1]EQ!$A53:$L5869,4,0) -> 239.05 | L61: =VLOOKUP($B61,[1]EQ!$A53:$L5869,5,0) -> 228 | M61: =VLOOKUP($B61,[1]EQ!$A$4:$I$3070,9,0)/100000 -> 190.53188
A62: 53 | B62: COFORGE | C62: =VLOOKUP($B62,[1]EQ!$A54:$L5870,6,0) -> 3617.95 | D62: 3619.30 | E62: 3580.75 | F62: 3543.55 | G62: 3505.00 | H62: 3656.50 | I62: 3695.05 | J62: 3732.25 | K62: =VLOOKUP($B62,[1]EQ!$A54:$L5870,4,0) -> 3657.85 | L62: =VLOOKUP($B62,[1]EQ!$A54:$L5870,5,0) -> 3582.1 | M62: =VLOOKUP($B62,[1]EQ!$A$4:$I$3070,9,0)/100000 -> 2.81977
A63: 54 | B63: COLPAL | C63: =VLOOKUP($B63,[1]EQ!$A55:$L5871,6,0) -> 1630.9 | D63: 1634.92 | E63: 1623.53 | F63: 1616.17 | G63: 1604.78 | H63: 1642.28 | I63: 1653.67 | J63: 1661.03 | K63: =VLOOKUP($B63,[1]EQ!$A55:$L5871,4,0) -> 1646.3 | L63: =VLOOKUP($B63,[1]EQ!$A55:$L5871,5,0) -> 1627.55 | M63: =VLOOKUP($B63,[1]EQ!$A$4:$I$3070,9,0)/100000 -> 2.81529
A64: 55 | B64: CONCOR | C64: =VLOOKUP($B64,[1]EQ!$A56:$L5872,6,0) -> 764.85 | D64: 762.95 | E64: 754.90 | F64: 744.95 | G64: 736.90 | H64: 772.90 | I64: 780.95 | J64: 790.90 | K64: =VLOOKUP($B64,[1]EQ!$A56:$L5872,4,0) -> 771 | L64: =VLOOKUP($B64,[1]EQ!$A56:$L5872,5,0) -> 753 | M64: =VLOOKUP($B64,[1]EQ!$A$4:$I$3070,9,0)/100000 -> 37.19126
A65: 56 | B65: COROMANDEL | C65: =VLOOKUP($B65,[1]EQ!$A57:$L5873,6,0) -> 1046.5 | D65: 1047.33 | E65: 1037.67 | F65: 1028.83 | G65: 1019.17 | H65: 1056.17 | I65: 1065.83 | J65: 1074.67 | K65: =VLOOKUP($B65,[1]EQ!$A57:$L5873,4,0) -> 1057 | L65: =VLOOKUP($B65,[1]EQ!$A57:$L5873,5,0) -> 1038.5 | M65: =VLOOKUP($B65,[1]EQ!$A$4:$I$3070,9,0)/100000 -> 2.24877
A66: 57 | B66: CROMPTON | C66: =VLOOKUP($B66,[1]EQ!$A58:$L5874,6,0) -> 421.55 | D66: 420.77 | E66: 417.78 | F66: 414.02 | G66: 411.03 | H66: 424.53 | I66: 427.52 | J66: 431.28 | K66: =VLOOKUP($B66,[1]EQ!$A58:$L5874,4,0) -> 423.75 | L66: =VLOOKUP($B66,[1]EQ!$A58:$L5874,5,0) -> 417 | M66: =VLOOKUP($B66,[1]EQ!$A$4:$I$3070,9,0)/100000 -> 10.8709
A67: 58 | B67: CUMMINSIND | C67: =VLOOKUP($B67,[1]EQ!$A59:$L5875,6,0) -> 1220.95 | D67: 1222.70 | E67: 1212.25 | F67: 1203.55 | G67: 1193.10 | H67: 1231.40 | I67: 1241.85 | J67: 1250.55 | K67: =VLOOKUP($B67,[1]EQ!$A59:$L5875,4,0) -> 1233.15 | L67: =VLOOKUP($B67,[1]EQ!$A59:$L5875,5,0) -> 1214 | M67: =VLOOKUP($B67,[1]EQ!$A$4:$I$3070,9,0)/100000 -> 2.58428
A68: 59 | B68: DLF | C68: =VLOOKUP($B68,[1]EQ!$A60:$L5876,6,0) -> 409.6 | D68: 405.53 | E68: 399.87 | F68: 390.13 | G68: 384.47 | H68: 415.27 | I68: 420.93 | J68: 430.67 | K68: =VLOOKUP($B68,[1]EQ!$A60:$L5876,4,0) -> 411.2 | L68: =VLOOKUP($B68,[1]EQ!$A60:$L5876,5,0) -> 395.8 | M68: =VLOOKUP($B68,[1]EQ!$A$4:$I$3070,9,0)/100000 -> 94.96756
A69: 60 | B69: DABUR | C69: =VLOOKUP($B69,[1]EQ!$A61:$L5877,6,0) -> 570.4 | D69: 572.52 | E69: 566.43 | F69: 562.47 | G69: 556.38 | H69: 576.48 | I69: 582.57 | J69: 586.53 | K69: =VLOOKUP($B69,[1]EQ!$A61:$L5877,4,0) -> 578.6 | L69: =VLOOKUP($B69,[1]EQ!$A61:$L5877,5,0) -> 568.55 | M69: =VLOOKUP($B69,[1]EQ!$A$4:$I$3070,9,0)/100000 -> 8.35551
A70: 61 | B70: DALBHARAT | C70: =VLOOKUP($B70,[1]EQ!$A62:$L5878,6,0) -> 1692.65 | D70: 1680.65 | E70: 1662.30 | F70: 1631.95 | G70: 1613.60 | H70: 1711.00 | I70: 1729.35 | J70: 1759.70 | K70: =VLOOKUP($B70,[1]EQ!$A62:$L5878,4,0) -> 1699 | L70: =VLOOKUP($B70,[1]EQ!$A62:$L5878,5,0) -> 1650.3 | M70: =VLOOKUP($B70,[1]EQ!$A$4:$I$3070,9,0)/100000 -> 3.61721
A71: 62 | B71: DEEPAKNTR | C71: =VLOOKUP($B71,[1]EQ!$A63:$L5879,6,0) -> 2178.4 | D71: 2136.13 | E71: 2087.27 | F71: 1996.13 | G71: 1947.27 | H71: 2227.27 | I71: 2276.13 | J71: 2367.27 | K71: =VLOOKUP($B71,[1]EQ!$A63:$L5879,4,0) -> 2185 | L71: =VLOOKUP($B71,[1]EQ!$A63:$L5879,5,0) -> 2045 | M71: =VLOOKUP($B71,[1]EQ!$A$4:$I$3070,9,0)/100000 -> 26.86496
A72: 63 | B72: DIVISLAB | C72: =VLOOKUP($B72,[1]EQ!$A64:$L5880,6,0) -> 3678 | D72: 3656.33 | E72: 3624.67 | F72: 3571.33 | G72: 3539.67 | H72: 3709.67 | I72: 3741.33 | J72: 3794.67 | K72: =VLOOKUP($B72,[1]EQ!$A64:$L5880,4,0) -> 3688 | L72: =VLOOKUP($B72,[1]EQ!$A64:$L5880,5,0) -> 3603 | M72: =VLOOKUP($B72,[1]EQ!$A$4:$I$3070,9,0)/100000 -> 4.69042
A73: 64 | B73: DIXON | C73: =VLOOKUP($B73,[1]EQ!$A65:$L5881,6,0) -> 4497.55 | D73: 4516.85 | E73: 4453.70 | F73: 4409.85 | G73: 4346.70 | H73: 4560.70 | I73: 4623.85 | J73: 4667.70 | K73: =VLOOKUP($B73,[1]EQ!$A65:$L5881,4,0) -> 4580 | L73: =VLOOKUP($B73,[1]EQ!$A65:$L5881,5,0) -> 4473 | M73: =VLOOKUP($B73,[1]EQ!$A$4:$I$3070,9,0)/100000 -> 2.43129
A74: 65 | B74: LALPATHLAB | C74: =VLOOKUP($B74,[1]EQ!$A66:$L5882,6,0) -> 2496.1 | D74: 2506.03 | E74: 2480.07 | F74: 2464.03 | G74: 2438.07 | H74: 2522.07 | I74: 2548.03 | J74: 2564.07 | K74: =VLOOKUP($B74,[1]EQ!$A66:$L5882,4,0) -> 2532 | L74: =VLOOKUP($B74,[1]EQ!$A66:$L5882,5,0) -> 2490 | M74: =VLOOKUP($B74,[1]EQ!$A$4:$I$3070,9,0)/100000 -> 1.38021
A75: 66 | B75: DRREDDY | C75: =VLOOKUP($B75,[1]EQ!$A67:$L5883,6,0) -> 4261.15 | D75: =(C75+K75+L75)/3 -> 4268.62 | E75: =+(D75*2)-K75 -> 4237.23 | F75: =+D75-K75+L75 -> 4213.32 | G75: =L75-2*(K75-D75) -> 4181.93 | H75: =(D75*2)-L75 -> 4292.53 | I75: =+D75+K75-L75 -> 4323.92 | J75: =K75+2*(D75-L75) -> 4347.83 | K75: =VLOOKUP($B75,[1]EQ!$A67:$L5883,4,0) -> 4300 | L75: =VLOOKUP($B75,[1]EQ!$A67:$L5883,5,0) -> 4244.7 | M75: =VLOOKUP($B75,[1]EQ!$A$4:$I$3070,9,0)/100000 -> 2.52549
A76: 67 | B76: EICHERMOT | C76: =VLOOKUP($B76,[1]EQ!$A68:$L5884,6,0) -> 3538.95 | D76: 3519.02 | E76: 3485.03 | F76: 3431.12 | G76: 3397.13 | H76: 3572.93 | I76: 3606.92 | J76: 3660.83 | K76: =VLOOKUP($B76,[1]EQ!$A68:$L5884,4,0) -> 3553 | L76: =VLOOKUP($B76,[1]EQ!$A68:$L5884,5,0) -> 3465.1 | M76: =VLOOKUP($B76,[1]EQ!$A$4:$I$3070,9,0)/100000 -> 7.61569
A77: 68 | B77: EMAMILTD | C77: =VLOOKUP($B77,[1]EQ!$A69:$L5885,6,0) -> 503 | D77: 503.83 | E77: 498.32 | F77: 493.63 | G77: 488.12 | H77: 508.52 | I77: 514.03 | J77: 518.72 | K77: =VLOOKUP($B77,[1]EQ!$A69:$L5885,4,0) -> 509.35 | L77: =VLOOKUP($B77,[1]EQ!$A69:$L5885,5,0) -> 499.15 | M77: =VLOOKUP($B77,[1]EQ!$A$4:$I$3070,9,0)/100000 -> 1.68744
A78: 69 | B78: ESCORTS | C78: =VLOOKUP($B78,[1]EQ!$A70:$L5886,6,0) -> 1988.95 | D78: 2000.75 | E78: 1971.60 | F78: 1954.25 | G78: 1925.10 | H78: 2018.10 | I78: 2047.25 | J78: 2064.60 | K78: =VLOOKUP($B78,[1]EQ!$A70:$L5886,4,0) -> 2029.9 | L78: =VLOOKUP($B78,[1]EQ!$A70:$L5886,5,0) -> 1983.4 | M78: =VLOOKUP($B78,[1]EQ!$A$4:$I$3070,9,0)/100000 -> 3.29913
A79: 70 | B79: EXIDEIND | C79: =VLOOKUP($B79,[1]EQ!$A71:$L5887,6,0) -> 174.35 | D79: 174.13 | E79: 171.82 | F79: 169.28 | G79: 166.97 | H79: 176.67 | I79: 178.98 | J79: 181.52 | K79: =VLOOKUP($B79,[1]EQ!$A71:$L5887,4,0) -> 176.45 | L79: =VLOOKUP($B79,[1]EQ!$A71:$L5887,5,0) -> 171.6 | M79: =VLOOKUP($B79,[1]EQ!$A$4:$I$3070,9,0)/100000 -> 44.62912
A80: 71 | B80: NYKAA | C80: =VLOOKUP($B80,[1]EQ!$A72:$L5888,6,0) -> 1339.5 | D80: 1342.98 | E80: 1328.22 | F80: 1316.93 | G80: 1302.17 | H80: 1354.27 | I80: 1369.03 | J80: 1380.32 | K80: =VLOOKUP($B80,[1]EQ!$A72:$L5888,4,0) -> 1357.75 | L80: =VLOOKUP($B80,[1]EQ!$A72:$L5888,5,0) -> 1331.7 | M80: =VLOOKUP($B80,[1]EQ!$A$4:$I$3070,9,0)/100000 -> 1.86763
A81: 72 | B81: FEDERALBNK | C81: =VLOOKUP($B81,[1]EQ!$A73:$L5889,6,0) -> 119.8 | D81: 119.85 | E81: 118.95 | F81: 118.10 | G81: 117.20 | H81: 120.70 | I81: 121.60 | J81: 122.45 | K81: =VLOOKUP($B81,[1]EQ!$A73:$L5889,4,0) -> 120.75 | L81: =VLOOKUP($B81,[1]EQ!$A73:$L5889,5,0) -> 119 | M81: =VLOOKUP($B81,[1]EQ!$A$4:$I$3070,9,0)/100000 -> 101.26462
A82: 73 | B82: FORTIS | C82: =VLOOKUP($B82,[1]EQ!$A74:$L5890,6,0) -> 292.4 | D82: 291.40 | E82: 289.00 | F82: 285.60 | G82: 283.20 | H82: 294.80 | I82: 297.20 | J82: 300.60 | K82: =VLOOKUP($B82,[1]EQ!$A74:$L5890,4,0) -> 293.8 | L82: =VLOOKUP($B82,[1]EQ!$A74:$L5890,5,0) -> 288 | M82: =VLOOKUP($B82,[1]EQ!$A$4:$I$3070,9,0)/100000 -> 5.69953
A83: 74 | B83: GAIL | C83: =VLOOKUP($B83,[1]EQ!$A75:$L5891,6,0) -> 92.75 | D83: 92.73 | E83: 92.37 | F83: 91.98 | G83: 91.62 | H83: 93.12 | I83: 93.48 | J83: 93.87 | K83: =VLOOKUP($B83,[1]EQ!$A75:$L5891,4,0) -> 93.1 | L83: =VLOOKUP($B83,[1]EQ!$A75:$L5891,5,0) -> 92.35 | M83: =VLOOKUP($B83,[1]EQ!$A$4:$I$3070,9,0)/100000 -> 65.81257
A84: 75 | B84: GLAND | C84: =VLOOKUP($B84,[1]EQ!$A76:$L5892,6,0) -> 2361.4 | D84: 2373.38 | E84: 2341.77 | F84: 2322.13 | G84: 2290.52 | H84: 2393.02 | I84: 2424.63 | J84: 2444.27 | K84: =VLOOKUP($B84,[1]EQ!$A76:$L5892,4,0) -> 2405 | L84: =VLOOKUP($B84,[1]EQ!$A76:$L5892,5,0) -> 2353.75 | M84: =VLOOKUP($B84,[1]EQ!$A$4:$I$3070,9,0)/100000 -> 1.9276
A85: 76 | B85: GLENMARK | C85: =VLOOKUP($B85,[1]EQ!$A77:$L5893,6,0) -> 389.7 | D85: 390.10 | E85: 386.75 | F85: 383.80 | G85: 380.45 | H85: 393.05 | I85: 396.40 | J85: 399.35 | K85: =VLOOKUP($B85,[1]EQ!$A77:$L5893,4,0) -> 393.45 | L85: =VLOOKUP($B85,[1]EQ!$A77:$L5893,5,0) -> 387.15 | M85: =VLOOKUP($B85,[1]EQ!$A$4:$I$3070,9,0)/100000 -> 8.08559
A86: 77 | B86: GODREJCP | C86: =VLOOKUP($B86,[1]EQ!$A78:$L5894,6,0) -> 948 | D86: 947.80 | E86: 939.60 | F86: 931.20 | G86: 923.00 | H86: 956.20 | I86: 964.40 | J86: 972.80 | K86: =VLOOKUP($B86,[1]EQ!$A78:$L5894,4,0) -> 956 | L86: =VLOOKUP($B86,[1]EQ!$A78:$L5894,5,0) -> 939.4 | M86: =VLOOKUP($B86,[1]EQ!$A$4:$I$3070,9,0)/100000 -> 7.50369
A87: 78 | B87: GODREJPROP | C87: =VLOOKUP($B87,[1]EQ!$A79:$L5895,6,0) -> 1459.6 | D87: 1451.70 | E87: 1419.90 | F87: 1380.20 | G87: 1348.40 | H87: 1491.40 | I87: 1523.20 | J87: 1562.90 | K87: =VLOOKUP($B87,[1]EQ!$A79:$L5895,4,0) -> 1483.5 | L87: =VLOOKUP($B87,[1]EQ!$A79:$L5895,5,0) -> 1412 | M87: =VLOOKUP($B87,[1]EQ!$A$4:$I$3070,9,0)/100000 -> 12.61085
A88: 79 | B88: GRASIM | C88: =VLOOKUP($B88,[1]EQ!$A80:$L5896,6,0) -> 1768.45 | D88: 1762.48 | E88: 1752.97 | F88: 1737.48 | G88: 1727.97 | H88: 1777.97 | I88: 1787.48 | J88: 1802.97 | K88: =VLOOKUP($B88,[1]EQ!$A80:$L5896,4,0) -> 1772 | L88: =VLOOKUP($B88,[1]EQ!$A80:$L5896,5,0) -> 1747 | M88: =VLOOKUP($B88,[1]EQ!$A$4:$I$3070,9,0)/100000 -> 4.18421
A89: 80 | B89: GUJGASLTD | C89: =VLOOKUP($B89,[1]EQ!$A81:$L5897,6,0) -> 512.45 | D89: 511.02 | E89: 504.63 | F89: 496.82 | G89: 490.43 | H89: 518.83 | I89: 525.22 | J89: 533.03 | K89: =VLOOKUP($B89,[1]EQ!$A81:$L5897,4,0) -> 517.4 | L89: =VLOOKUP($B89,[1]EQ!$A81:$L5897,5,0) -> 503.2 | M89: =VLOOKUP($B89,[1]EQ!$A$4:$I$3070,9,0)/100000 -> 12.07344
A90: 81 | B90: GSPL | C90: =VLOOKUP($B90,[1]EQ!$A82:$L5898,6,0) -> 252.6 | D90: 253.40 | E90: 249.65 | F90: 246.70 | G90: 242.95 | H90: 256.35 | I90: 260.10 | J90: 263.05 | K90: =VLOOKUP($B90,[1]EQ!$A82:$L5898,4,0) -> 257.15 | L90: =VLOOKUP($B90,[1]EQ!$A82:$L5898,5,0) -> 250.45 | M90: =VLOOKUP($B90,[1]EQ!$A$4:$I$3070,9,0)/100000 -> 16.0882
A91: 82 | B91: HCLTECH | C91: =VLOOKUP($B91,[1]EQ!$A83:$L5899,6,0) -> 955.55 | D91: 957.52 | E91: 951.53 | F91: 947.52 | G91: 941.53 | H91: 961.53 | I91: 967.52 | J91: 971.53 | K91: =VLOOKUP($B91,[1]EQ!$A83:$L5899,4,0) -> 963.5 | L91: =VLOOKUP($B91,[1]EQ!$A83:$L5899,5,0) -> 953.5 | M91: =VLOOKUP($B91,[1]EQ!$A$4:$I$3070,9,0)/100000 -> 25.17615
A92: 83 | B92: HDFCAMC | C92: =VLOOKUP($B92,[1]EQ!$A84:$L5900,6,0) -> 2037.4 | D92: 2037.48 | E92: 2020.47 | F92: 2003.53 | G92: 1986.52 | H92: 2054.42 | I92: 2071.43 | J92: 2088.37 | K92: =VLOOKUP($B92,[1]EQ!$A84:$L5900,4,0) -> 2054.5 | L92: =VLOOKUP($B92,[1]EQ!$A84:$L5900,5,0) -> 2020.55 | M92: =VLOOKUP($B92,[1]EQ!$A$4:$I$3070,9,0)/100000 -> 1.58643
A93: 84 | B93: HDFCBANK | C93: =VLOOKUP($B93,[1]EQ!$A85:$L5901,6,0) -> 1493.55 | D93: 1495.85 | E93: 1487.70 | F93: 1481.85 | G93: 1473.70 | H93: 1501.70 | I93: 1509.85 | J93: 1515.70 | K93: =VLOOKUP($B93,[1]EQ!$A85:$L5901,4,0) -> 1504 | L93: =VLOOKUP($B93,[1]EQ!$A85:$L5901,5,0) -> 1490 | M93: =VLOOKUP($B93,[1]EQ!$A$4:$I$3070,9,0)/100000 -> 55.40246
A94: 85 | B94: HDFCLIFE | C94: =VLOOKUP($B94,[1]EQ!$A86:$L5902,6,0) -> 578.55 | D94: 578.45 | E94: 572.90 | F94: 567.25 | G94: 561.70 | H94: 584.10 | I94: 589.65 | J94: 595.30 | K94: =VLOOKUP($B94,[1]EQ!$A86:$L5902,4,0) -> 584 | L94: =VLOOKUP($B94,[1]EQ!$A86:$L5902,5,0) -> 572.8 | M94: =VLOOKUP($B94,[1]EQ!$A$4:$I$3070,9,0)/100000 -> 20.143
A95: 86 | B95: HAVELLS | C95: =VLOOKUP($B95,[1]EQ!$A87:$L5903,6,0) -> 1383.55 | D95: 1373.40 | E95: 1358.90 | F95: 1334.25 | G95: 1319.75 | H95: 1398.05 | I95: 1412.55 | J95: 1437.20 | K95: =VLOOKUP($B95,[1]EQ!$A87:$L5903,4,0) -> 1387.9 | L95: =VLOOKUP($B95,[1]EQ!$A87:$L5903,5,0) -> 1348.75 | M95: =VLOOKUP($B95,[1]EQ!$A$4:$I$3070,9,0)/100000 -> 4.84016
A96: 87 | B96: HEROMOTOCO | C96: =VLOOKUP($B96,[1]EQ!$A88:$L5904,6,0) -> 2857.9 | D96: 2856.38 | E96: 2842.87 | F96: 2827.83 | G96: 2814.32 | H96: 2871.42 | I96: 2884.93 | J96: 2899.97 | K96: =VLOOKUP($B96,[1]EQ!$A88:$L5904,4,0) -> 2869.9 | L96: =VLOOKUP($B96,[1]EQ!$A88:$L5904,5,0) -> 2841.35 | M96: =VLOOKUP($B96,[1]EQ!$A$4:$I$3070,9,0)/100000 -> 3.13906
A97: 88 | B97: HINDALCO | C97: =VLOOKUP($B97,[1]EQ!$A89:$L5905,6,0) -> 431.15 | D97: 430.90 | E97: 428.90 | F97: 426.65 | G97: 424.65 | H97: 433.15 | I97: 435.15 | J97: 437.40 | K97: =VLOOKUP($B97,[1]EQ!$A89:$L5905,4,0) -> 432.9 | L97: =VLOOKUP($B97,[1]EQ!$A89:$L5905,5,0) -> 428.65 | M97: =VLOOKUP($B97,[1]EQ!$A$4:$I$3070,9,0)/100000 -> 55.30132
A98: 89 | B98: HAL | C98: =VLOOKUP($B98,[1]EQ!$A90:$L5906,6,0) -> 2614 | D98: 2566.58 | E98: 2494.82 | F98: 2375.63 | G98: 2303.87 | H98: 2685.77 | I98: 2757.53 | J98: 2876.72 | K98: =VLOOKUP($B98,[1]EQ!$A90:$L5906,4,0) -> 2638.35 | L98: =VLOOKUP($B98,[1]EQ!$A90:$L5906,5,0) -> 2447.4 | M98: =VLOOKUP($B98,[1]EQ!$A$4:$I$3070,9,0)/100000 -> 37.08427
A99: 90 | B99: HINDPETRO | C99: =VLOOKUP($B99,[1]EQ!$A91:$L5907,6,0) -> 250 | D99: 248.95 | E99: 245.55 | F99: 241.10 | G99: 237.70 | H99: 253.40 | I99: 256.80 | J99: 261.25 | K99: =VLOOKUP($B99,[1]EQ!$A91:$L5907,4,0) -> 252.35 | L99: =VLOOKUP($B99,[1]EQ!$A91:$L5907,5,0) -> 244.5 | M99: =VLOOKUP($B99,[1]EQ!$A$4:$I$3070,9,0)/100000 -> 36.02379
A100: 91 | B100: HINDUNILVR | C100: =VLOOKUP($B100,[1]EQ!$A92:$L5908,6,0) -> 2580.4 | D100: 2586.47 | E100: 2567.93 | F100: 2555.47 | G100: 2536.93 | H100: 2598.93 | I100: 2617.47 | J100: 2629.93 | K100: =VLOOKUP($B100,[1]EQ!$A92:$L5908,4,0) -> 2605 | L100: =VLOOKUP($B100,[1]EQ!$A92:$L5908,5,0) -> 2574 | M100: =VLOOKUP($B100,[1]EQ!$A$4:$I$3070,9,0)/100000 -> 15.95709
A101: 92 | B101: HINDZINC | C101: =VLOOKUP($B101,[1]EQ!$A93:$L5909,6,0) -> 289.45 | D101: 290.92 | E101: 286.83 | F101: 284.22 | G101: 280.13 | H101: 293.53 | I101: 297.62 | J101: 300.23 | K101: =VLOOKUP($B101,[1]EQ!$A93:$L5909,4,0) -> 295 | L101: =VLOOKUP($B101,[1]EQ!$A93:$L5909,5,0) -> 288.3 | M101: =VLOOKUP($B101,[1]EQ!$A$4:$I$3070,9,0)/100000 -> 6.62532
A102: 93 | B102: HONAUT | C102: =VLOOKUP($B102,[1]EQ!$A94:$L5910,6,0) -> 41510.75 | D102: 41736.70 | E102: 41174.40 | F102: 40838.05 | G102: 40275.75 | H102: 42073.05 | I102: 42635.35 | J102: 42971.70 | K102: =VLOOKUP($B102,[1]EQ!$A94:$L5910,4,0) -> 42299 | L102: =VLOOKUP($B102,[1]EQ!$A94:$L5910,5,0) -> 41400.35 | M102: =VLOOKUP($B102,[1]EQ!$A$4:$I$3070,9,0)/100000 -> 0.0477
A103: 94 | B103: HDFC | C103: =VLOOKUP($B103,[1]EQ!$A95:$L5911,6,0) -> 2419 | D103: 2423.32 | E103: 2409.78 | F103: 2400.57 | G103: 2387.03 | H103: 2432.53 | I103: 2446.07 | J103: 2455.28 | K103: =VLOOKUP($B103,[1]EQ!$A95:$L5911,4,0) -> 2436.85 | L103: =VLOOKUP($B103,[1]EQ!$A95:$L5911,5,0) -> 2414.1 | M103: =VLOOKUP($B103,[1]EQ!$A$4:$I$3070,9,0)/100000 -> 31.78742
A104: 95 | B104: ICICIBANK | C104: =VLOOKUP($B104,[1]EQ!$A96:$L5912,6,0) -> 907.2 | D104: 906.30 | E104: 903.70 | F104: 900.20 | G104: 897.60 | H104: 909.80 | I104: 912.40 | J104: 915.90 | K104: =VLOOKUP($B104,[1]EQ!$A96:$L5912,4,0) -> 908.9 | L104: =VLOOKUP($B104,[1]EQ!$A96:$L5912,5,0) -> 902.8 | M104: =VLOOKUP($B104,[1]EQ!$A$4:$I$3070,9,0)/100000 -> 60.16978
A105: 96 | B105: ICICIGI | C105: =VLOOKUP($B105,[1]EQ!$A97:$L5913,6,0) -> 1240.4 | D105: 1235.80 | E105: 1221.30 | F105: 1202.20 | G105: 1187.70 | H105: 1254.90 | I105: 1269.40 | J105: 1288.50 | K105: =VLOOKUP($B105,[1]EQ!$A97:$L5913,4,0) -> 1250.3 | L105: =VLOOKUP($B105,[1]EQ!$A97:$L5913,5,0) -> 1216.7 | M105: =VLOOKUP($B105,[1]EQ!$A$4:$I$3070,9,0)/100000 -> 7.06476
A106: 97 | B106: ICICIPRULI | C106: =VLOOKUP($B106,[1]EQ!$A98:$L5914,6,0) -> 588.95 | D106: 588.72 | E106: 582.48 | F106: 576.02 | G106: 569.78 | H106: 595.18 | I106: 601.42 | J106: 607.88 | K106: =VLOOKUP($B106,[1]EQ!$A98:$L5914,4,0) -> 594.95 | L106: =VLOOKUP($B106,[1]EQ!$A98:$L5914,5,0) -> 582.25 | M106: =VLOOKUP($B106,[1]EQ!$A$4:$I$3070,9,0)/100000 -> 9.29506
A107: 98 | B107: ISEC | C107: =VLOOKUP($B107,[1]EQ!$A99:$L5915,6,0) -> 524.6 | D107: 522.93 | E107: 519.97 | F107: 515.33 | G107: 512.37 | H107: 527.57 | I107: 530.53 | J107: 535.17 | K107: =VLOOKUP($B107,[1]EQ!$A99:$L5915,4,0) -> 525.9 | L107: =VLOOKUP($B107,[1]EQ!$A99:$L5915,5,0) -> 518.3 | M107: =VLOOKUP($B107,[1]EQ!$A$4:$I$3070,9,0)/100000 -> 2.40987
A108: 99 | B108: IDBI | C108: =VLOOKUP($B108,[1]EQ!$A100:$L5916,6,0) -> 43.8 | D108: 43.93 | E108: 43.42 | F108: 43.03 | G108: 42.52 | H108: 44.32 | I108: 44.83 | J108: 45.22 | K108: =VLOOKUP($B108,[1]EQ!$A100:$L5916,4,0) -> 44.45 | L108: =VLOOKUP($B108,[1]EQ!$A100:$L5916,5,0) -> 43.55 | M108: =VLOOKUP($B108,[1]EQ!$A$4:$I$3070,9,0)/100000 -> 78.93963
A109: 100 | B109: IDFCFIRSTB | C109: =VLOOKUP($B109,[1]EQ!$A101:$L5917,6,0) -> 50.9 | D109: 50.90 | E109: 50.50 | F109: 50.10 | G109: 49.70 | H109: 51.30 | I109: 51.70 | J109: 52.10 | K109: =VLOOKUP($B109,[1]EQ!$A101:$L5917,4,0) -> 51.3 | L109: =VLOOKUP($B109,[1]EQ!$A101:$L5917,5,0) -> 50.5 | M109: =VLOOKUP($B109,[1]EQ!$A$4:$I$3070,9,0)/100000 -> 163.22659
A110: 101 | B110: ITC | C110: =VLOOKUP($B110,[1]EQ!$A102:$L5918,6,0) -> 330.9 | D110: 331.10 | E110: 329.80 | F110: 328.70 | G110: 327.40 | H110: 332.20 | I110: 333.50 | J110: 334.60 | K110: =VLOOKUP($B110,[1]EQ!$A102:$L5918,4,0) -> 332.4 | L110: =VLOOKUP($B110,[1]EQ!$A102:$L5918,5,0) -> 330 | M110: =VLOOKUP($B110,[1]EQ!$A$4:$I$3070,9,0)/100000 -> 87.12689
A111: 102 | B111: INDIAMART | C111: =VLOOKUP($B111,[1]EQ!$A103:$L5919,6,0) -> 4764.85 | D111: 4778.72 | E111: 4737.13 | F111: 4709.42 | G111: 4667.83 | H111: 4806.43 | I111: 4848.02 | J111: 4875.73 | K111: =VLOOKUP($B111,[1]EQ!$A103:$L5919,4,0) -> 4820.3 | L111: =VLOOKUP($B111,[1]EQ!$A103:$L5919,5,0) -> 4751 | M111: =VLOOKUP($B111,[1]EQ!$A$4:$I$3070,9,0)/100000 -> 0.57125
A112: 103 | B112: INDIANB | C112: =VLOOKUP($B112,[1]EQ!$A104:$L5920,6,0) -> 206.6 | D112: 204.92 | E112: 202.48 | F112: 198.37 | G112: 195.93 | H112: 209.03 | I112: 211.47 | J112: 215.58 | K112: =VLOOKUP($B112,[1]EQ!$A104:$L5920,4,0) -> 207.35 | L112: =VLOOKUP($B112,[1]EQ!$A104:$L5920,5,0) -> 200.8 | M112: =VLOOKUP($B112,[1]EQ!$A$4:$I$3070,9,0)/100000 -> 30.34614
A113: 104 | B113: IEX | C113: =VLOOKUP($B113,[1]EQ!$A105:$L5921,6,0) -> 163.1 | D113: 162.28 | E113: 160.82 | F113: 158.53 | G113: 157.07 | H113: 164.57 | I113: 166.03 | J113: 168.32 | K113: =VLOOKUP($B113,[1]EQ!$A105:$L5921,4,0) -> 163.75 | L113: =VLOOKUP($B113,[1]EQ!$A105:$L5921,5,0) -> 160 | M113: =VLOOKUP($B113,[1]EQ!$A$4:$I$3070,9,0)/100000 -> 95.65914
A114: 105 | B114: INDHOTEL | C114: =VLOOKUP($B114,[1]EQ!$A106:$L5922,6,0) -> 314.95 | D114: 314.53 | E114: 312.62 | F114: 310.28 | G114: 308.37 | H114: 316.87 | I114: 318.78 | J114: 321.12 | K114: =VLOOKUP($B114,[1]EQ!$A106:$L5922,4,0) -> 316.45 | L114: =VLOOKUP($B114,[1]EQ!$A106:$L5922,5,0) -> 312.2 | M114: =VLOOKUP($B114,[1]EQ!$A$4:$I$3070,9,0)/100000 -> 26.82918
A115: 106 | B115: IOC | C115: =VLOOKUP($B115,[1]EQ!$A107:$L5923,6,0) -> 72.65 | D115: 72.52 | E115: 72.08 | F115: 71.52 | G115: 71.08 | H115: 73.08 | I115: 73.52 | J115: 74.08 | K115: =VLOOKUP($B115,[1]EQ!$A107:$L5923,4,0) -> 72.95 | L115: =VLOOKUP($B115,[1]EQ!$A107:$L5923,5,0) -> 71.95 | M115: =VLOOKUP($B115,[1]EQ!$A$4:$I$3070,9,0)/100000 -> 214.63828
A116: 107 | B116: IRCTC | C116: =VLOOKUP($B116,[1]EQ!$A108:$L5924,6,0) -> 721.3 | D116: 719.93 | E116: 714.87 | F116: 708.43 | G116: 703.37 | H116: 726.37 | I116: 731.43 | J116: 737.87 | K116: =VLOOKUP($B116,[1]EQ!$A108:$L5924,4,0) -> 725 | L116: =VLOOKUP($B116,[1]EQ!$A108:$L5924,5,0) -> 713.5 | M116: =VLOOKUP($B116,[1]EQ!$A$4:$I$3070,9,0)/100000 -> 23.18918
A117: 108 | B117: IGL | C117: =VLOOKUP($B117,[1]EQ!$A109:$L5925,6,0) -> 431.2 | D117: 429.10 | E117: 423.20 | F117: 415.20 | G117: 409.30 | H117: 437.10 | I117: 443.00 | J117: 451.00 | K117: =VLOOKUP($B117,[1]EQ!$A109:$L5925,4,0) -> 435 | L117: =VLOOKUP($B117,[1]EQ!$A109:$L5925,5,0) -> 421.1 | M117: =VLOOKUP($B117,[1]EQ!$A$4:$I$3070,9,0)/100000 -> 39.75393
A118: 109 | B118: INDUSTOWER | C118: =VLOOKUP($B118,[1]EQ!$A110:$L5926,6,0) -> 204.8 | D118: 205.18 | E118: 203.57 | F118: 202.33 | G118: 200.72 | H118: 206.42 | I118: 208.03 | J118: 209.27 | K118: =VLOOKUP($B118,[1]EQ!$A110:$L5926,4,0) -> 206.8 | L118: =VLOOKUP($B118,[1]EQ!$A110:$L5926,5,0) -> 203.95 | M118: =VLOOKUP($B118,[1]EQ!$A$4:$I$3070,9,0)/100000 -> 14.71033
A119: 110 | B119: INDUSINDBK | C119: =VLOOKUP($B119,[1]EQ!$A111:$L5927,6,0) -> 1136.85 | D119: 1136.62 | E119: 1128.23 | F119: 1119.62 | G119: 1111.23 | H119: 1145.23 | I119: 1153.62 | J119: 1162.23 | K119: =VLOOKUP($B119,[1]EQ!$A111:$L5927,4,0) -> 1145 | L119: =VLOOKUP($B119,[1]EQ!$A111:$L5927,5,0) -> 1128 | M119: =VLOOKUP($B119,[1]EQ!$A$4:$I$3070,9,0)/100000 -> 19.18731
A120: 111 | B120: NAUKRI | C120: =VLOOKUP($B120,[1]EQ!$A112:$L5928,6,0) -> 4305.65 | D120: 4314.23 | E120: 4280.47 | F120: 4255.28 | G120: 4221.52 | H120: 4339.42 | I120: 4373.18 | J120: 4398.37 | K120: =VLOOKUP($B120,[1]EQ!$A112:$L5928,4,0) -> 4348 | L120: =VLOOKUP($B120,[1]EQ!$A112:$L5928,5,0) -> 4289.05 | M120: =VLOOKUP($B120,[1]EQ!$A$4:$I$3070,9,0)/100000 -> 2.60093
A121: 112 | B121: INFY | C121: =VLOOKUP($B121,[1]EQ!$A113:$L5929,6,0) -> 1536.2 | D121: 1534.42 | E121: 1522.93 | F121: 1509.67 | G121: 1498.18 | H121: 1547.68 | I121: 1559.17 | J121: 1572.43 | K121: =VLOOKUP($B121,[1]EQ!$A113:$L5929,4,0) -> 1545.9 | L121: =VLOOKUP($B121,[1]EQ!$A113:$L5929,5,0) -> 1521.15 | M121: =VLOOKUP($B121,[1]EQ!$A$4:$I$3070,9,0)/100000 -> 54.94819
A122: 113 | B122: INDIGO | C122: =VLOOKUP($B122,[1]EQ!$A114:$L5930,6,0) -> 1927.25 | D122: 1932.08 | E122: 1914.07 | F122: 1900.88 | G122: 1882.87 | H122: 1945.27 | I122: 1963.28 | J122: 1976.47 | K122: =VLOOKUP($B122,[1]EQ!$A114:$L5930,4,0) -> 1950.1 | L122: =VLOOKUP($B122,[1]EQ!$A114:$L5930,5,0) -> 1918.9 | M122: =VLOOKUP($B122,[1]EQ!$A$4:$I$3070,9,0)/100000 -> 6.35908
A123: 114 | B123: IPCALAB | C123: =VLOOKUP($B123,[1]EQ!$A115:$L5931,6,0) -> 875 | D123: 877.40 | E123: 869.80 | F123: 864.60 | G123: 857.00 | H123: 882.60 | I123: 890.20 | J123: 895.40 | K123: =VLOOKUP($B123,[1]EQ!$A115:$L5931,4,0) -> 885 | L123: =VLOOKUP($B123,[1]EQ!$A115:$L5931,5,0) -> 872.2 | M123: =VLOOKUP($B123,[1]EQ!$A$4:$I$3070,9,0)/100000 -> 2.96143
A124: 115 | B124: JSWENERGY | C124: =VLOOKUP($B124,[1]EQ!$A116:$L5932,6,0) -> 348.7 | D124: 350.53 | E124: 346.17 | F124: 343.63 | G124: 339.27 | H124: 353.07 | I124: 357.43 | J124: 359.97 | K124: =VLOOKUP($B124,[1]EQ!$A116:$L5932,4,0) -> 354.9 | L124: =VLOOKUP($B124,[1]EQ!$A116:$L5932,5,0) -> 348 | M124: =VLOOKUP($B124,[1]EQ!$A$4:$I$3070,9,0)/100000 -> 7.85552
A125: 116 | B125: JSWSTEEL | C125: =VLOOKUP($B125,[1]EQ!$A117:$L5933,6,0) -> 686.55 | D125: 687.47 | E125: 680.53 | F125: 674.52 | G125: 667.58 | H125: 693.48 | I125: 700.42 | J125: 706.43 | K125: =VLOOKUP($B125,[1]EQ!$A117:$L5933,4,0) -> 694.4 | L125: =VLOOKUP($B125,[1]EQ!$A117:$L5933,5,0) -> 681.45 | M125: =VLOOKUP($B125,[1]EQ!$A$4:$I$3070,9,0)/100000 -> 25.8224
A126: 117 | B126: JINDALSTEL | C126: =VLOOKUP($B126,[1]EQ!$A118:$L5934,6,0) -> 441.45 | D126: 439.05 | E126: 434.40 | F126: 427.35 | G126: 422.70 | H126: 446.10 | I126: 450.75 | J126: 457.80 | K126: =VLOOKUP($B126,[1]EQ!$A118:$L5934,4,0) -> 443.7 | L126: =VLOOKUP($B126,[1]EQ!$A118:$L5934,5,0) -> 432 | M126: =VLOOKUP($B126,[1]EQ!$A$4:$I$3070,9,0)/100000 -> 27.75392
A127: 118 | B127: JUBLFOOD | C127: =VLOOKUP($B127,[1]EQ!$A119:$L5935,6,0) -> 625.15 | D127: 619.45 | E127: 610.90 | F127: 596.65 | G127: 588.10 | H127: 633.70 | I127: 642.25 | J127: 656.50 | K127: =VLOOKUP($B127,[1]EQ!$A119:$L5935,4,0) -> 628 | L127: =VLOOKUP($B127,[1]EQ!$A119:$L5935,5,0) -> 605.2 | M127: =VLOOKUP($B127,[1]EQ!$A$4:$I$3070,9,0)/100000 -> 40.83711
A128: 119 | B128: KOTAKBANK | C128: =VLOOKUP($B128,[1]EQ!$A120:$L5936,6,0) -> 1924 | D128: 1928.58 | E128: 1913.17 | F128: 1902.33 | G128: 1886.92 | H128: 1939.42 | I128: 1954.83 | J128: 1965.67 | K128: =VLOOKUP($B128,[1]EQ!$A120:$L5936,4,0) -> 1944 | L128: =VLOOKUP($B128,[1]EQ!$A120:$L5936,5,0) -> 1917.75 | M128: =VLOOKUP($B128,[1]EQ!$A$4:$I$3070,9,0)/100000 -> 14.83681
A129: 120 | B129: L&TFH | C129: =VLOOKUP($B129,[1]EQ!$A121:$L5937,6,0) -> 80.65 | D129: 80.52 | E129: 79.63 | F129: 78.62 | G129: 77.73 | H129: 81.53 | I129: 82.42 | J129: 83.43 | K129: =VLOOKUP($B129,[1]EQ!$A121:$L5937,4,0) -> 81.4 | L129: =VLOOKUP($B129,[1]EQ!$A121:$L5937,5,0) -> 79.5 | M129: =VLOOKUP($B129,[1]EQ!$A$4:$I$3070,9,0)/100000 -> 45.36036
A130: 121 | B130: LTTS | C130: =VLOOKUP($B130,[1]EQ!$A122:$L5938,6,0) -> 3824.25 | D130: 3811.42 | E130: 3782.83 | F130: 3741.42 | G130: 3712.83 | H130: 3852.83 | I130: 3881.42 | J130: 3922.83 | K130: =VLOOKUP($B130,[1]EQ!$A122:$L5938,4,0) -> 3840 | L130: =VLOOKUP($B130,[1]EQ!$A122:$L5938,5,0) -> 3770 | M130: =VLOOKUP($B130,[1]EQ!$A$4:$I$3070,9,0)/100000 -> 5.32909
A131: 122 | B131: LICHSGFIN | C131: =VLOOKUP($B131,[1]EQ!$A123:$L5939,6,0) -> 437.55 | D131: 438.43 | E131: 435.62 | F131: 433.68 | G131: 430.87 | H131: 440.37 | I131: 443.18 | J131: 445.12 | K131: =VLOOKUP($B131,[1]EQ!$A123:$L5939,4,0) -> 441.25 | L131: =VLOOKUP($B131,[1]EQ!$A123:$L5939,5,0) -> 436.5 | M131: =VLOOKUP($B131,[1]EQ!$A$4:$I$3070,9,0)/100000 -> 12.87799
A132: 123 | B132: LTI | C132: =VLOOKUP($B132,[1]EQ!$A124:$L5940,6,0) -> 4812.1 | D132: 4785.88 | E132: 4733.77 | F132: 4655.43 | G132: 4603.32 | H132: 4864.22 | I132: 4916.33 | J132: 4994.67 | K132: =VLOOKUP($B132,[1]EQ!$A124:$L5940,4,0) -> 4838 | L132: =VLOOKUP($B132,[1]EQ!$A124:$L5940,5,0) -> 4707.55 | M132: =VLOOKUP($B132,[1]EQ!$A$4:$I$3070,9,0)/100000 -> 7.55745
A133: 124 | B133: LT | C133: =VLOOKUP($B133,[1]EQ!$A125:$L5941,6,0) -> 1961.9 | D133: 1958.93 | E133: 1950.87 | F133: 1939.83 | G133: 1931.77 | H133: 1969.97 | I133: 1978.03 | J133: 1989.07 | K133: =VLOOKUP($B133,[1]EQ!$A125:$L5941,4,0) -> 1967 | L133: =VLOOKUP($B133,[1]EQ!$A125:$L5941,5,0) -> 1947.9 | M133: =VLOOKUP($B133,[1]EQ!$A$4:$I$3070,9,0)/100000 -> 7.91708
A134: 125 | B134: LAURUSLABS | C134: =VLOOKUP($B134,[1]EQ!$A126:$L5942,6,0) -> 546.7 | D134: 550.08 | E134: 541.52 | F134: 536.33 | G134: 527.77 | H134: 555.27 | I134: 563.83 | J134: 569.02 | K134: =VLOOKUP($B134,[1]EQ!$A126:$L5942,4,0) -> 558.65 | L134: =VLOOKUP($B134,[1]EQ!$A126:$L5942,5,0) -> 544.9 | M134: =VLOOKUP($B134,[1]EQ!$A$4:$I$3070,9,0)/100000 -> 11.22516
A135: 126 | B135: LUPIN | C135: =VLOOKUP($B135,[1]EQ!$A127:$L5943,6,0) -> 671.65 | D135: 671.37 | E135: 667.93 | F135: 664.22 | G135: 660.78 | H135: 675.08 | I135: 678.52 | J135: 682.23 | K135: =VLOOKUP($B135,[1]EQ!$A127:$L5943,4,0) -> 674.8 | L135: =VLOOKUP($B135,[1]EQ!$A127:$L5943,5,0) -> 667.65 | M135: =VLOOKUP($B135,[1]EQ!$A$4:$I$3070,9,0)/100000 -> 3.15997
A136: 127 | B136: MRF | C136: =VLOOKUP($B136,[1]EQ!$A128:$L5944,6,0) -> 85808.3 | D136: 85319.43 | E136: 84738.87 | F136: 83669.43 | G136: 83088.87 | H136: 86388.87 | I136: 86969.43 | J136: 88038.87 | K136: =VLOOKUP($B136,[1]EQ!$A128:$L5944,4,0) -> 85900 | L136: =VLOOKUP($B136,[1]EQ!$A128:$L5944,5,0) -> 84250 | M136: =VLOOKUP($B136,[1]EQ!$A$4:$I$3070,9,0)/100000 -> 0.08568
A137: 128 | B137: M&MFIN | C137: =VLOOKUP($B137,[1]EQ!$A129:$L5945,6,0) -> 225.45 | D137: 225.22 | E137: 223.58 | F137: 221.72 | G137: 220.08 | H137: 227.08 | I137: 228.72 | J137: 230.58 | K137: =VLOOKUP($B137,[1]EQ!$A129:$L5945,4,0) -> 226.85 | L137: =VLOOKUP($B137,[1]EQ!$A129:$L5945,5,0) -> 223.35 | M137: =VLOOKUP($B137,[1]EQ!$A$4:$I$3070,9,0)/100000 -> 15.39151
A138: 129 | B138: M&M | C138: =VLOOKUP($B138,[1]EQ!$A130:$L5946,6,0) -> 1297.05 | D138: 1302.55 | E138: 1289.50 | F138: 1281.95 | G138: 1268.90 | H138: 1310.10 | I138: 1323.15 | J138: 1330.70 | K138: =VLOOKUP($B138,[1]EQ!$A130:$L5946,4,0) -> 1315.6 | L138: =VLOOKUP($B138,[1]EQ!$A130:$L5946,5,0) -> 1295 | M138: =VLOOKUP($B138,[1]EQ!$A$4:$I$3070,9,0)/100000 -> 30.77887
A139: 130 | B139: MANAPPURAM | C139: =VLOOKUP($B139,[1]EQ!$A131:$L5947,6,0) -> 105.55 | D139: =(C139+K139+L139)/3 -> 105.98 | E139: =+(D139*2)-K139 -> 104.72 | F139: =+D139-K139+L139 -> 103.88 | G139: =L139-2*(K139-D139) -> 102.62 | H139: =(D139*2)-L139 -> 106.82 | I139: =+D139+K139-L139 -> 108.08 | J139: =K139+2*(D139-L139) -> 108.92 | K139: =VLOOKUP($B139,[1]EQ!$A131:$L5947,4,0) -> 107.25 | L139: =VLOOKUP($B139,[1]EQ!$A131:$L5947,5,0) -> 105.15 | M139: =VLOOKUP($B139,[1]EQ!$A$4:$I$3070,9,0)/100000 -> 49.39304
A140: 131 | B140: MARICO | C140: =VLOOKUP($B140,[1]EQ!$A132:$L5948,6,0) -> 522.3 | D140: 523.03 | E140: 520.27 | F140: 518.23 | G140: 515.47 | H140: 525.07 | I140: 527.83 | J140: 529.87 | K140: =VLOOKUP($B140,[1]EQ!$A132:$L5948,4,0) -> 525.8 | L140: =VLOOKUP($B140,[1]EQ!$A132:$L5948,5,0) -> 521 | M140: =VLOOKUP($B140,[1]EQ!$A$4:$I$3070,9,0)/100000 -> 4.87837
A141: 132 | B141: MARUTI | C141: =VLOOKUP($B141,[1]EQ!$A133:$L5949,6,0) -> 8927.65 | D141: 8947.98 | E141: 8883.67 | F141: 8839.68 | G141: 8775.37 | H141: 8991.97 | I141: 9056.28 | J141: 9100.27 | K141: =VLOOKUP($B141,[1]EQ!$A133:$L5949,4,0) -> 9012.3 | L141: =VLOOKUP($B141,[1]EQ!$A133:$L5949,5,0) -> 8904 | M141: =VLOOKUP($B141,[1]EQ!$A$4:$I$3070,9,0)/100000 -> 3.83641
A142: 133 | B142: MFSL | C142: =VLOOKUP($B142,[1]EQ!$A134:$L5950,6,0) -> 786.95 | D142: 791.97 | E142: 778.98 | F142: 771.02 | G142: 758.03 | H142: 799.93 | I142: 812.92 | J142: 820.88 | K142: =VLOOKUP($B142,[1]EQ!$A134:$L5950,4,0) -> 804.95 | L142: =VLOOKUP($B142,[1]EQ!$A134:$L5950,5,0) -> 784 | M142: =VLOOKUP($B142,[1]EQ!$A$4:$I$3070,9,0)/100000 -> 6.03961
A143: 134 | B143: MAXHEALTH | C143: =VLOOKUP($B143,[1]EQ!$A135:$L5951,6,0) -> 422.25 | D143: 420.82 | E143: 414.63 | F143: 407.02 | G143: 400.83 | H143: 428.43 | I143: 434.62 | J143: 442.23 | K143: =VLOOKUP($B143,[1]EQ!$A135:$L5951,4,0) -> 427 | L143: =VLOOKUP($B143,[1]EQ!$A135:$L5951,5,0) -> 413.2 | M143: =VLOOKUP($B143,[1]EQ!$A$4:$I$3070,9,0)/100000 -> 28.02046
A144: 135 | B144: METROPOLIS | C144: =VLOOKUP($B144,[1]EQ!$A136:$L5952,6,0) -> 1499.55 | D144: 1492.68 | E144: 1480.92 | F144: 1462.28 | G144: 1450.52 | H144: 1511.32 | I144: 1523.08 | J144: 1541.72 | K144: =VLOOKUP($B144,[1]EQ!$A136:$L5952,4,0) -> 1504.45 | L144: =VLOOKUP($B144,[1]EQ!$A136:$L5952,5,0) -> 1474.05 | M144: =VLOOKUP($B144,[1]EQ!$A$4:$I$3070,9,0)/100000 -> 2.32872
A145: 136 | B145: MINDTREE | C145: =VLOOKUP($B145,[1]EQ!$A137:$L5953,6,0) -> 3392.45 | D145: 3376.73 | E145: 3344.72 | F145: 3296.98 | G145: 3264.97 | H145: 3424.47 | I145: 3456.48 | J145: 3504.22 | K145: =VLOOKUP($B145,[1]EQ!$A137:$L5953,4,0) -> 3408.75 | L145: =VLOOKUP($B145,[1]EQ!$A137:$L5953,5,0) -> 3329 | M145: =VLOOKUP($B145,[1]EQ!$A$4:$I$3070,9,0)/100000 -> 6.96388
A146: 137 | B146: MPHASIS | C146: =VLOOKUP($B146,[1]EQ!$A138:$L5954,6,0) -> 2160.6 | D146: 2160.20 | E146: 2141.55 | F146: 2122.50 | G146: 2103.85 | H146: 2179.25 | I146: 2197.90 | J146: 2216.95 | K146: =VLOOKUP($B146,[1]EQ!$A138:$L5954,4,0) -> 2178.85 | L146: =VLOOKUP($B146,[1]EQ!$A138:$L5954,5,0) -> 2141.15 | M146: =VLOOKUP($B146,[1]EQ!$A$4:$I$3070,9,0)/100000 -> 5.38099
A147: 138 | B147: MUTHOOTFIN | C147: =VLOOKUP($B147,[1]EQ!$A139:$L5955,6,0) -> 1046.15 | D147: 1049.53 | E147: 1039.57 | F147: 1032.98 | G147: 1023.02 | H147: 1056.12 | I147: 1066.08 | J147: 1072.67 | K147: =VLOOKUP($B147,[1]EQ!$A139:$L5955,4,0) -> 1059.5 | L147: =VLOOKUP($B147,[1]EQ!$A139:$L5955,5,0) -> 1042.95 | M147: =VLOOKUP($B147,[1]EQ!$A$4:$I$3070,9,0)/100000 -> 3.99366
A148: 139 | B148: NMDC | C148: =VLOOKUP($B148,[1]EQ!$A140:$L5956,6,0) -> 126.5 | D148: 125.93 | E148: 125.07 | F148: 123.63 | G148: 122.77 | H148: 127.37 | I148: 128.23 | J148: 129.67 | K148: =VLOOKUP($B148,[1]EQ!$A140:$L5956,4,0) -> 126.8 | L148: =VLOOKUP($B148,[1]EQ!$A140:$L5956,5,0) -> 124.5 | M148: =VLOOKUP($B148,[1]EQ!$A$4:$I$3070,9,0)/100000 -> 85.90251
A149: 140 | B149: NTPC | C149: =VLOOKUP($B149,[1]EQ!$A141:$L5957,6,0) -> 166.4 | D149: 166.67 | E149: 165.23 | F149: 164.07 | G149: 162.63 | H149: 167.83 | I149: 169.27 | J149: 170.43 | K149: =VLOOKUP($B149,[1]EQ!$A141:$L5957,4,0) -> 168.1 | L149: =VLOOKUP($B149,[1]EQ!$A141:$L5957,5,0) -> 165.5 | M149: =VLOOKUP($B149,[1]EQ!$A$4:$I$3070,9,0)/100000 -> 154.69466
A150: 141 | B150: NATIONALUM | C150: =VLOOKUP($B150,[1]EQ!$A142:$L5958,6,0) -> 81.25 | D150: 81.05 | E150: 80.70 | F150: 80.15 | G150: 79.80 | H150: 81.60 | I150: 81.95 | J150: 82.50 | K150: =VLOOKUP($B150,[1]EQ!$A142:$L5958,4,0) -> 81.4 | L150: =VLOOKUP($B150,[1]EQ!$A142:$L5958,5,0) -> 80.5 | M150: =VLOOKUP($B150,[1]EQ!$A$4:$I$3070,9,0)/100000 -> 109.23381
A151: 142 | B151: NAVINFLUOR | C151: =VLOOKUP($B151,[1]EQ!$A143:$L5959,6,0) -> 4662.25 | D151: 4574.40 | E151: 4468.80 | F151: 4275.35 | G151: 4169.75 | H151: 4767.85 | I151: 4873.45 | J151: 5066.90 | K151: =VLOOKUP($B151,[1]EQ!$A143:$L5959,4,0) -> 4680 | L151: =VLOOKUP($B151,[1]EQ!$A143:$L5959,5,0) -> 4380.95 | M151: =VLOOKUP($B151,[1]EQ!$A$4:$I$3070,9,0)/100000 -> 6.16082
A152: 143 | B152: NESTLEIND | C152: =VLOOKUP($B152,[1]EQ!$A144:$L5960,6,0) -> 18968.2 | D152: 19006.08 | E152: 18852.22 | F152: 18736.23 | G152: 18582.37 | H152: 19122.07 | I152: 19275.93 | J152: 19391.92 | K152: =VLOOKUP($B152,[1]EQ!$A144:$L5960,4,0) -> 19159.95 | L152: =VLOOKUP($B152,[1]EQ!$A144:$L5960,5,0) -> 18890.1 | M152: =VLOOKUP($B152,[1]EQ!$A$4:$I$3070,9,0)/100000 -> 0.4356
A153: 144 | B153: NAM-INDIA | C153: =VLOOKUP($B153,[1]EQ!$A145:$L5961,6,0) -> 297.65 | D153: 297.65 | E153: 295.30 | F153: 292.95 | G153: 290.60 | H153: 300.00 | I153: 302.35 | J153: 304.70 | K153: =VLOOKUP($B153,[1]EQ!$A145:$L5961,4,0) -> 300 | L153: =VLOOKUP($B153,[1]EQ!$A145:$L5961,5,0) -> 295.3 | M153: =VLOOKUP($B153,[1]EQ!$A$4:$I$3070,9,0)/100000 -> 2.82087
A154: 145 | B154: OBEROIRLTY | C154: =VLOOKUP($B154,[1]EQ!$A146:$L5962,6,0) -> 1059.1 | D154: 1049.68 | E154: 1031.57 | F154: 1004.03 | G154: 985.92 | H154: 1077.22 | I154: 1095.33 | J154: 1122.87 | K154: =VLOOKUP($B154,[1]EQ!$A146:$L5962,4,0) -> 1067.8 | L154: =VLOOKUP($B154,[1]EQ!$A146:$L5962,5,0) -> 1022.15 | M154: =VLOOKUP($B154,[1]EQ!$A$4:$I$3070,9,0)/100000 -> 18.14243
A155: 146 | B155: ONGC | C155: =VLOOKUP($B155,[1]EQ!$A147:$L5963,6,0) -> 134 | D155: 134.33 | E155: 133.27 | F155: 132.53 | G155: 131.47 | H155: 135.07 | I155: 136.13 | J155: 136.87 | K155: =VLOOKUP($B155,[1]EQ!$A147:$L5963,4,0) -> 135.4 | L155: =VLOOKUP($B155,[1]EQ!$A147:$L5963,5,0) -> 133.6 | M155: =VLOOKUP($B155,[1]EQ!$A$4:$I$3070,9,0)/100000 -> 135.00202
A156: 147 | B156: OIL | C156: =VLOOKUP($B156,[1]EQ!$A148:$L5964,6,0) -> 196.2 | D156: 195.95 | E156: 194.45 | F156: 192.70 | G156: 191.20 | H156: 197.70 | I156: 199.20 | J156: 200.95 | K156: =VLOOKUP($B156,[1]EQ!$A148:$L5964,4,0) -> 197.45 | L156: =VLOOKUP($B156,[1]EQ!$A148:$L5964,5,0) -> 194.2 | M156: =VLOOKUP($B156,[1]EQ!$A$4:$I$3070,9,0)/100000 -> 13.02268
A157: 148 | B157: PAYTM | C157: =VLOOKUP($B157,[1]EQ!$A149:$L5965,6,0) -> 736.65 | D157: 736.55 | E157: 725.10 | F157: 713.55 | G157: 702.10 | H157: 748.10 | I157: 759.55 | J157: 771.10 | K157: =VLOOKUP($B157,[1]EQ!$A149:$L5965,4,0) -> 748 | L157: =VLOOKUP($B157,[1]EQ!$A149:$L5965,5,0) -> 725 | M157: =VLOOKUP($B157,[1]EQ!$A$4:$I$3070,9,0)/100000 -> 15.11858
A158: 149 | B158: OFSS | C158: =VLOOKUP($B158,[1]EQ!$A150:$L5966,6,0) -> 3208.5 | D158: 3202.83 | E158: 3185.67 | F158: 3162.83 | G158: 3145.67 | H158: 3225.67 | I158: 3242.83 | J158: 3265.67 | K158: =VLOOKUP($B158,[1]EQ!$A150:$L5966,4,0) -> 3220 | L158: =VLOOKUP($B158,[1]EQ!$A150:$L5966,5,0) -> 3180 | M158: =VLOOKUP($B158,[1]EQ!$A$4:$I$3070,9,0)/100000 -> 0.84569
A159: 150 | B159: POLICYBZR | C159: =VLOOKUP($B159,[1]EQ!$A151:$L5967,6,0) -> 505.05 | D159: 507.88 | E159: 497.77 | F159: 490.48 | G159: 480.37 | H159: 515.17 | I159: 525.28 | J159: 532.57 | K159: =VLOOKUP($B159,[1]EQ!$A151:$L5967,4,0) -> 518 | L159: =VLOOKUP($B159,[1]EQ!$A151:$L5967,5,0) -> 500.6 | M159: =VLOOKUP($B159,[1]EQ!$A$4:$I$3070,9,0)/100000 -> 6.89953
A160: 151 | B160: PIIND | C160: =VLOOKUP($B160,[1]EQ!$A152:$L5968,6,0) -> 3272.2 | D160: 3275.38 | E160: 3241.77 | F160: 3211.33 | G160: 3177.72 | H160: 3305.82 | I160: 3339.43 | J160: 3369.87 | K160: =VLOOKUP($B160,[1]EQ!$A152:$L5968,4,0) -> 3309 | L160: =VLOOKUP($B160,[1]EQ!$A152:$L5968,5,0) -> 3244.95 | M160: =VLOOKUP($B160,[1]EQ!$A$4:$I$3070,9,0)/100000 -> 2.48024
A161: 152 | B161: PAGEIND | C161: =VLOOKUP($B161,[1]EQ!$A153:$L5969,6,0) -> 49079.9 | D161: 49202.78 | E161: 48763.77 | F161: 48447.63 | G161: 48008.62 | H161: 49518.92 | I161: 49957.93 | J161: 50274.07 | K161: =VLOOKUP($B161,[1]EQ!$A153:$L5969,4,0) -> 49641.8 | L161: =VLOOKUP($B161,[1]EQ!$A153:$L5969,5,0) -> 48886.65 | M161: =VLOOKUP($B161,[1]EQ!$A$4:$I$3070,9,0)/100000 -> 0.19795
A162: 153 | B162: PERSISTENT | C162: =VLOOKUP($B162,[1]EQ!$A154:$L5970,6,0) -> 3421.9 | D162: 3435.47 | E162: 3392.43 | F162: 3362.97 | G162: 3319.93 | H162: 3464.93 | I162: 3507.97 | J162: 3537.43 | K162: =VLOOKUP($B162,[1]EQ!$A154:$L5970,4,0) -> 3478.5 | L162: =VLOOKUP($B162,[1]EQ!$A154:$L5970,5,0) -> 3406 | M162: =VLOOKUP($B162,[1]EQ!$A$4:$I$3070,9,0)/100000 -> 3.34257
A163: 154 | B163: PETRONET | C163: =VLOOKUP($B163,[1]EQ!$A155:$L5971,6,0) -> 218.75 | D163: 218.35 | E163: 217.45 | F163: 216.15 | G163: 215.25 | H163: 219.65 | I163: 220.55 | J163: 221.85 | K163: =VLOOKUP($B163,[1]EQ!$A155:$L5971,4,0) -> 219.25 | L163: =VLOOKUP($B163,[1]EQ!$A155:$L5971,5,0) -> 217.05 | M163: =VLOOKUP($B163,[1]EQ!$A$4:$I$3070,9,0)/100000 -> 4.93375
A164: 155 | B164: PIDILITIND | C164: =VLOOKUP($B164,[1]EQ!$A156:$L5972,6,0) -> 2857.6 | D164: 2860.52 | E164: 2842.08 | F164: 2826.57 | G164: 2808.13 | H164: 2876.03 | I164: 2894.47 | J164: 2909.98 | K164: =VLOOKUP($B164,[1]EQ!$A156:$L5972,4,0) -> 2878.95 | L164: =VLOOKUP($B164,[1]EQ!$A156:$L5972,5,0) -> 2845 | M164: =VLOOKUP($B164,[1]EQ!$A$4:$I$3070,9,0)/100000 -> 1.65314
A165: 156 | B165: PEL | C165: =VLOOKUP($B165,[1]EQ!$A157:$L5973,6,0) -> 1019.15 | D165: 1021.98 | E165: 1011.22 | F165: 1003.28 | G165: 992.52 | H165: 1029.92 | I165: 1040.68 | J165: 1048.62 | K165: =VLOOKUP($B165,[1]EQ!$A157:$L5973,4,0) -> 1032.75 | L165: =VLOOKUP($B165,[1]EQ!$A157:$L5973,5,0) -> 1014.05 | M165: =VLOOKUP($B165,[1]EQ!$A$4:$I$3070,9,0)/100000 -> 7.64741
A166: 157 | B166: POLYCAB | C166: =VLOOKUP($B166,[1]EQ!$A158:$L5974,6,0) -> 2549.7 | D166: 2547.83 | E166: 2531.67 | F166: 2513.63 | G166: 2497.47 | H166: 2565.87 | I166: 2582.03 | J166: 2600.07 | K166: =VLOOKUP($B166,[1]EQ!$A158:$L5974,4,0) -> 2564 | L166: =VLOOKUP($B166,[1]EQ!$A158:$L5974,5,0) -> 2529.8 | M166: =VLOOKUP($B166,[1]EQ!$A$4:$I$3070,9,0)/100000 -> 1.2832
A167: 158 | B167: PFC | C167: =VLOOKUP($B167,[1]EQ!$A159:$L5975,6,0) -> 115.6 | D167: 116.00 | E167: 114.45 | F167: 113.30 | G167: 111.75 | H167: 117.15 | I167: 118.70 | J167: 119.85 | K167: =VLOOKUP($B167,[1]EQ!$A159:$L5975,4,0) -> 117.55 | L167: =VLOOKUP($B167,[1]EQ!$A159:$L5975,5,0) -> 114.85 | M167: =VLOOKUP($B167,[1]EQ!$A$4:$I$3070,9,0)/100000 -> 49.60858
A168: 159 | B168: POWERGRID | C168: =VLOOKUP($B168,[1]EQ!$A160:$L5976,6,0) -> 223.95 | D168: 223.62 | E168: 222.53 | F168: 221.12 | G168: 220.03 | H168: 225.03 | I168: 226.12 | J168: 227.53 | K168: =VLOOKUP($B168,[1]EQ!$A160:$L5976,4,0) -> 224.7 | L168: =VLOOKUP($B168,[1]EQ!$A160:$L5976,5,0) -> 222.2 | M168: =VLOOKUP($B168,[1]EQ!$A$4:$I$3070,9,0)/100000 -> 65.8419
A169: 160 | B169: PRESTIGE | C169: =VLOOKUP($B169,[1]EQ!$A161:$L5977,6,0) -> 479.15 | D169: 477.70 | E169: 472.45 | F169: 465.75 | G169: 460.50 | H169: 484.40 | I169: 489.65 | J169: 496.35 | K169: =VLOOKUP($B169,[1]EQ!$A161:$L5977,4,0) -> 482.95 | L169: =VLOOKUP($B169,[1]EQ!$A161:$L5977,5,0) -> 471 | M169: =VLOOKUP($B169,[1]EQ!$A$4:$I$3070,9,0)/100000 -> 4.68837
A170: 161 | B170: PGHH | C170: =VLOOKUP($B170,[1]EQ!$A162:$L5978,6,0) -> 14660.6 | D170: 14727.37 | E170: 14499.98 | F170: 14339.37 | G170: 14111.98 | H170: 14887.98 | I170: 15115.37 | J170: 15275.98 | K170: =VLOOKUP($B170,[1]EQ!$A162:$L5978,4,0) -> 14954.75 | L170: =VLOOKUP($B170,[1]EQ!$A162:$L5978,5,0) -> 14566.75 | M170: =VLOOKUP($B170,[1]EQ!$A$4:$I$3070,9,0)/100000 -> 0.05958
A171: 162 | B171: PNB | C171: =VLOOKUP($B171,[1]EQ!$A163:$L5979,6,0) -> 40.1 | D171: 39.82 | E171: 39.33 | F171: 38.57 | G171: 38.08 | H171: 40.58 | I171: 41.07 | J171: 41.83 | K171: =VLOOKUP($B171,[1]EQ!$A163:$L5979,4,0) -> 40.3 | L171: =VLOOKUP($B171,[1]EQ!$A163:$L5979,5,0) -> 39.05 | M171: =VLOOKUP($B171,[1]EQ!$A$4:$I$3070,9,0)/100000 -> 614.36082
A172: 163 | B172: RECLTD | C172: =VLOOKUP($B172,[1]EQ!$A164:$L5980,6,0) -> 106 | D172: 105.98 | E172: 105.37 | F172: 104.73 | G172: 104.12 | H172: 106.62 | I172: 107.23 | J172: 107.87 | K172: =VLOOKUP($B172,[1]EQ!$A164:$L5980,4,0) -> 106.6 | L172: =VLOOKUP($B172,[1]EQ!$A164:$L5980,5,0) -> 105.35 | M172: =VLOOKUP($B172,[1]EQ!$A$4:$I$3070,9,0)/100000 -> 30.73061
A173: 164 | B173: RELIANCE | C173: =VLOOKUP($B173,[1]EQ!$A165:$L5981,6,0) -> 2598.05 | D173: 2593.53 | E173: 2575.07 | F173: 2552.08 | G173: 2533.62 | H173: 2616.52 | I173: 2634.98 | J173: 2657.97 | K173: =VLOOKUP($B173,[1]EQ!$A165:$L5981,4,0) -> 2612 | L173: =VLOOKUP($B173,[1]EQ!$A165:$L5981,5,0) -> 2570.55 | M173: =VLOOKUP($B173,[1]EQ!$A$4:$I$3070,9,0)/100000 -> 34.31445
A174: 165 | B174: SBICARD | C174: =VLOOKUP($B174,[1]EQ!$A166:$L5982,6,0) -> 949.75 | D174: 949.00 | E174: 944.75 | F174: 939.75 | G174: 935.50 | H174: 954.00 | I174: 958.25 | J174: 963.25 | K174: =VLOOKUP($B174,[1]EQ!$A166:$L5982,4,0) -> 953.25 | L174: =VLOOKUP($B174,[1]EQ!$A166:$L5982,5,0) -> 944 | M174: =VLOOKUP($B174,[1]EQ!$A$4:$I$3070,9,0)/100000 -> 7.02008
A175: 166 | B175: SBILIFE | C175: =VLOOKUP($B175,[1]EQ!$A167:$L5983,6,0) -> 1306 | D175: 1304.02 | E175: 1297.03 | F175: 1288.07 | G175: 1281.08 | H175: 1312.98 | I175: 1319.97 | J175: 1328.93 | K175: =VLOOKUP($B175,[1]EQ!$A167:$L5983,4,0) -> 1311 | L175: =VLOOKUP($B175,[1]EQ!$A167:$L5983,5,0) -> 1295.05 | M175: =VLOOKUP($B175,[1]EQ!$A$4:$I$3070,9,0)/100000 -> 10.02755
A176: 167 | B176: SRF | C176: =VLOOKUP($B176,[1]EQ!$A168:$L5984,6,0) -> 2727.2 | D176: 2704.60 | E176: 2669.60 | F176: 2612.00 | G176: 2577.00 | H176: 2762.20 | I176: 2797.20 | J176: 2854.80 | K176: =VLOOKUP($B176,[1]EQ!$A168:$L5984,4,0) -> 2739.6 | L176: =VLOOKUP($B176,[1]EQ!$A168:$L5984,5,0) -> 2647 | M176: =VLOOKUP($B176,[1]EQ!$A$4:$I$3070,9,0)/100000 -> 10.56499
A177: 168 | B177: SHREECEM | C177: =VLOOKUP($B177,[1]EQ!$A169:$L5985,6,0) -> 24135.1 | D177: 24346.10 | E177: 23692.20 | F177: 23249.30 | G177: 22595.40 | H177: 24789.00 | I177: 25442.90 | J177: 25885.80 | K177: =VLOOKUP($B177,[1]EQ!$A169:$L5985,4,0) -> 25000 | L177: =VLOOKUP($B177,[1]EQ!$A169:$L5985,5,0) -> 23903.2 | M177: =VLOOKUP($B177,[1]EQ!$A$4:$I$3070,9,0)/100000 -> 1.74699
A178: 169 | B178: SRTRANSFIN | C178: =VLOOKUP($B178,[1]EQ!$A170:$L5986,6,0) -> 1328.5 | D178: 1324.28 | E178: 1314.22 | F178: 1299.93 | G178: 1289.87 | H178: 1338.57 | I178: 1348.63 | J178: 1362.92 | K178: =VLOOKUP($B178,[1]EQ!$A170:$L5986,4,0) -> 1334.35 | L178: =VLOOKUP($B178,[1]EQ!$A170:$L5986,5,0) -> 1310 | M178: =VLOOKUP($B178,[1]EQ!$A$4:$I$3070,9,0)/100000 -> 9.49073
A179: 170 | B179: SIEMENS | C179: =VLOOKUP($B179,[1]EQ!$A171:$L5987,6,0) -> 2965 | D179: 2949.75 | E179: 2917.50 | F179: 2870.00 | G179: 2837.75 | H179: 2997.25 | I179: 3029.50 | J179: 3077.00 | K179: =VLOOKUP($B179,[1]EQ!$A171:$L5987,4,0) -> 2982 | L179: =VLOOKUP($B179,[1]EQ!$A171:$L5987,5,0) -> 2902.25 | M179: =VLOOKUP($B179,[1]EQ!$A$4:$I$3070,9,0)/100000 -> 1.96959
A180: 171 | B180: SONACOMS | C180: =VLOOKUP($B180,[1]EQ!$A172:$L5988,6,0) -> 525.75 | D180: 527.15 | E180: 523.30 | F180: 520.85 | G180: 517.00 | H180: 529.60 | I180: 533.45 | J180: 535.90 | K180: =VLOOKUP($B180,[1]EQ!$A172:$L5988,4,0) -> 531 | L180: =VLOOKUP($B180,[1]EQ!$A172:$L5988,5,0) -> 524.7 | M180: =VLOOKUP($B180,[1]EQ!$A$4:$I$3070,9,0)/100000 -> 12.72764
A181: 172 | B181: SBIN | C181: =VLOOKUP($B181,[1]EQ!$A173:$L5989,6,0) -> 554.9 | D181: 554.92 | E181: 551.23 | F181: 547.57 | G181: 543.88 | H181: 558.58 | I181: 562.27 | J181: 565.93 | K181: =VLOOKUP($B181,[1]EQ!$A173:$L5989,4,0) -> 558.6 | L181: =VLOOKUP($B181,[1]EQ!$A173:$L5989,5,0) -> 551.25 | M181: =VLOOKUP($B181,[1]EQ!$A$4:$I$3070,9,0)/100000 -> 96.77415
A182: 173 | B182: SAIL | C182: =VLOOKUP($B182,[1]EQ!$A174:$L5990,6,0) -> 83.25 | D182: 83.08 | E182: 82.67 | F182: 82.08 | G182: 81.67 | H182: 83.67 | I182: 84.08 | J182: 84.67 | K182: =VLOOKUP($B182,[1]EQ!$A174:$L5990,4,0) -> 83.5 | L182: =VLOOKUP($B182,[1]EQ!$A174:$L5990,5,0) -> 82.5 | M182: =VLOOKUP($B182,[1]EQ!$A$4:$I$3070,9,0)/100000 -> 137.87059
A183: 174 | B183: SUNPHARMA | C183: =VLOOKUP($B183,[1]EQ!$A175:$L5991,6,0) -> 887.7 | D183: 889.32 | E183: 883.48 | F183: 879.27 | G183: 873.43 | H183: 893.53 | I183: 899.37 | J183: 903.58 | K183: =VLOOKUP($B183,[1]EQ!$A175:$L5991,4,0) -> 895.15 | L183: =VLOOKUP($B183,[1]EQ!$A175:$L5991,5,0) -> 885.1 | M183: =VLOOKUP($B183,[1]EQ!$A$4:$I$3070,9,0)/100000 -> 15.71387
A184: 175 | B184: SUNTV | C184: =VLOOKUP($B184,[1]EQ!$A176:$L5992,6,0) -> 520.2 | D184: 518.07 | E184: 514.13 | F184: 508.07 | G184: 504.13 | H184: 524.13 | I184: 528.07 | J184: 534.13 | K184: =VLOOKUP($B184,[1]EQ!$A176:$L5992,4,0) -> 522 | L184: =VLOOKUP($B184,[1]EQ!$A176:$L5992,5,0) -> 512 | M184: =VLOOKUP($B184,[1]EQ!$A$4:$I$3070,9,0)/100000 -> 8.38623
A185: 176 | B185: SYNGENE | C185: =VLOOKUP($B185,[1]EQ!$A177:$L5993,6,0) -> 569.5 | D185: 571.17 | E185: 566.33 | F185: 563.17 | G185: 558.33 | H185: 574.33 | I185: 579.17 | J185: 582.33 | K185: =VLOOKUP($B185,[1]EQ!$A177:$L5993,4,0) -> 576 | L185: =VLOOKUP($B185,[1]EQ!$A177:$L5993,5,0) -> 568 | M185: =VLOOKUP($B185,[1]EQ!$A$4:$I$3070,9,0)/100000 -> 3.51778
A186: 177 | B186: TVSMOTOR | C186: =VLOOKUP($B186,[1]EQ!$A178:$L5994,6,0) -> 1050.5 | D186: 1056.30 | E186: 1041.25 | F186: 1032.00 | G186: 1016.95 | H186: 1065.55 | I186: 1080.60 | J186: 1089.85 | K186: =VLOOKUP($B186,[1]EQ!$A178:$L5994,4,0) -> 1071.35 | L186: =VLOOKUP($B186,[1]EQ!$A178:$L5994,5,0) -> 1047.05 | M186: =VLOOKUP($B186,[1]EQ!$A$4:$I$3070,9,0)/100000 -> 16.77576
A187: 178 | B187: TATACHEM | C187: =VLOOKUP($B187,[1]EQ!$A179:$L5995,6,0) -> 1159.75 | D187: 1146.17 | E187: 1129.13 | F187: 1098.52 | G187: 1081.48 | H187: 1176.78 | I187: 1193.82 | J187: 1224.43 | K187: =VLOOKUP($B187,[1]EQ!$A179:$L5995,4,0) -> 1163.2 | L187: =VLOOKUP($B187,[1]EQ!$A179:$L5995,5,0) -> 1115.55 | M187: =VLOOKUP($B187,[1]EQ!$A$4:$I$3070,9,0)/100000 -> 33.85341
A188: 179 | B188: TATACOMM | C188: =VLOOKUP($B188,[1]EQ!$A180:$L5996,6,0) -> 1254.35 | D188: 1255.70 | E188: 1240.30 | F188: 1226.25 | G188: 1210.85 | H188: 1269.75 | I188: 1285.15 | J188: 1299.20 | K188: =VLOOKUP($B188,[1]EQ!$A180:$L5996,4,0) -> 1271.1 | L188: =VLOOKUP($B188,[1]EQ!$A180:$L5996,5,0) -> 1241.65 | M188: =VLOOKUP($B188,[1]EQ!$A$4:$I$3070,9,0)/100000 -> 3.06515
A189: 180 | B189: TCS | C189: =VLOOKUP($B189,[1]EQ!$A181:$L5997,6,0) -> 3242.95 | D189: 3245.92 | E189: 3222.03 | F189: 3201.12 | G189: 3177.23 | H189: 3266.83 | I189: 3290.72 | J189: 3311.63 | K189: =VLOOKUP($B189,[1]EQ!$A181:$L5997,4,0) -> 3269.8 | L189: =VLOOKUP($B189,[1]EQ!$A181:$L5997,5,0) -> 3225 | M189: =VLOOKUP($B189,[1]EQ!$A$4:$I$3070,9,0)/100000 -> 17.85928
A190: 181 | B190: TATACONSUM | C190: =VLOOKUP($B190,[1]EQ!$A182:$L5998,6,0) -> 825.5 | D190: 825.63 | E190: 820.27 | F190: 815.03 | G190: 809.67 | H190: 830.87 | I190: 836.23 | J190: 841.47 | K190: =VLOOKUP($B190,[1]EQ!$A182:$L5998,4,0) -> 831 | L190: =VLOOKUP($B190,[1]EQ!$A182:$L5998,5,0) -> 820.4 | M190: =VLOOKUP($B190,[1]EQ!$A$4:$I$3070,9,0)/100000 -> 13.00582
A191: 182 | B191: TATAELXSI | C191: =VLOOKUP($B191,[1]EQ!$A183:$L5999,6,0) -> 8885.4 | D191: 8901.80 | E191: 8843.60 | F191: 8801.80 | G191: 8743.60 | H191: 8943.60 | I191: 9001.80 | J191: 9043.60 | K191: =VLOOKUP($B191,[1]EQ!$A183:$L5999,4,0) -> 8960 | L191: =VLOOKUP($B191,[1]EQ!$A183:$L5999,5,0) -> 8860 | M191: =VLOOKUP($B191,[1]EQ!$A$4:$I$3070,9,0)/100000 -> 1.91956
A192: 183 | B192: TATAMOTORS | C192: =VLOOKUP($B192,[1]EQ!$A184:$L6000,6,0) -> 451 | D192: 450.33 | E192: 447.67 | F192: 444.33 | G192: 441.67 | H192: 453.67 | I192: 456.33 | J192: 459.67 | K192: =VLOOKUP($B192,[1]EQ!$A184:$L6000,4,0) -> 453 | L192: =VLOOKUP($B192,[1]EQ!$A184:$L6000,5,0) -> 447 | M192: =VLOOKUP($B192,[1]EQ!$A$4:$I$3070,9,0)/100000 -> 89.62633
A193: 184 | B193: TATAPOWER | C193: =VLOOKUP($B193,[1]EQ!$A185:$L6001,6,0) -> 242.8 | D193: 243.23 | E193: 241.27 | F193: 239.73 | G193: 237.77 | H193: 244.77 | I193: 246.73 | J193: 248.27 | K193: =VLOOKUP($B193,[1]EQ!$A185:$L6001,4,0) -> 245.2 | L193: =VLOOKUP($B193,[1]EQ!$A185:$L6001,5,0) -> 241.7 | M193: =VLOOKUP($B193,[1]EQ!$A$4:$I$3070,9,0)/100000 -> 103.22525
A194: 185 | B194: TATASTEEL | C194: =VLOOKUP($B194,[1]EQ!$A186:$L6002,6,0) -> 107.75 | D194: 107.40 | E194: 106.85 | F194: 105.95 | G194: 105.40 | H194: 108.30 | I194: 108.85 | J194: 109.75 | K194: =VLOOKUP($B194,[1]EQ!$A186:$L6002,4,0) -> 107.95 | L194: =VLOOKUP($B194,[1]EQ!$A186:$L6002,5,0) -> 106.5 | M194: =VLOOKUP($B194,[1]EQ!$A$4:$I$3070,9,0)/100000 -> 408.38533
A195: 186 | B195: TECHM | C195: =VLOOKUP($B195,[1]EQ!$A187:$L6003,6,0) -> 1150.1 | D195: 1151.68 | E195: 1138.37 | F195: 1126.63 | G195: 1113.32 | H195: 1163.42 | I195: 1176.73 | J195: 1188.47 | K195: =VLOOKUP($B195,[1]EQ!$A187:$L6003,4,0) -> 1165 | L195: =VLOOKUP($B195,[1]EQ!$A187:$L6003,5,0) -> 1139.95 | M195: =VLOOKUP($B195,[1]EQ!$A$4:$I$3070,9,0)/100000 -> 52.30075
A196: 187 | B196: RAMCOCEM | C196: =VLOOKUP($B196,[1]EQ!$A188:$L6004,6,0) -> 798.5 | D196: 790.73 | E196: 779.97 | F196: 761.43 | G196: 750.67 | H196: 809.27 | I196: 820.03 | J196: 838.57 | K196: =VLOOKUP($B196,[1]EQ!$A188:$L6004,4,0) -> 801.5 | L196: =VLOOKUP($B196,[1]EQ!$A188:$L6004,5,0) -> 772.2 | M196: =VLOOKUP($B196,[1]EQ!$A$4:$I$3070,9,0)/100000 -> 12.23536
A197: 188 | B197: TITAN | C197: =VLOOKUP($B197,[1]EQ!$A189:$L6005,6,0) -> 2661.15 | D197: 2646.95 | E197: 2624.20 | F197: 2587.25 | G197: 2564.50 | H197: 2683.90 | I197: 2706.65 | J197: 2743.60 | K197: =VLOOKUP($B197,[1]EQ!$A189:$L6005,4,0) -> 2669.7 | L197: =VLOOKUP($B197,[1]EQ!$A189:$L6005,5,0) -> 2610 | M197: =VLOOKUP($B197,[1]EQ!$A$4:$I$3070,9,0)/100000 -> 8.0836
A198: 189 | B198: TORNTPHARM | C198: =VLOOKUP($B198,[1]EQ!$A190:$L6006,6,0) -> 1503.9 | D198: 1509.48 | E198: 1488.42 | F198: 1472.93 | G198: 1451.87 | H198: 1524.97 | I198: 1546.03 | J198: 1561.52 | K198: =VLOOKUP($B198,[1]EQ!$A190:$L6006,4,0) -> 1530.55 | L198: =VLOOKUP($B198,[1]EQ!$A190:$L6006,5,0) -> 1494 | M198: =VLOOKUP($B198,[1]EQ!$A$4:$I$3070,9,0)/100000 -> 4.76856
A199: 190 | B199: TORNTPOWER | C199: =VLOOKUP($B199,[1]EQ!$A191:$L6007,6,0) -> 560.95 | D199: 564.57 | E199: 555.13 | F199: 549.32 | G199: 539.88 | H199: 570.38 | I199: 579.82 | J199: 585.63 | K199: =VLOOKUP($B199,[1]EQ!$A191:$L6007,4,0) -> 574 | L199: =VLOOKUP($B199,[1]EQ!$A191:$L6007,5,0) -> 558.75 | M199: =VLOOKUP($B199,[1]EQ!$A$4:$I$3070,9,0)/100000 -> 5.6598
A200: 191 | B200: TRENT | C200: =VLOOKUP($B200,[1]EQ!$A192:$L6008,6,0) -> 1400.3 | D200: 1401.03 | E200: 1384.27 | F200: 1368.23 | G200: 1351.47 | H200: 1417.07 | I200: 1433.83 | J200: 1449.87 | K200: =VLOOKUP($B200,[1]EQ!$A192:$L6008,4,0) -> 1417.8 | L200: =VLOOKUP($B200,[1]EQ!$A192:$L6008,5,0) -> 1385 | M200: =VLOOKUP($B200,[1]EQ!$A$4:$I$3070,9,0)/100000 -> 7.33357
A201: 192 | B201: TRIDENT | C201: =VLOOKUP($B201,[1]EQ!$A193:$L6009,6,0) -> 39.7 | D201: 39.85 | E201: 39.50 | F201: 39.30 | G201: 38.95 | H201: 40.05 | I201: 40.40 | J201: 40.60 | K201: =VLOOKUP($B201,[1]EQ!$A193:$L6009,4,0) -> 40.2 | L201: =VLOOKUP($B201,[1]EQ!$A193:$L6009,5,0) -> 39.65 | M201: =VLOOKUP($B201,[1]EQ!$A$4:$I$3070,9,0)/100000 -> 64.72425
A202: 193 | B202: UPL | C202: =VLOOKUP($B202,[1]EQ!$A194:$L6010,6,0) -> 756.35 | D202: 753.10 | E202: 747.30 | F202: 738.25 | G202: 732.45 | H202: 762.15 | I202: 767.95 | J202: 777.00 | K202: =VLOOKUP($B202,[1]EQ!$A194:$L6010,4,0) -> 758.9 | L202: =VLOOKUP($B202,[1]EQ!$A194:$L6010,5,0) -> 744.05 | M202: =VLOOKUP($B202,[1]EQ!$A$4:$I$3070,9,0)/100000 -> 22.24393
A203: 194 | B203: ULTRACEMCO | C203: =VLOOKUP($B203,[1]EQ!$A195:$L6011,6,0) -> 6869.6 | D203: =(C203+K203+L203)/3 -> 6836.53 | E203: =+(D203*2)-K203 -> 6773.07 | F203: =+D203-K203+L203 -> 6676.53 | G203: =L203-2*(K203-D203) -> 6613.07 | H203: =(D203*2)-L203 -> 6933.07 | I203: =+D203+K203-L203 -> 6996.53 | J203: =K203+2*(D203-L203) -> 7093.07 | K203: =VLOOKUP($B203,[1]EQ!$A195:$L6011,4,0) -> 6900 | L203: =VLOOKUP($B203,[1]EQ!$A195:$L6011,5,0) -> 6740 | M203: =VLOOKUP($B203,[1]EQ!$A$4:$I$3070,9,0)/100000 -> 4.88043
A204: 195 | B204: UNIONBANK | C204: =VLOOKUP($B204,[1]EQ!$A196:$L6012,6,0) -> 45.15 | D204: 44.73 | E204: 44.07 | F204: 42.98 | G204: 42.32 | H204: 45.82 | I204: 46.48 | J204: 47.57 | K204: =VLOOKUP($B204,[1]EQ!$A196:$L6012,4,0) -> 45.4 | L204: =VLOOKUP($B204,[1]EQ!$A196:$L6012,5,0) -> 43.65 | M204: =VLOOKUP($B204,[1]EQ!$A$4:$I$3070,9,0)/100000 -> 209.69073
A205: 196 | B205: UBL | C205: =VLOOKUP($B205,[1]EQ!$A197:$L6013,6,0) -> 1697.35 | D205: 1694.67 | E205: 1686.33 | F205: 1675.32 | G205: 1666.98 | H205: 1705.68 | I205: 1714.02 | J205: 1725.03 | K205: =VLOOKUP($B205,[1]EQ!$A197:$L6013,4,0) -> 1703 | L205: =VLOOKUP($B205,[1]EQ!$A197:$L6013,5,0) -> 1683.65 | M205: =VLOOKUP($B205,[1]EQ!$A$4:$I$3070,9,0)/100000 -> 0.83806
... 29 more rows

Sheet MidCap Intra
L5: Back To Main Page
A6: FOR INTRA DAY TRADING | K6: =Main!B10 -> 2022-09-13
A9: Sr.no | B9: Scrip | C9: CLOSE RATE | D9: Pivot Point | E9: Supports | H9: Resistances
E10: S1 | F10: S2 | G10: S3 | H10: R1 | I10: R2 | J10: R3 | K10: HIGH | L10: LOW | M10: Total Trade Quanity in Lakhs
A11: 1 | B11: 3MINDIA | C11: 22806.15 | D11: 22818.73 | E11: 22712.47 | F11: 22618.78 | G11: 22512.52 | H11: 22912.42 | I11: 23018.68 | J11: 23112.37 | K11: 22925 | L11: 22725.05 | M11: 0.06215
A12: 2 | B12: ABB | C12: 3329.6 | D12: 3329.95 | E12: 3309.90 | F12: 3290.20 | G12: 3270.15 | H12: 3349.65 | I12: 3369.70 | J12: 3389.40 | K12: 3350 | L12: 3310.25 | M12: 1.79592
A13: 3 | B13: ACC | C13: 2500.85 | D13: 2451.92 | E13: 2389.18 | F13: 2277.52 | G13: 2214.78 | H13: 2563.58 | I13: 2626.32 | J13: 2737.98 | K13: 2514.65 | L13: 2340.25 | M13: 19.90854
A14: 4 | B14: AIAENG | C14: 2612.6 | D14: 2603.48 | E14: 2568.97 | F14: 2525.33 | G14: 2490.82 | H14: 2647.12 | I14: 2681.63 | J14: 2725.27 | K14: 2638 | L14: 2559.85 | M14: 0.41346
A15: 5 | B15: APLAPOLLO | C15: 1010.35 | D15: 1009.68 | E15: 998.37 | F15: 986.38 | G15: 975.07 | H15: 1021.67 | I15: 1032.98 | J15: 1044.97 | K15: 1021 | L15: 997.7 | M15: 3.01052
A16: 6 | B16: AUBANK | C16: 660.75 | D16: 658.52 | E16: 654.48 | F16: 648.22 | G16: 644.18 | H16: 664.78 | I16: 668.82 | J16: 675.08 | K16: 662.55 | L16: 652.25 | M16: 10.50504
A17: 7 | B17: AARTIDRUGS | C17: 464.85 | D17: 466.02 | E17: 460.83 | F17: 456.82 | G17: 451.63 | H17: 470.03 | I17: 475.22 | J17: 479.23 | K17: 471.2 | L17: 462 | M17: 1.29233
A18: 8 | B18: AAVAS | C18: 2308.15 | D18: 2313.23 | E18: 2287.12 | F18: 2266.08 | G18: 2239.97 | H18: 2334.27 | I18: 2360.38 | J18: 2381.42 | K18: 2339.35 | L18: 2292.2 | M18: 0.486
A19: 9 | B19: ABBOTINDIA | C19: 18139.95 | D19: 18193.32 | E19: 18036.63 | F19: 17933.32 | G19: 17776.63 | H19: 18296.63 | I19: 18453.32 | J19: 18556.63 | K19: 18350 | L19: 18090 | M19: 0.15525
A20: 10 | B20: ADANIENT | C20: 3463.8 | D20: 3472.40 | E20: 3449.30 | F20: 3434.80 | G20: 3411.70 | H20: 3486.90 | I20: 3510.00 | J20: 3524.50 | K20: 3495.5 | L20: 3457.9 | M20: 16.47756
A21: 11 | B21: ADANIGREEN | C21: 2355.95 | D21: 2345.98 | E21: 2326.12 | F21: 2296.28 | G21: 2276.42 | H21: 2375.82 | I21: 2395.68 | J21: 2425.52 | K21: 2365.85 | L21: 2316.15 | M21: 9.47489
A22: 12 | B22: ADANIPORTS | C22: 938.5 | D22: 930.50 | E22: 919.00 | F22: 899.50 | G22: 888.00 | H22: 950.00 | I22: 961.50 | J22: 981.00 | K22: 942 | L22: 911 | M22: 125.71292
A23: 13 | B23: ATGL | C23: 3635.4 | D23: 3638.42 | E23: 3596.98 | F23: 3558.57 | G23: 3517.13 | H23: 3676.83 | I23: 3718.27 | J23: 3756.68 | K23: 3679.85 | L23: 3600 | M23: 1.94549
A24: 14 | B24: ADANITRANS | C24: 4006 | D24: 3980.52 | E24: 3916.63 | F24: 3827.27 | G24: 3763.38 | H24: 4069.88 | I24: 4133.77 | J24: 4223.13 | K24: 4044.4 | L24: 3891.15 | M24: 4.25256
A25: 15 | B25: ABCAPITAL | C25: 118.85 | D25: 117.93 | E25: 116.02 | F25: 113.18 | G25: 111.27 | H25: 120.77 | I25: 122.68 | J25: 125.52 | K25: 119.85 | L25: 115.1 | M25: 62.80292
A26: 16 | B26: ABFRL | C26: 324.05 | D26: 325.33 | E26: 321.77 | F26: 319.48 | G26: 315.92 | H26: 327.62 | I26: 331.18 | J26: 333.47 | K26: 328.9 | L26: 323.05 | M26: 18.24015
A27: 17 | B27: ABSLAMC | C27: 494.8 | D27: 495.93 | E27: 488.87 | F27: 482.93 | G27: 475.87 | H27: 501.87 | I27: 508.93 | J27: 514.87 | K27: 503 | L27: 490 | M27: 2.52634
A28: 18 | B28: ADVENZYMES | C28: 276.85 | D28: 278.28 | E28: 274.57 | F28: 272.28 | G28: 268.57 | H28: 280.57 | I28: 284.28 | J28: 286.57 | K28: 282 | L28: 276 | M28: 1.08121
A29: 19 | B29: AEGISCHEM | C29: 275.8 | D29: 278.07 | E29: 273.18 | F29: 270.57 | G29: 265.68 | H29: 280.68 | I29: 285.57 | J29: 288.18 | K29: 282.95 | L29: 275.45 | M29: 3.75399
A30: 20 | B30: AFFLE | C30: 1325.65 | D30: 1331.70 | E30: 1313.40 | F30: 1301.15 | G30: 1282.85 | H30: 1343.95 | I30: 1362.25 | J30: 1374.50 | K30: 1350 | L30: 1319.45 | M30: 3.62645
A31: 21 | B31: AJANTPHARM | C31: 1384.9 | D31: 1381.78 | E31: 1363.12 | F31: 1341.33 | G31: 1322.67 | H31: 1403.57 | I31: 1422.23 | J31: 1444.02 | K31: 1400.45 | L31: 1360 | M31: 0.9583
A32: 22 | B32: APLLTD | C32: 636.05 | D32: 637.27 | E32: 632.98 | F32: 629.92 | G32: 625.63 | H32: 640.33 | I32: 644.62 | J32: 647.68 | K32: 641.55 | L32: 634.2 | M32: 1.06178
A33: 23 | B33: ALKEM | C33: 3205.95 | D33: 3207.78 | E33: 3189.82 | F33: 3173.68 | G33: 3155.72 | H33: 3223.92 | I33: 3241.88 | J33: 3258.02 | K33: 3225.75 | L33: 3191.65 | M33: 0.40336
A34: 24 | B34: ALKYLAMINE | C34: 3030.5 | D34: 3040.83 | E34: 3012.67 | F34: 2994.83 | G34: 2966.67 | H34: 3058.67 | I34: 3086.83 | J34: 3104.67 | K34: 3069 | L34: 3023 | M34: 0.39933
A35: 25 | B35: ALLCARGO | C35: 378.75 | D35: 383.88 | E35: 370.72 | F35: 362.68 | G35: 349.52 | H35: 391.92 | I35: 405.08 | J35: 413.12 | K35: 397.05 | L35: 375.85 | M35: 30.73145
A36: 26 | B36: ALOKINDS | C36: 20.5 | D36: 20.57 | E36: 20.23 | F36: 19.97 | G36: 19.63 | H36: 20.83 | I36: 21.17 | J36: 21.43 | K36: 20.9 | L36: 20.3 | M36: 29.31195
A37: 27 | B37: AMARAJABAT | C37: 547.05 | D37: 543.98 | E37: 539.32 | F37: 531.58 | G37: 526.92 | H37: 551.72 | I37: 556.38 | J37: 564.12 | K37: 548.65 | L37: 536.25 | M37: 7.69721
A38: 28 | B38: AMBER | C38: 2319.35 | D38: 2315.75 | E38: 2299.60 | F38: 2279.85 | G38: 2263.70 | H38: 2335.50 | I38: 2351.65 | J38: 2371.40 | K38: 2331.9 | L38: 2296 | M38: 0.48984
A39: 29 | B39: AMBUJACEM | C39: 475.65 | D39: 465.25 | E39: 451.00 | F39: 426.35 | G39: 412.10 | H39: 489.90 | I39: 504.15 | J39: 528.80 | K39: 479.5 | L39: 440.6 | M39: 277.59936
A40: 30 | B40: ANGELONE | C40: 1594 | D40: 1587.08 | E40: 1569.97 | F40: 1545.93 | G40: 1528.82 | H40: 1611.12 | I40: 1628.23 | J40: 1652.27 | K40: 1604.2 | L40: 1563.05 | M40: 4.96279
A41: 31 | B41: ANURAS | C41: 781.05 | D41: 772.98 | E41: 756.07 | F41: 731.08 | G41: 714.17 | H41: 797.97 | I41: 814.88 | J41: 839.87 | K41: 789.9 | L41: 748 | M41: 4.11113
A42: 32 | B42: APOLLOHOSP | C42: 4481.6 | D42: 4476.82 | E42: 4451.83 | F42: 4422.07 | G42: 4397.08 | H42: 4506.58 | I42: 4531.57 | J42: 4561.33 | K42: 4501.8 | L42: 4447.05 | M42: 3.31303
A43: 33 | B43: APOLLOTYRE | C43: 284 | D43: 280.97 | E43: 276.93 | F43: 269.87 | G43: 265.83 | H43: 288.03 | I43: 292.07 | J43: 299.13 | K43: 285 | L43: 273.9 | M43: 42.82678
A44: 34 | B44: APTUS | C44: 342.7 | D44: 344.30 | E44: 327.85 | F44: 313.00 | G44: 296.55 | H44: 359.15 | I44: 375.60 | J44: 390.45 | K44: 360.75 | L44: 329.45 | M44: 8.09515
A45: 35 | B45: ASAHIINDIA | C45: 642.85 | D45: 656.62 | E45: 623.23 | F45: 603.62 | G45: 570.23 | H45: 676.23 | I45: 709.62 | J45: 729.23 | K45: 690 | L45: 637 | M45: 10.09512
A46: 36 | B46: ASHOKLEY | C46: 165 | D46: 165.60 | E46: 164.00 | F46: 163.00 | G46: 161.40 | H46: 166.60 | I46: 168.20 | J46: 169.20 | K46: 167.2 | L46: 164.6 | M46: 90.42625
A47: 37 | B47: ASIANPAINT | C47: 3432.2 | D47: 3436.28 | E47: 3418.92 | F47: 3405.63 | G47: 3388.27 | H47: 3449.57 | I47: 3466.93 | J47: 3480.22 | K47: 3453.65 | L47: 3423 | M47: 6.4128
A48: 38 | B48: ASTERDM | C48: 246.5 | D48: 248.65 | E48: 243.45 | F48: 240.40 | G48: 235.20 | H48: 251.70 | I48: 256.90 | J48: 259.95 | K48: 253.85 | L48: 245.6 | M48: 4.99523
A49: 39 | B49: ASTRAZEN | C49: 3315.9 | D49: 3249.30 | E49: 3168.60 | F49: 3021.30 | G49: 2940.60 | H49: 3396.60 | I49: 3477.30 | J49: 3624.60 | K49: 3330 | L49: 3102 | M49: 0.84484
A50: 40 | B50: ASTRAL | C50: 2552.2 | D50: 2555.90 | E50: 2521.30 | F50: 2490.40 | G50: 2455.80 | H50: 2586.80 | I50: 2621.40 | J50: 2652.30 | K50: 2590.5 | L50: 2525 | M50: 6.03602
A51: 41 | B51: ATUL | C51: 9611.2 | D51: 9499.15 | E51: 9323.10 | F51: 9035.00 | G51: 8858.95 | H51: 9787.25 | I51: 9963.30 | J51: 10251.40 | K51: 9675.2 | L51: 9211.05 | M51: 0.95545
A52: 42 | B52: AUROPHARMA | C52: 551.15 | D52: 548.52 | E52: 543.53 | F52: 535.92 | G52: 530.93 | H52: 556.13 | I52: 561.12 | J52: 568.73 | K52: 553.5 | L52: 540.9 | M52: 10.82603
A53: 43 | B53: AVANTIFEED | C53: 507.35 | D53: 503.03 | E53: 489.22 | F53: 471.08 | G53: 457.27 | H53: 521.17 | I53: 534.98 | J53: 553.12 | K53: 516.85 | L53: 484.9 | M53: 9.80324
A54: 44 | B54: DMART | C54: 4443.95 | D54: 4439.65 | E54: 4404.30 | F54: 4364.65 | G54: 4329.30 | H54: 4479.30 | I54: 4514.65 | J54: 4554.30 | K54: 4475 | L54: 4400 | M54: 2.52381
A55: 45 | B55: AXISBANK | C55: 801 | D55: 797.60 | E55: 790.20 | F55: 779.40 | G55: 772.00 | H55: 808.40 | I55: 815.80 | J55: 826.60 | K55: 805 | L55: 786.8 | M55: 155.21649
A56: 46 | B56: BASF | C56: 3168.6 | D56: 3178.45 | E56: 3147.70 | F56: 3126.80 | G56: 3096.05 | H56: 3199.35 | I56: 3230.10 | J56: 3251.00 | K56: 3209.2 | L56: 3157.55 | M56: 0.18391
A57: 47 | B57: BSE | C57: 683.9 | D57: 687.07 | E57: 678.88 | F57: 673.87 | G57: 665.68 | H57: 692.08 | I57: 700.27 | J57: 705.28 | K57: 695.25 | L57: 682.05 | M57: 7.32816
A58: 48 | B58: BAJAJ-AUTO | C58: 3870.3 | D58: 3861.70 | E58: 3833.60 | F58: 3796.90 | G58: 3768.80 | H58: 3898.40 | I58: 3926.50 | J58: 3963.20 | K58: 3889.8 | L58: 3825 | M58: 3.69281
A59: 49 | B59: BAJAJELEC | C59: 1203.3 | D59: 1206.12 | E59: 1197.28 | F59: 1191.27 | G59: 1182.43 | H59: 1212.13 | I59: 1220.97 | J59: 1226.98 | K59: 1214.95 | L59: 1200.1 | M59: 0.43919
A60: 50 | B60: BAJFINANCE | C60: 7286.9 | D60: 7264.88 | E60: 7209.87 | F60: 7132.83 | G60: 7077.82 | H60: 7341.92 | I60: 7396.93 | J60: 7473.97 | K60: 7319.9 | L60: 7187.85 | M60: 8.34716
A61: 51 | B61: BAJAJFINSV | C61: 17138.05 | D61: 17203.42 | E61: 16986.83 | F61: 16835.62 | G61: 16619.03 | H61: 17354.63 | I61: 17571.22 | J61: 17722.43 | K61: 17420 | L61: 17052.2 | M61: 4.25082
A62: 52 | B62: BAJAJHLDNG | C62: 6631.75 | D62: 6660.03 | E62: 6526.72 | F62: 6421.68 | G62: 6288.37 | H62: 6765.07 | I62: 6898.38 | J62: 7003.42 | K62: 6793.35 | L62: 6555 | M62: 1.84014
A63: 53 | B63: BALAMINES | C63: 3653.3 | D63: 3676.27 | E63: 3602.23 | F63: 3551.17 | G63: 3477.13 | H63: 3727.33 | I63: 3801.37 | J63: 3852.43 | K63: 3750.3 | L63: 3625.2 | M63: 1.85311
A64: 54 | B64: BALKRISIND | C64: 2000.45 | D64: 2009.82 | E64: 1982.63 | F64: 1964.82 | G64: 1937.63 | H64: 2027.63 | I64: 2054.82 | J64: 2072.63 | K64: 2037 | L64: 1992 | M64: 5.2795
A65: 55 | B65: BALRAMCHIN | C65: 376.75 | D65: 376.68 | E65: 372.97 | F65: 369.18 | G65: 365.47 | H65: 380.47 | I65: 384.18 | J65: 387.97 | K65: 380.4 | L65: 372.9 | M65: 13.00865
A66: 56 | B66: BANDHANBNK | C66: 288.6 | D66: 290.63 | E66: 285.97 | F66: 283.33 | G66: 278.67 | H66: 293.27 | I66: 297.93 | J66: 300.57 | K66: 295.3 | L66: 288 | M66: 54.23112
A67: 57 | B67: BANKBARODA | C67: 138.85 | D67: 139.05 | E67: 138.20 | F67: 137.55 | G67: 136.70 | H67: 139.70 | I67: 140.55 | J67: 141.20 | K67: 139.9 | L67: 138.4 | M67: 124.57738
A68: 58 | B68: BANKINDIA | C68: 52.45 | D68: 52.42 | E68: 52.08 | F68: 51.72 | G68: 51.38 | H68: 52.78 | I68: 53.12 | J68: 53.48 | K68: 52.75 | L68: 52.05 | M68: 42.94747
A69: 59 | B69: MAHABANK | C69: 18.95 | D69: 18.88 | E69: 18.77 | F69: 18.58 | G69: 18.47 | H69: 19.07 | I69: 19.18 | J69: 19.37 | K69: 19 | L69: 18.7 | M69: 34.15024
A70: 60 | B70: BATAINDIA | C70: 1912.3 | D70: 1915.08 | E70: 1902.22 | F70: 1892.13 | G70: 1879.27 | H70: 1925.17 | I70: 1938.03 | J70: 1948.12 | K70: 1927.95 | L70: 1905 | M70: 2.7575
A71: 61 | B71: BAYERCROP | C71: 5233.7 | D71: 5244.60 | E71: 5199.30 | F71: 5164.90 | G71: 5119.60 | H71: 5279.00 | I71: 5324.30 | J71: 5358.70 | K71: 5289.9 | L71: 5210.2 | M71: 0.08945
A72: 62 | B72: BERGEPAINT | C72: 664.5 | D72: 666.52 | E72: 660.23 | F72: 655.97 | G72: 649.68 | H72: 670.78 | I72: 677.07 | J72: 681.33 | K72: 672.8 | L72: 662.25 | M72: 5.47598
A73: 63 | B73: BDL | C73: 838.65 | D73: 831.40 | E73: 819.85 | F73: 801.05 | G73: 789.50 | H73: 850.20 | I73: 861.75 | J73: 880.55 | K73: 842.95 | L73: 812.6 | M73: 23.37491
A74: 64 | B74: BEL | C74: 338.55 | D74: 334.80 | E74: 329.80 | F74: 321.05 | G74: 316.05 | H74: 343.55 | I74: 348.55 | J74: 357.30 | K74: 339.8 | L74: 326.05 | M74: 130.24882
A75: 65 | B75: BHARATFORG | C75: 785 | D75: 790.07 | E75: 778.98 | F75: 772.97 | G75: 761.88 | H75: 796.08 | I75: 807.17 | J75: 813.18 | K75: 801.15 | L75: 784.05 | M75: 15.51719
A76: 66 | B76: BHEL | C76: 63.8 | D76: 63.87 | E76: 63.23 | F76: 62.67 | G76: 62.03 | H76: 64.43 | I76: 65.07 | J76: 65.63 | K76: 64.5 | L76: 63.3 | M76: 209.00641
A77: 67 | B77: BPCL | C77: 342.6 | D77: 341.93 | E77: 338.87 | F77: 335.13 | G77: 332.07 | H77: 345.67 | I77: 348.73 | J77: 352.47 | K77: 345 | L77: 338.2 | M77: 27.03189
A78: 68 | B78: BHARTIARTL | C78: 769.15 | D78: 768.35 | E78: 765.30 | F78: 761.45 | G78: 758.40 | H78: 772.20 | I78: 775.25 | J78: 779.10 | K78: 771.4 | L78: 764.5 | M78: 26.54087
A79: 69 | B79: BIOCON | C79: 303.55 | D79: 303.90 | E79: 302.20 | F79: 300.85 | G79: 299.15 | H79: 305.25 | I79: 306.95 | J79: 308.30 | K79: 305.6 | L79: 302.55 | M79: 14.45662
A80: 70 | B80: BIRLACORPN | C80: 1089.35 | D80: 1087.43 | E80: 1064.92 | F80: 1040.48 | G80: 1017.97 | H80: 1111.87 | I80: 1134.38 | J80: 1158.82 | K80: 1109.95 | L80: 1063 | M80: 1.48662
A81: 71 | B81: BSOFT | C81: 338.05 | D81: 336.25 | E81: 331.30 | F81: 324.55 | G81: 319.60 | H81: 343.00 | I81: 347.95 | J81: 354.70 | K81: 341.2 | L81: 329.5 | M81: 53.57436
A82: 72 | B82: BLUEDART | C82: 8946.7 | D82: 8985.38 | E82: 8881.82 | F82: 8816.93 | G82: 8713.37 | H82: 9050.27 | I82: 9153.83 | J82: 9218.72 | K82: 9088.95 | L82: 8920.5 | M82: 0.18918
A83: 73 | B83: BLUESTARCO | C83: 1143.2 | D83: 1137.07 | E83: 1117.13 | F83: 1091.07 | G83: 1071.13 | H83: 1163.13 | I83: 1183.07 | J83: 1209.13 | K83: 1157 | L83: 1111 | M83: 0.58777
A84: 74 | B84: BBTC | C84: 926.15 | D84: 925.92 | E84: 908.58 | F84: 891.02 | G84: 873.68 | H84: 943.48 | I84: 960.82 | J84: 978.38 | K84: 943.25 | L84: 908.35 | M84: 0.83558
A85: 75 | B85: BORORENEW | C85: 583.15 | D85: 585.88 | E85: 578.77 | F85: 574.38 | G85: 567.27 | H85: 590.27 | I85: 597.38 | J85: 601.77 | K85: 593 | L85: 581.5 | M85: 3.27965
A86: 76 | B86: BOSCHLTD | C86: 17238.95 | D86: 17268.63 | E86: 17172.32 | F86: 17105.68 | G86: 17009.37 | H86: 17335.27 | I86: 17431.58 | J86: 17498.22 | K86: 17364.95 | L86: 17202 | M86: 0.28905
A87: 77 | B87: BRIGADE | C87: 574.55 | D87: 577.03 | E87: 569.07 | F87: 563.58 | G87: 555.62 | H87: 582.52 | I87: 590.48 | J87: 595.97 | K87: 585 | L87: 571.55 | M87: 4.60715
A88: 78 | B88: BCG | C88: 40.5 | D88: 40.75 | E88: 40.10 | F88: 39.70 | G88: 39.05 | H88: 41.15 | I88: 41.80 | J88: 42.20 | K88: 41.4 | L88: 40.35 | M88: 66.18016
A89: 79 | B89: BRITANNIA | C89: 3671.85 | D89: 3670.00 | E89: 3642.05 | F89: 3612.25 | G89: 3584.30 | H89: 3699.80 | I89: 3727.75 | J89: 3757.55 | K89: 3697.95 | L89: 3640.2 | M89: 2.12688
A90: 80 | B90: MAPMYINDIA | C90: 1425.25 | D90: 1410.67 | E90: 1372.68 | F90: 1320.12 | G90: 1282.13 | H90: 1463.23 | I90: 1501.22 | J90: 1553.78 | K90: 1448.65 | L90: 1358.1 | M90: 4.28372
A91: 81 | B91: CCL | C91: 501.55 | D91: 501.53 | E91: 496.07 | F91: 490.58 | G91: 485.12 | H91: 507.02 | I91: 512.48 | J91: 517.97 | K91: 507 | L91: 496.05 | M91: 8.07471
A92: 82 | B92: CESC | C92: 85.45 | D92: 85.10 | E92: 83.55 | F92: 81.65 | G92: 80.10 | H92: 87.00 | I92: 88.55 | J92: 90.45 | K92: 86.65 | L92: 83.2 | M92: 51.81737
A93: 83 | B93: CGPOWER | C93: 229.65 | D93: 230.32 | E93: 226.13 | F93: 222.62 | G93: 218.43 | H93: 233.83 | I93: 238.02 | J93: 241.53 | K93: 234.5 | L93: 226.8 | M93: 42.15323
A94: 84 | B94: CRISIL | C94: 3190.75 | D94: 3203.50 | E94: 3167.25 | F94: 3143.75 | G94: 3107.50 | H94: 3227.00 | I94: 3263.25 | J94: 3286.75 | K94: 3239.75 | L94: 3180 | M94: 0.68213
A95: 85 | B95: CSBBANK | C95: 224.8 | D95: 224.25 | E95: 222.30 | F95: 219.80 | G95: 217.85 | H95: 226.75 | I95: 228.70 | J95: 231.20 | K95: 226.2 | L95: 221.75 | M95: 2.68648
A96: 86 | B96: CANFINHOME | C96: 656.4 | D96: 653.42 | E96: 648.48 | F96: 640.57 | G96: 635.63 | H96: 661.33 | I96: 666.27 | J96: 674.18 | K96: 658.35 | L96: 645.5 | M96: 3.61052
A97: 87 | B97: CANBK | C97: 247.1 | D97: 246.58 | E97: 243.97 | F97: 240.83 | G97: 238.22 | H97: 249.72 | I97: 252.33 | J97: 255.47 | K97: 249.2 | L97: 243.45 | M97: 61.79695
A98: 88 | B98: CAPLIPOINT | C98: 769.2 | D98: 769.52 | E98: 764.03 | F98: 758.87 | G98: 753.38 | H98: 774.68 | I98: 780.17 | J98: 785.33 | K98: 775 | L98: 764.35 | M98: 1.56988
A99: 89 | B99: CGCL | C99: 734.75 | D99: 739.22 | E99: 727.53 | F99: 720.32 | G99: 708.63 | H99: 746.43 | I99: 758.12 | J99: 765.33 | K99: 750.9 | L99: 732 | M99: 1.36386
A100: 90 | B100: CARBORUNIV | C100: 906.05 | D100: 898.67 | E100: 878.93 | F100: 851.82 | G100: 832.08 | H100: 925.78 | I100: 945.52 | J100: 972.63 | K100: 918.4 | L100: 871.55 | M100: 7.75871
A101: 91 | B101: CASTROLIND | C101: 119 | D101: 118.48 | E101: 115.97 | F101: 112.93 | G101: 110.42 | H101: 121.52 | I101: 124.03 | J101: 127.07 | K101: 121 | L101: 115.45 | M101: 44.83074
A102: 92 | B102: CEATLTD | C102: 1388.15 | D102: 1390.37 | E102: 1375.68 | F102: 1363.22 | G102: 1348.53 | H102: 1402.83 | I102: 1417.52 | J102: 1429.98 | K102: 1405.05 | L102: 1377.9 | M102: 0.52364
A103: 93 | B103: CENTRALBK | C103: 20.6 | D103: 20.63 | E103: 20.47 | F103: 20.33 | G103: 20.17 | H103: 20.77 | I103: 20.93 | J103: 21.07 | K103: 20.8 | L103: 20.5 | M103: 38.35187
A104: 94 | B104: CDSL | C104: 1396.85 | D104: 1400.30 | E104: 1385.65 | F104: 1374.45 | G104: 1359.80 | H104: 1411.50 | I104: 1426.15 | J104: 1437.35 | K104: 1414.95 | L104: 1389.1 | M104: 7.1991
A105: 95 | B105: CENTURYPLY | C105: 685.8 | D105: 683.27 | E105: 676.58 | F105: 667.37 | G105: 660.68 | H105: 692.48 | I105: 699.17 | J105: 708.38 | K105: 689.95 | L105: 674.05 | M105: 0.97091
A106: 96 | B106: CENTURYTEX | C106: 937.55 | D106: 928.57 | E106: 914.88 | F106: 892.22 | G106: 878.53 | H106: 951.23 | I106: 964.92 | J106: 987.58 | K106: 942.25 | L106: 905.9 | M106: 3.98064
A107: 97 | B107: CERA | C107: 5864 | D107: 5845.25 | E107: 5735.50 | F107: 5607.00 | G107: 5497.25 | H107: 5973.75 | I107: 6083.50 | J107: 6212.00 | K107: 5955 | L107: 5716.75 | M107: 0.85806
A108: 98 | B108: CHALET | C108: 332.8 | D108: 333.52 | E108: 330.53 | F108: 328.27 | G108: 325.28 | H108: 335.78 | I108: 338.77 | J108: 341.03 | K108: 336.5 | L108: 331.25 | M108: 1.34419
A109: 99 | B109: CHAMBLFERT | C109: 364.35 | D109: 360.45 | E109: 355.90 | F109: 347.45 | G109: 342.90 | H109: 368.90 | I109: 373.45 | J109: 381.90 | K109: 365 | L109: 352 | M109: 35.22284
A110: 100 | B110: CHEMPLASTS | C110: 419.65 | D110: 425.15 | E110: 412.30 | F110: 404.95 | G110: 392.10 | H110: 432.50 | I110: 445.35 | J110: 452.70 | K110: 438 | L110: 417.8 | M110: 10.22361
A111: 101 | B111: CHOLAHLDNG | C111: 663.3 | D111: 662.23 | E111: 655.07 | F111: 646.83 | G111: 639.67 | H111: 670.47 | I111: 677.63 | J111: 685.87 | K111: 669.4 | L111: 654 | M111: 1.70731
A112: 102 | B112: CHOLAFIN | C112: 798.2 | D112: 796.93 | E112: 789.92 | F112: 781.63 | G112: 774.62 | H112: 805.22 | I112: 812.23 | J112: 820.52 | K112: 803.95 | L112: 788.65 | M112: 15.69958
A113: 103 | B113: CIPLA | C113: 1064.75 | D113: 1063.45 | E113: 1058.40 | F113: 1052.05 | G113: 1047.00 | H113: 1069.80 | I113: 1074.85 | J113: 1081.20 | K113: 1068.5 | L113: 1057.1 | M113: 9.36787
A114: 104 | B114: CUB | C114: 183.55 | D114: 182.52 | E114: 180.03 | F114: 176.52 | G114: 174.03 | H114: 186.03 | I114: 188.52 | J114: 192.03 | K114: 185 | L114: 179 | M114: 20.76596
A115: 105 | B115: CLEAN | C115: 1887.6 | D115: 1902.30 | E115: 1867.30 | F115: 1847.00 | G115: 1812.00 | H115: 1922.60 | I115: 1957.60 | J115: 1977.90 | K115: 1937.3 | L115: 1882 | M115: 1.36717
A116: 106 | B116: COALINDIA | C116: 231.5 | D116: 232.85 | E116: 226.65 | F116: 221.80 | G116: 215.60 | H116: 237.70 | I116: 243.90 | J116: 248.75 | K116: 239.05 | L116: 228 | M116: 190.53188
A117: 107 | B117: COCHINSHIP | C117: 390.05 | D117: 390.40 | E117: 385.15 | F117: 380.25 | G117: 375.00 | H117: 395.30 | I117: 400.55 | J117: 405.45 | K117: 395.65 | L117: 385.5 | M117: 8.05969
A118: 108 | B118: COFORGE | C118: 3617.95 | D118: 3619.30 | E118: 3580.75 | F118: 3543.55 | G118: 3505.00 | H118: 3656.50 | I118: 3695.05 | J118: 3732.25 | K118: 3657.85 | L118: 3582.1 | M118: 2.81977
A119: 109 | B119: COLPAL | C119: 1630.9 | D119: 1634.92 | E119: 1623.53 | F119: 1616.17 | G119: 1604.78 | H119: 1642.28 | I119: 1653.67 | J119: 1661.03 | K119: 1646.3 | L119: 1627.55 | M119: 2.81529
A120: 110 | B120: CAMS | C120: 2576.35 | D120: 2551.47 | E120: 2493.93 | F120: 2411.52 | G120: 2353.98 | H120: 2633.88 | I120: 2691.42 | J120: 2773.83 | K120: 2609 | L120: 2469.05 | M120: 5.6559
A121: 111 | B121: CONCOR | C121: 764.85 | D121: 762.95 | E121: 754.90 | F121: 744.95 | G121: 736.90 | H121: 772.90 | I121: 780.95 | J121: 790.90 | K121: 771 | L121: 753 | M121: 37.19126
A122: 112 | B122: COROMANDEL | C122: 1046.5 | D122: 1047.33 | E122: 1037.67 | F122: 1028.83 | G122: 1019.17 | H122: 1056.17 | I122: 1065.83 | J122: 1074.67 | K122: 1057 | L122: 1038.5 | M122: 2.24877
A123: 113 | B123: CREDITACC | C123: 1044.05 | D123: 1040.03 | E123: 1029.47 | F123: 1014.88 | G123: 1004.32 | H123: 1054.62 | I123: 1065.18 | J123: 1079.77 | K123: 1050.6 | L123: 1025.45 | M123: 1.82124
A124: 114 | B124: CROMPTON | C124: 421.55 | D124: 420.77 | E124: 417.78 | F124: 414.02 | G124: 411.03 | H124: 424.53 | I124: 427.52 | J124: 431.28 | K124: 423.75 | L124: 417 | M124: 10.8709
A125: 115 | B125: CUMMINSIND | C125: 1220.95 | D125: 1222.70 | E125: 1212.25 | F125: 1203.55 | G125: 1193.10 | H125: 1231.40 | I125: 1241.85 | J125: 1250.55 | K125: 1233.15 | L125: 1214 | M125: 2.58428
A126: 116 | B126: CYIENT | C126: 871.3 | D126: 871.70 | E126: 863.60 | F126: 855.90 | G126: 847.80 | H126: 879.40 | I126: 887.50 | J126: 895.20 | K126: 879.8 | L126: 864 | M126: 2.05141
A127: 117 | B127: DCMSHRIRAM | C127: 1084.3 | D127: 1083.90 | E127: 1073.30 | F127: 1062.30 | G127: 1051.70 | H127: 1094.90 | I127: 1105.50 | J127: 1116.50 | K127: 1094.5 | L127: 1072.9 | M127: 0.6171
A128: 118 | B128: DLF | C128: 409.6 | D128: 405.53 | E128: 399.87 | F128: 390.13 | G128: 384.47 | H128: 415.27 | I128: 420.93 | J128: 430.67 | K128: 411.2 | L128: 395.8 | M128: 94.96756
A129: 119 | B129: DABUR | C129: 570.4 | D129: 572.52 | E129: 566.43 | F129: 562.47 | G129: 556.38 | H129: 576.48 | I129: 582.57 | J129: 586.53 | K129: 578.6 | L129: 568.55 | M129: 8.35551
A130: 120 | B130: DALBHARAT | C130: 1692.65 | D130: 1680.65 | E130: 1662.30 | F130: 1631.95 | G130: 1613.60 | H130: 1711.00 | I130: 1729.35 | J130: 1759.70 | K130: 1699 | L130: 1650.3 | M130: 3.61721
A131: 121 | B131: DEEPAKNTR | C131: 2178.4 | D131: 2136.13 | E131: 2087.27 | F131: 1996.13 | G131: 1947.27 | H131: 2227.27 | I131: 2276.13 | J131: 2367.27 | K131: 2185 | L131: 2045 | M131: 26.86496
A132: 122 | B132: DELTACORP | C132: 209.45 | D132: 209.62 | E132: 208.83 | F132: 208.22 | G132: 207.43 | H132: 210.23 | I132: 211.02 | J132: 211.63 | K132: 210.4 | L132: 209 | M132: 11.11386
A133: 123 | B133: DEVYANI | C133: 192.65 | D133: 192.95 | E133: 191.20 | F133: 189.75 | G133: 188.00 | H133: 194.40 | I133: 196.15 | J133: 197.60 | K133: 194.7 | L133: 191.5 | M133: 15.30853
A134: 124 | B134: DHANI | C134: 59.1 | D134: 60.52 | E134: 57.63 | F134: 56.17 | G134: 53.28 | H134: 61.98 | I134: 64.87 | J134: 66.33 | K134: 63.4 | L134: 59.05 | M134: 26.35755
A135: 125 | B135: DBL | C135: 248.5 | D135: 249.67 | E135: 242.83 | F135: 237.17 | G135: 230.33 | H135: 255.33 | I135: 262.17 | J135: 267.83 | K135: 256.5 | L135: 244 | M135: 12.56012
A136: 126 | B136: DIVISLAB | C136: 3678 | D136: 3656.33 | E136: 3624.67 | F136: 3571.33 | G136: 3539.67 | H136: 3709.67 | I136: 3741.33 | J136: 3794.67 | K136: 3688 | L136: 3603 | M136: 4.69042
A137: 127 | B137: DIXON | C137: 4497.55 | D137: 4516.85 | E137: 4453.70 | F137: 4409.85 | G137: 4346.70 | H137: 4560.70 | I137: 4623.85 | J137: 4667.70 | K137: 4580 | L137: 4473 | M137: 2.43129
A138: 128 | B138: LALPATHLAB | C138: 2496.1 | D138: 2506.03 | E138: 2480.07 | F138: 2464.03 | G138: 2438.07 | H138: 2522.07 | I138: 2548.03 | J138: 2564.07 | K138: 2532 | L138: 2490 | M138: 1.38021
A139: 129 | B139: DRREDDY | C139: 4261.15 | D139: 4268.62 | E139: 4237.23 | F139: 4213.32 | G139: 4181.93 | H139: 4292.53 | I139: 4323.92 | J139: 4347.83 | K139: 4300 | L139: 4244.7 | M139: 2.52549
A140: 130 | B140: EIDPARRY | C140: 557 | D140: 557.80 | E140: 551.20 | F140: 545.40 | G140: 538.80 | H140: 563.60 | I140: 570.20 | J140: 576.00 | K140: 564.4 | L140: 552 | M140: 1.79712
A141: 131 | B141: EIHOTEL | C141: 187 | D141: 188.88 | E141: 183.82 | F141: 180.63 | G141: 175.57 | H141: 192.07 | I141: 197.13 | J141: 200.32 | K141: 193.95 | L141: 185.7 | M141: 4.72463
A142: 132 | B142: EPL | C142: 173.85 | D142: 174.60 | E142: 172.25 | F142: 170.65 | G142: 168.30 | H142: 176.20 | I142: 178.55 | J142: 180.15 | K142: 176.95 | L142: 173 | M142: 4.48884
A143: 133 | B143: EASEMYTRIP | C143: 395.3 | D143: 396.25 | E143: 390.60 | F143: 385.90 | G143: 380.25 | H143: 400.95 | I143: 406.60 | J143: 411.30 | K143: 401.9 | L143: 391.55 | M143: 10.74034
A144: 134 | B144: EDELWEISS | C144: 67.75 | D144: 67.73 | E144: 65.52 | F144: 63.28 | G144: 61.07 | H144: 69.97 | I144: 72.18 | J144: 74.42 | K144: 69.95 | L144: 65.5 | M144: 76.76175
A145: 135 | B145: EICHERMOT | C145: 3538.95 | D145: 3519.02 | E145: 3485.03 | F145: 3431.12 | G145: 3397.13 | H145: 3572.93 | I145: 3606.92 | J145: 3660.83 | K145: 3553 | L145: 3465.1 | M145: 7.61569
A146: 136 | B146: ELGIEQUIP | C146: 559.45 | D146: 558.75 | E146: 556.50 | F146: 553.55 | G146: 551.30 | H146: 561.70 | I146: 563.95 | J146: 566.90 | K146: 561 | L146: 555.8 | M146: 7.17417
A147: 137 | B147: EMAMILTD | C147: 503 | D147: 503.83 | E147: 498.32 | F147: 493.63 | G147: 488.12 | H147: 508.52 | I147: 514.03 | J147: 518.72 | K147: 509.35 | L147: 499.15 | M147: 1.68744
A148: 138 | B148: ENDURANCE | C148: 1476.6 | D148: 1474.15 | E148: 1463.35 | F148: 1450.10 | G148: 1439.30 | H148: 1487.40 | I148: 1498.20 | J148: 1511.45 | K148: 1484.95 | L148: 1460.9 | M148: 1.00567
A149: 139 | B149: ENGINERSIN | C149: 70.9 | D149: 70.97 | E149: 69.48 | F149: 68.07 | G149: 66.58 | H149: 72.38 | I149: 73.87 | J149: 75.28 | K149: 72.45 | L149: 69.55 | M149: 48.63654
A150: 140 | B150: EQUITAS | C150: 105.2 | D150: 105.67 | E150: 103.83 | F150: 102.47 | G150: 100.63 | H150: 107.03 | I150: 108.87 | J150: 110.23 | K150: 107.5 | L150: 104.3 | M150: 14.58732
A151: 141 | B151: EQUITASBNK | C151: 47.95 | D151: 48.10 | E151: 47.55 | F151: 47.15 | G151: 46.60 | H151: 48.50 | I151: 49.05 | J151: 49.45 | K151: 48.65 | L151: 47.7 | M151: 9.78041
A152: 142 | B152: ERIS | C152: 698.25 | D152: 700.38 | E152: 691.57 | F152: 684.88 | G152: 676.07 | H152: 707.07 | I152: 715.88 | J152: 722.57 | K152: 709.2 | L152: 693.7 | M152: 0.1771
A153: 143 | B153: ESCORTS | C153: 1988.95 | D153: 2000.75 | E153: 1971.60 | F153: 1954.25 | G153: 1925.10 | H153: 2018.10 | I153: 2047.25 | J153: 2064.60 | K153: 2029.9 | L153: 1983.4 | M153: 3.29913
A154: 144 | B154: EXIDEIND | C154: 174.35 | D154: 174.13 | E154: 171.82 | F154: 169.28 | G154: 166.97 | H154: 176.67 | I154: 178.98 | J154: 181.52 | K154: 176.45 | L154: 171.6 | M154: 44.62912
A155: 145 | B155: FDC | C155: 277.3 | D155: 278.12 | E155: 274.18 | F155: 271.07 | G155: 267.13 | H155: 281.23 | I155: 285.17 | J155: 288.28 | K155: 282.05 | L155: 275 | M155: 0.95774
A156: 146 | B156: NYKAA | C156: 1339.5 | D156: 1342.98 | E156: 1328.22 | F156: 1316.93 | G156: 1302.17 | H156: 1354.27 | I156: 1369.03 | J156: 1380.32 | K156: 1357.75 | L156: 1331.7 | M156: 1.86763
A157: 147 | B157: FEDERALBNK | C157: 119.8 | D157: 119.85 | E157: 118.95 | F157: 118.10 | G157: 117.20 | H157: 120.70 | I157: 121.60 | J157: 122.45 | K157: 120.75 | L157: 119 | M157: 101.26462
A158: 148 | B158: FACT | C158: 126.9 | D158: 127.07 | E158: 125.43 | F158: 123.97 | G158: 122.33 | H158: 128.53 | I158: 130.17 | J158: 131.63 | K158: 128.7 | L158: 125.6 | M158: 1.88041
A159: 149 | B159: FINEORG | C159: 7097.5 | D159: 6950.85 | E159: 6714.75 | F159: 6332.00 | G159: 6095.90 | H159: 7333.60 | I159: 7569.70 | J159: 7952.45 | K159: 7186.95 | L159: 6568.1 | M159: 2.67416
A160: 150 | B160: FINCABLES | C160: 484.95 | D160: 485.58 | E160: 481.27 | F160: 477.58 | G160: 473.27 | H160: 489.27 | I160: 493.58 | J160: 497.27 | K160: 489.9 | L160: 481.9 | M160: 1.22137
A161: 151 | B161: FINPIPE | C161: 149.35 | D161: 150.15 | E161: 147.70 | F161: 146.05 | G161: 143.60 | H161: 151.80 | I161: 154.25 | J161: 155.90 | K161: 152.6 | L161: 148.5 | M161: 3.70489
A162: 152 | B162: FSL | C162: 117.95 | D162: 117.97 | E162: 117.03 | F162: 116.12 | G162: 115.18 | H162: 118.88 | I162: 119.82 | J162: 120.73 | K162: 118.9 | L162: 117.05 | M162: 73.36619
A163: 153 | B163: FORTIS | C163: 292.4 | D163: 291.40 | E163: 289.00 | F163: 285.60 | G163: 283.20 | H163: 294.80 | I163: 297.20 | J163: 300.60 | K163: 293.8 | L163: 288 | M163: 5.69953
A164: 154 | B164: GRINFRA | C164: 1363.05 | D164: 1364.03 | E164: 1327.07 | F164: 1291.08 | G164: 1254.12 | H164: 1400.02 | I164: 1436.98 | J164: 1472.97 | K164: 1401 | L164: 1328.05 | M164: 0.21009
A165: 155 | B165: GAIL | C165: 92.75 | D165: 92.73 | E165: 92.37 | F165: 91.98 | G165: 91.62 | H165: 93.12 | I165: 93.48 | J165: 93.87 | K165: 93.1 | L165: 92.35 | M165: 65.81257
A166: 156 | B166: GMMPFAUDLR | C166: 1906.9 | D166: 1912.72 | E166: 1885.43 | F166: 1863.97 | G166: 1836.68 | H166: 1934.18 | I166: 1961.47 | J166: 1982.93 | K166: 1940 | L166: 1891.25 | M166: 1.92287
A167: 157 | B167: GMRINFRA | C167: 39.3 | D167: 39.42 | E167: 38.93 | F167: 38.57 | G167: 38.08 | H167: 39.78 | I167: 40.27 | J167: 40.63 | K167: 39.9 | L167: 39.05 | M167: 54.21299
A168: 158 | B168: GALAXYSURF | C168: 3393.65 | D168: 3381.18 | E168: 3341.37 | F168: 3289.08 | G168: 3249.27 | H168: 3433.47 | I168: 3473.28 | J168: 3525.57 | K168: 3421 | L168: 3328.9 | M168: 0.31842
A169: 159 | B169: GARFIBRES | C169: 3650.55 | D169: 3660.20 | E169: 3565.65 | F169: 3480.75 | G169: 3386.20 | H169: 3745.10 | I169: 3839.65 | J169: 3924.55 | K169: 3754.75 | L169: 3575.3 | M169: 0.35431
A170: 160 | B170: GICRE | C170: 125.75 | D170: 126.53 | E170: 124.42 | F170: 123.08 | G170: 120.97 | H170: 127.87 | I170: 129.98 | J170: 131.32 | K170: 128.65 | L170: 125.2 | M170: 2.09459
A171: 161 | B171: GLAND | C171: 2361.4 | D171: 2373.38 | E171: 2341.77 | F171: 2322.13 | G171: 2290.52 | H171: 2393.02 | I171: 2424.63 | J171: 2444.27 | K171: 2405 | L171: 2353.75 | M171: 1.9276
A172: 162 | B172: GLAXO | C172: 1420 | D172: 1426.53 | E172: 1411.52 | F172: 1403.03 | G172: 1388.02 | H172: 1435.02 | I172: 1450.03 | J172: 1458.52 | K172: 1441.55 | L172: 1418.05 | M172: 0.82838
A173: 163 | B173: GLS | C173: 440 | D173: 440.27 | E173: 436.28 | F173: 432.57 | G173: 428.58 | H173: 443.98 | I173: 447.97 | J173: 451.68 | K173: 444.25 | L173: 436.55 | M173: 1.52415
A174: 164 | B174: GLENMARK | C174: 389.7 | D174: 390.10 | E174: 386.75 | F174: 383.80 | G174: 380.45 | H174: 393.05 | I174: 396.40 | J174: 399.35 | K174: 393.45 | L174: 387.15 | M174: 8.08559
A175: 165 | B175: GOCOLORS | C175: 1287.5 | D175: 1277.85 | E175: 1261.70 | F175: 1235.90 | G175: 1219.75 | H175: 1303.65 | I175: 1319.80 | J175: 1345.60 | K175: 1294 | L175: 1252.05 | M175: 0.63758
A176: 166 | B176: GODFRYPHLP | C176: 1134.55 | D176: 1133.67 | E176: 1120.53 | F176: 1106.52 | G176: 1093.38 | H176: 1147.68 | I176: 1160.82 | J176: 1174.83 | K176: 1146.8 | L176: 1119.65 | M176: 0.40377
A177: 167 | B177: GODREJAGRO | C177: 546.8 | D177: 540.02 | E177: 531.03 | F177: 515.27 | G177: 506.28 | H177: 555.78 | I177: 564.77 | J177: 580.53 | K177: 549 | L177: 524.25 | M177: 6.0077
A178: 168 | B178: GODREJCP | C178: 948 | D178: 947.80 | E178: 939.60 | F178: 931.20 | G178: 923.00 | H178: 956.20 | I178: 964.40 | J178: 972.80 | K178: 956 | L178: 939.4 | M178: 7.50369
A179: 169 | B179: GODREJIND | C179: 483.4 | D179: 486.15 | E179: 479.35 | F179: 475.30 | G179: 468.50 | H179: 490.20 | I179: 497.00 | J179: 501.05 | K179: 492.95 | L179: 482.1 | M179: 2.46495
A180: 170 | B180: GODREJPROP | C180: 1459.6 | D180: 1451.70 | E180: 1419.90 | F180: 1380.20 | G180: 1348.40 | H180: 1491.40 | I180: 1523.20 | J180: 1562.90 | K180: 1483.5 | L180: 1412 | M180: 12.61085
A181: 171 | B181: GRANULES | C181: 307.6 | D181: 308.48 | E181: 305.42 | F181: 303.23 | G181: 300.17 | H181: 310.67 | I181: 313.73 | J181: 315.92 | K181: 311.55 | L181: 306.3 | M181: 7.7065
A182: 172 | B182: GRAPHITE | C182: 399.75 | D182: 401.52 | E182: 396.78 | F182: 393.82 | G182: 389.08 | H182: 404.48 | I182: 409.22 | J182: 412.18 | K182: 406.25 | L182: 398.55 | M182: 5.2709
A183: 173 | B183: GRASIM | C183: 1768.45 | D183: 1762.48 | E183: 1752.97 | F183: 1737.48 | G183: 1727.97 | H183: 1777.97 | I183: 1787.48 | J183: 1802.97 | K183: 1772 | L183: 1747 | M183: 4.18421
A184: 174 | B184: GESHIP | C184: 513.8 | D184: 518.95 | E184: 505.15 | F184: 496.50 | G184: 482.70 | H184: 527.60 | I184: 541.40 | J184: 550.05 | K184: 532.75 | L184: 510.3 | M184: 4.31414
A185: 175 | B185: GRINDWELL | C185: 2186.65 | D185: 2227.47 | E185: 2131.58 | F185: 2076.52 | G185: 1980.63 | H185: 2282.53 | I185: 2378.42 | J185: 2433.48 | K185: 2323.35 | L185: 2172.4 | M185: 2.59823
A186: 176 | B186: GUJALKALI | C186: 957.5 | D186: 956.48 | E186: 935.02 | F186: 912.53 | G186: 891.07 | H186: 978.97 | I186: 1000.43 | J186: 1022.92 | K186: 977.95 | L186: 934 | M186: 7.87196
A187: 177 | B187: GAEL | C187: 285.25 | D187: 282.75 | E187: 278.50 | F187: 271.75 | G187: 267.50 | H187: 289.50 | I187: 293.75 | J187: 300.50 | K187: 287 | L187: 276 | M187: 7.03378
A188: 178 | B188: FLUOROCHEM | C188: 3620.8 | D188: 3562.77 | E188: 3488.03 | F188: 3355.27 | G188: 3280.53 | H188: 3695.53 | I188: 3770.27 | J188: 3903.03 | K188: 3637.5 | L188: 3430 | M188: 2.72085
A189: 179 | B189: GUJGASLTD | C189: 512.45 | D189: 511.02 | E189: 504.63 | F189: 496.82 | G189: 490.43 | H189: 518.83 | I189: 525.22 | J189: 533.03 | K189: 517.4 | L189: 503.2 | M189: 12.07344
A190: 180 | B190: GNFC | C190: 780.35 | D190: 772.57 | E190: 760.83 | F190: 741.32 | G190: 729.58 | H190: 792.08 | I190: 803.82 | J190: 823.33 | K190: 784.3 | L190: 753.05 | M190: 28.89684
A191: 181 | B191: GPPL | C191: 92.8 | D191: 93.25 | E191: 90.10 | F191: 87.40 | G191: 84.25 | H191: 95.95 | I191: 99.10 | J191: 101.80 | K191: 96.4 | L191: 90.55 | M191: 62.60812
A192: 182 | B192: GSFC | C192: 157.75 | D192: 156.88 | E192: 154.97 | F192: 152.18 | G192: 150.27 | H192: 159.67 | I192: 161.58 | J192: 164.37 | K192: 158.8 | L192: 154.1 | M192: 25.16513
A193: 183 | B193: GSPL | C193: 252.6 | D193: 253.40 | E193: 249.65 | F193: 246.70 | G193: 242.95 | H193: 256.35 | I193: 260.10 | J193: 263.05 | K193: 257.15 | L193: 250.45 | M193: 16.0882
A194: 184 | B194: HEG | C194: 1206.5 | D194: 1210.67 | E194: 1198.33 | F194: 1190.17 | G194: 1177.83 | H194: 1218.83 | I194: 1231.17 | J194: 1239.33 | K194: 1223 | L194: 1202.5 | M194: 1.12314
A195: 185 | B195: HCLTECH | C195: 955.55 | D195: 957.52 | E195: 951.53 | F195: 947.52 | G195: 941.53 | H195: 961.53 | I195: 967.52 | J195: 971.53 | K195: 963.5 | L195: 953.5 | M195: 25.17615
A196: 186 | B196: HDFCAMC | C196: 2037.4 | D196: 2037.48 | E196: 2020.47 | F196: 2003.53 | G196: 1986.52 | H196: 2054.42 | I196: 2071.43 | J196: 2088.37 | K196: 2054.5 | L196: 2020.55 | M196: 1.58643
A197: 187 | B197: HDFCBANK | C197: 1493.55 | D197: 1495.85 | E197: 1487.70 | F197: 1481.85 | G197: 1473.70 | H197: 1501.70 | I197: 1509.85 | J197: 1515.70 | K197: 1504 | L197: 1490 | M197: 55.40246
A198: 188 | B198: HDFCLIFE | C198: 578.55 | D198: 578.45 | E198: 572.90 | F198: 567.25 | G198: 561.70 | H198: 584.10 | I198: 589.65 | J198: 595.30 | K198: 584 | L198: 572.8 | M198: 20.143
A199: 189 | B199: HFCL | C199: 77.9 | D199: 78.62 | E199: 76.88 | F199: 75.87 | G199: 74.13 | H199: 79.63 | I199: 81.37 | J199: 82.38 | K199: 80.35 | L199: 77.6 | M199: 84.62143
A200: 190 | B200: HLEGLAS | C200: 3858.55 | D200: 3895.18 | E200: 3811.37 | F200: 3764.18 | G200: 3680.37 | H200: 3942.37 | I200: 4026.18 | J200: 4073.37 | K200: 3979 | L200: 3848 | M200: 0.15096
A201: 191 | B201: HAPPSTMNDS | C201: 1064.15 | D201: 1070.70 | E201: 1048.50 | F201: 1032.85 | G201: 1010.65 | H201: 1086.35 | I201: 1108.55 | J201: 1124.20 | K201: 1092.9 | L201: 1055.05 | M201: 8.13046
A202: 192 | B202: HATHWAY | C202: 17.95 | D202: 17.98 | E202: 17.82 | F202: 17.68 | G202: 17.52 | H202: 18.12 | I202: 18.28 | J202: 18.42 | K202: 18.15 | L202: 17.85 | M202: 18.28974
A203: 193 | B203: HATSUN | C203: 1116.3 | D203: 1113.62 | E203: 1089.18 | F203: 1062.07 | G203: 1037.63 | H203: 1140.73 | I203: 1165.17 | J203: 1192.28 | K203: 1138.05 | L203: 1086.5 | M203: 0.99294
A204: 194 | B204: HAVELLS | C204: 1383.55 | D204: 1373.40 | E204: 1358.90 | F204: 1334.25 | G204: 1319.75 | H204: 1398.05 | I204: 1412.55 | J204: 1437.20 | K204: 1387.9 | L204: 1348.75 | M204: 4.84016
A205: 195 | B205: HEMIPROP | C205: 104.55 | D205: 104.87 | E205: 103.83 | F205: 103.12 | G205: 102.08 | H205: 105.58 | I205: 106.62 | J205: 107.33 | K205: 105.9 | L205: 104.15 | M205: 6.53695
A206: 196 | B206: HEROMOTOCO | C206: 2857.9 | D206: 2856.38 | E206: 2842.87 | F206: 2827.83 | G206: 2814.32 | H206: 2871.42 | I206: 2884.93 | J206: 2899.97 | K206: 2869.9 | L206: 2841.35 | M206: 3.13906
... 320 more rows

Sheet Bulk Deals
E6: Back To Main Page
A7: Subject : | B7: BULK DEAL | D7: =Main!B10 -> 2022-09-13
A9: Date | B9: Scrip code | C9: Scrip Name | D9: Client Name | E9: Buy / Sell | F9: Quantity Traded | G9: Trade Price / Wt.Avg.trade price | H9: Exchange
A10: 2022-09-12 | B10: 542377 | C10: AARSHYAM | D10: RAKESH KUMAR BANSAL | E10: SELL | F10: 150,000 | G10: 3.52 | H10: BSE
A11: 2022-09-12 | B11: 542377 | C11: AARSHYAM | D11: NNM SECURITIES PVT LTD | E11: BUY | F11: 346,000 | G11: 3.52 | H11: BSE
A12: 2022-09-12 | B12: 542377 | C12: AARSHYAM | D12: SHREYANS LOGISTICS PRIVATE LIMITED | E12: SELL | F12: 200,000 | G12: 3.52 | H12: BSE
A13: 2022-09-12 | B13: 539570 | C13: ACEWIN | D13: LAXMANBHAI RAVJIBHAI GAJERA | E13: BUY | F13: 134,400 | G13: 3.11 | H13: BSE
A14: 2022-09-12 | B14: 539570 | C14: ACEWIN | D14: PREMA LAL | E14: SELL | F14: 105,600 | G14: 3.12 | H14: BSE
A15: 2022-09-12 | B15: 517356 | C15: ACIIN | D15: KOTAK MAHINDRA BANK LIMITED | E15: SELL | F15: 595,353 | G15: 1.14 | H15: BSE
A16: 2022-09-12 | B16: 543377 | C16: ADISHAKTI | D16: VINOD KUMAR MALI | E16: SELL | F16: 30,000 | G16: 7.9 | H16: BSE
A17: 2022-09-12 | B17: 543377 | C17: ADISHAKTI | D17: NNM SECURITIES PVT LTD | E17: SELL | F17: 30,000 | G17: 7.87 | H17: BSE
A18: 2022-09-12 | B18: 543377 | C18: ADISHAKTI | D18: NNM SECURITIES PVT LTD | E18: BUY | F18: 30,000 | G18: 7.9 | H18: BSE
A19: 2022-09-12 | B19: 538351 | C19: AFEL | D19: MULTIPLIER SHARE & STOCK ADVISORS PRIVATE LIMITED | E19: SELL | F19: 95,000 | G19: 19.41 | H19: BSE
A20: 2022-09-12 | B20: 539115 | C20: ALAN SCOTT | D20: NEXT ORBIT VENTURES FUND | E20: SELL | F20: 10,000 | G20: 47.31 | H20: BSE
A21: 2022-09-12 | B21: 531300 | C21: AMITINT | D21: CHETNA SHAH | E21: SELL | F21: 95,000 | G21: 4.87 | H21: BSE
A22: 2022-09-12 | B22: 531300 | C22: AMITINT | D22: KAVITA MAYANK VARIA | E22: BUY | F22: 94,877 | G22: 4.87 | H22: BSE
A23: 2022-09-12 | B23: 531252 | C23: ANERI | D23: ARTLINK VINTRADE LIMITED | E23: SELL | F23: 15,924 | G23: 3.22 | H23: BSE
A24: 2022-09-12 | B24: 509053 | C24: BANASFN | D24: JR SEAMLESS PRIVATE LIMITED | E24: SELL | F24: 375,000 | G24: 18.05 | H24: BSE
A25: 2022-09-12 | B25: 509053 | C25: BANASFN | D25: TANU GIRIRAJ AGARWAL | E25: SELL | F25: 1,150,730 | G25: 18.05 | H25: BSE
A26: 2022-09-12 | B26: 543439 | C26: BRANDBUCKT | D26: YASIR ARFAT | E26: SELL | F26: 20,000 | G26: 29.31 | H26: BSE
A27: 2022-09-12 | B27: 543439 | C27: BRANDBUCKT | D27: MILIND MADHANI SECURITIES PRIVATE LIMITED | E27: BUY | F27: 16,000 | G27: 29.31 | H27: BSE
A28: 2022-09-12 | B28: 543439 | C28: BRANDBUCKT | D28: KALPANA MADHANI SECURITIES PRIVATE LIMITED | E28: BUY | F28: 24,000 | G28: 29.31 | H28: BSE
A29: 2022-09-12 | B29: 543439 | C29: BRANDBUCKT | D29: KALPANA MADHANI SECURITIES PRIVATE LIMITED | E29: SELL | F29: 4,000 | G29: 29.31 | H29: BSE
A30: 2022-09-12 | B30: 543439 | C30: BRANDBUCKT | D30: BONANZA PORTFOLIO LIMITED | E30: SELL | F30: 20,000 | G30: 29.16 | H30: BSE
A31: 2022-09-12 | B31: 543439 | C31: BRANDBUCKT | D31: BONANZA PORTFOLIO LIMITED | E31: BUY | F31: 46,000 | G31: 29.31 | H31: BSE
A32: 2022-09-12 | B32: 543439 | C32: BRANDBUCKT | D32: NNM SECURITIES PVT LTD | E32: SELL | F32: 36,000 | G32: 28.9 | H32: BSE
A33: 2022-09-12 | B33: 543439 | C33: BRANDBUCKT | D33: NNM SECURITIES PVT LTD | E33: BUY | F33: 36,000 | G33: 28.61 | H33: BSE
A34: 2022-09-12 | B34: 543439 | C34: BRANDBUCKT | D34: SHAH HEMANTKUMAR PARASMAL | E34: BUY | F34: 20,000 | G34: 28.84 | H34: BSE
A35: 2022-09-12 | B35: 543439 | C35: BRANDBUCKT | D35: MANOJ GUPTA | E35: BUY | F35: 20,000 | G35: 28.37 | H35: BSE
A36: 2022-09-12 | B36: 543439 | C36: BRANDBUCKT | D36: A.SURESH BABU | E36: SELL | F36: 16,000 | G36: 27.1 | H36: BSE
A37: 2022-09-12 | B37: 543439 | C37: BRANDBUCKT | D37: PREETI BHAUKA | E37: BUY | F37: 28,000 | G37: 29.22 | H37: BSE
A38: 2022-09-12 | B38: 543439 | C38: BRANDBUCKT | D38: ARHAM SHARE PRIVATE LIMITED | E38: BUY | F38: 24,000 | G38: 29.31 | H38: BSE
A39: 2022-09-12 | B39: 543439 | C39: BRANDBUCKT | D39: ARHAM SHARE PRIVATE LIMITED | E39: SELL | F39: 14,000 | G39: 29.09 | H39: BSE
A40: 2022-09-12 | B40: 543439 | C40: BRANDBUCKT | D40: MULTIPLIER SHARE & STOCK ADVISORS PRIVATE LIMITED | E40: BUY | F40: 24,000 | G40: 29.31 | H40: BSE
A41: 2022-09-12 | B41: 543439 | C41: BRANDBUCKT | D41: MULTIPLIER SHARE & STOCK ADVISORS PRIVATE LIMITED | E41: SELL | F41: 24,000 | G41: 29.31 | H41: BSE
A42: 2022-09-12 | B42: 543439 | C42: BRANDBUCKT | D42: GOURAVINGLE | E42: SELL | F42: 10,000 | G42: 29.31 | H42: BSE
A43: 2022-09-12 | B43: 543439 | C43: BRANDBUCKT | D43: PRASHANTRAJESHKUMARYADAV | E43: SELL | F43: 40,000 | G43: 29.31 | H43: BSE
A44: 2022-09-12 | B44: 543439 | C44: BRANDBUCKT | D44: GOURAVINGLE | E44: BUY | F44: 18,000 | G44: 28.95 | H44: BSE
A45: 2022-09-12 | B45: 543439 | C45: BRANDBUCKT | D45: RAJ KUMAR MAJOKA HUF . | E45: SELL | F45: 6,000 | G45: 27.23 | H45: BSE
A46: 2022-09-12 | B46: 543439 | C46: BRANDBUCKT | D46: RAJ KUMAR MAJOKA HUF . | E46: BUY | F46: 24,000 | G46: 28.96 | H46: BSE
A47: 2022-09-12 | B47: 543439 | C47: BRANDBUCKT | D47: BHAVINI JAIN | E47: BUY | F47: 18,000 | G47: 28.95 | H47: BSE
A48: 2022-09-12 | B48: 543439 | C48: BRANDBUCKT | D48: BHAVINI JAIN | E48: SELL | F48: 6,000 | G48: 29.31 | H48: BSE
A49: 2022-09-12 | B49: 540681 | C49: CHOTHANI | D49: LALWANI VIJAY RAMESHLAL | E49: BUY | F49: 70,000 | G49: 14.2 | H49: BSE
A50: 2022-09-12 | B50: 540681 | C50: CHOTHANI | D50: NIRMAN COMMODITIES PRIVATE LIMITED | E50: SELL | F50: 40,000 | G50: 14.24 | H50: BSE
A51: 2022-09-12 | B51: 540681 | C51: CHOTHANI | D51: BELLURNIROOPSHRUNGAN | E51: BUY | F51: 40,000 | G51: 15.66 | H51: BSE
A52: 2022-09-12 | B52: 538868 | C52: CSL | D52: SUSHIL KUMAR RATHI | E52: BUY | F52: 27,000 | G52: 46 | H52: BSE
A53: 2022-09-12 | B53: 538868 | C53: CSL | D53: AAHWAANITH TRADECOM LLP | E53: SELL | F53: 23,185 | G53: 46 | H53: BSE
A54: 2022-09-12 | B54: 539770 | C54: DARJEELING | D54: CHINTAN MUKESHBHAI SHAH | E54: BUY | F54: 30,000 | G54: 3.85 | H54: BSE
A55: 2022-09-12 | B55: 539559 | C55: DDIL | D55: COLOURSHINE HOSIERY PRIVATE LIMITED | E55: BUY | F55: 32,000 | G55: 104.75 | H55: BSE
A56: 2022-09-12 | B56: 539559 | C56: DDIL | D56: NAVRATRI SHARE TRADING PRIVATE LIMITED . | E56: BUY | F56: 100,000 | G56: 104.75 | H56: BSE
A57: 2022-09-12 | B57: 539559 | C57: DDIL | D57: PRAKASH RIKHABCHAND SOLANKI | E57: SELL | F57: 125,520 | G57: 104.75 | H57: BSE
A58: 2022-09-12 | B58: 543516 | C58: DHYAANI | D58: RAJY ADVISORY SERVICES PRIVATE LIMITED | E58: BUY | F58: 16,000 | G58: 56 | H58: BSE
A59: 2022-09-12 | B59: 543516 | C59: DHYAANI | D59: GAURI SHANKAR SAHANI | E59: SELL | F59: 10,000 | G59: 56.3 | H59: BSE
A60: 2022-09-12 | B60: 543516 | C60: DHYAANI | D60: GIRIRAJ STOCK BROKING PRIVATE LIMITED | E60: SELL | F60: 10,000 | G60: 56 | H60: BSE
A61: 2022-09-12 | B61: 542724 | C61: EARUM | D61: MULTIPLIER SHARE & STOCK ADVISORS PRIVATE LIMITED | E61: BUY | F61: 531,921 | G61: 3.08 | H61: BSE
A62: 2022-09-12 | B62: 526703 | C62: ECOPLAST | D62: ALKA JAIN | E62: SELL | F62: 16,891 | G62: 91.95 | H62: BSE
A63: 2022-09-12 | B63: 542666 | C63: GKP | D63: MULTIPLIER SHARE & STOCK ADVISORS PRIVATE LIMITED | E63: BUY | F63: 460,029 | G63: 85.9 | H63: BSE
A64: 2022-09-12 | B64: 542666 | C64: GKP | D64: MULTIPLIER SHARE & STOCK ADVISORS PRIVATE LIMITED | E64: SELL | F64: 174,889 | G64: 87.06 | H64: BSE
A65: 2022-09-12 | B65: 532467 | C65: HAZOOR | D65: INT INFRASTRUCTURE PRIVATE LIMITED | E65: BUY | F65: 52,575 | G65: 84.72 | H65: BSE
A66: 2022-09-12 | B66: 540134 | C66: IISL | D66: SHARMA AJAY SHYAMSUNDAR | E66: BUY | F66: 49,790 | G66: 4.13 | H66: BSE
A67: 2022-09-12 | B67: 540134 | C67: IISL | D67: ARJUNPAHWA | E67: SELL | F67: 32,581 | G67: 4.13 | H67: BSE
A68: 2022-09-12 | B68: 541983 | C68: INNOVATIVE | D68: SHAH SAURABH NARESHKUMAR HUF | E68: SELL | F68: 150,000 | G68: 4.65 | H68: BSE
A69: 2022-09-12 | B69: 541983 | C69: INNOVATIVE | D69: NARESHKUMAR KANTILAL SHAH HUF | E69: BUY | F69: 150,000 | G69: 4.65 | H69: BSE
A70: 2022-09-12 | B70: 506134 | C70: INTELLCAP | D70: SAI CHAITANYA BOMMIREDDY | E70: SELL | F70: 840,000 | G70: 10.56 | H70: BSE
A71: 2022-09-12 | B71: 506134 | C71: INTELLCAP | D71: NISHITH ATULBHAI SHAH | E71: BUY | F71: 267,000 | G71: 10.56 | H71: BSE
A72: 2022-09-12 | B72: 506134 | C72: INTELLCAP | D72: V P PRABHA | E72: BUY | F72: 450,000 | G72: 10.56 | H72: BSE
A73: 2022-09-12 | B73: 540696 | C73: KCDGROUP | D73: JEEYA RAVI LUND | E73: SELL | F73: 14,464 | G73: 42.1 | H73: BSE
A74: 2022-09-12 | B74: 540696 | C74: KCDGROUP | D74: RADHA VASANT PANDEY | E74: SELL | F74: 16,752 | G74: 40.93 | H74: BSE
A75: 2022-09-12 | B75: 543308 | C75: KIMS | D75: ICICI PRUDENTIAL MUTUAL FUND A/C - ICICI PRUDENTIAL SMALLCAP FUND | E75: BUY | F75: 900,000 | G75: 1250 | H75: BSE
A76: 2022-09-12 | B76: 543308 | C76: KIMS | D76: ICICI PRUDENTIAL MUTUAL FUND A/C - ICICI PRUDENTIAL LONG TERM EQUITY FUND | E76: BUY | F76: 1,100,000 | G76: 1250 | H76: BSE
A77: 2022-09-12 | B77: 543308 | C77: KIMS | D77: GENERAL ATLANTIC SINGAPORE KH PTE LTD | E77: SELL | F77: 2,200,000 | G77: 1250.04 | H77: BSE
A78: 2022-09-12 | B78: 533602 | C78: LESHAIND | D78: SWAPAN KARMAKAR | E78: BUY | F78: 558,122 | G78: 13.74 | H78: BSE
A79: 2022-09-12 | B79: 533602 | C79: LESHAIND | D79: COLOURSHINE HOSIERY PRIVATE LIMITED | E79: SELL | F79: 1,384,841 | G79: 13.81 | H79: BSE
A80: 2022-09-12 | B80: 533602 | C80: LESHAIND | D80: ZENAB AIYUB YACOOBALI | E80: BUY | F80: 1,384,762 | G80: 13.48 | H80: BSE
A81: 2022-09-12 | B81: 533602 | C81: LESHAIND | D81: ZENAB AIYUB YACOOBALI | E81: SELL | F81: 424,101 | G81: 13.81 | H81: BSE
A82: 2022-09-12 | B82: 511000 | C82: MADHUSE | D82: SHIVANGSATISHGOCHHA | E82: BUY | F82: 57,118 | G82: 5.41 | H82: BSE
A83: 2022-09-12 | B83: 531648 | C83: MAHAVIRIND | D83: SHYAM M JATIA | E83: SELL | F83: 152,738 | G83: 0.99 | H83: BSE
A84: 2022-09-12 | B84: 540730 | C84: MEHAI | D84: MULTIPLIER SHARE & STOCK ADVISORS PRIVATE LIMITED | E84: SELL | F84: 64,465 | G84: 29.25 | H84: BSE
A85: 2022-09-12 | B85: 511766 | C85: MUTHTFN | D85: ELEVATION CAPITAL VI FII HOLDINGS LIMITED | E85: SELL | F85: 163,000 | G85: 196 | H85: BSE
A86: 2022-09-12 | B86: 543207 | C86: NATURAL | D86: RIPALBEN DHARMIKKUMAR PARIKH | E86: SELL | F86: 90,365 | G86: 6.15 | H86: BSE
A87: 2022-09-12 | B87: 530557 | C87: NCLRESE | D87: PMC FINCORP LIMITED | E87: SELL | F87: 20,680,727 | G87: 0.56 | H87: BSE
A88: 2022-09-12 | B88: 509040 | C88: NETLINK | D88: GAURI NANDAN TRADERS | E88: BUY | F88: 35,400 | G88: 66.7 | H88: BSE
A89: 2022-09-12 | B89: 509040 | C89: NETLINK | D89: SARVAGAY TEXTILE LLP | E89: SELL | F89: 35,300 | G89: 66.7 | H89: BSE
A90: 2022-09-12 | B90: 543522 | C90: NVENTURES | D90: LAXMIPAT DUDHERIA | E90: BUY | F90: 9,000 | G90: 33.78 | H90: BSE
A91: 2022-09-12 | B91: 504378 | C91: NYSSACORP | D91: JOHNCHRISTOPHERARUNAMIRTHARAJ | E91: SELL | F91: 18,179 | G91: 9.39 | H91: BSE
A92: 2022-09-12 | B92: 504378 | C92: NYSSACORP | D92: JOHNCHRISTOPHERARUNAMIRTHARAJ | E92: BUY | F92: 150,701 | G92: 9.25 | H92: BSE
A93: 2022-09-12 | B93: 543578 | C93: OLATECH | D93: MANSI SHARE & STOCK ADVISORS PRIVATE LIMITED | E93: SELL | F93: 16,000 | G93: 55.6 | H93: BSE
A94: 2022-09-12 | B94: 538537 | C94: OMANSH | D94: SEEMA MANISH JAIN | E94: BUY | F94: 100,000 | G94: 1.31 | H94: BSE
A95: 2022-09-12 | B95: 507690 | C95: ORIBEVER | D95: KABRA LAXMIKANT RAMPRASAD HUF | E95: SELL | F95: 19,724 | G95: 118.34 | H95: BSE
A96: 2022-09-12 | B96: 541444 | C96: PALMJEWELS | D96: ROHIT DALPATBHAI SHAH | E96: SELL | F96: 100,000 | G96: 24.15 | H96: BSE
A97: 2022-09-12 | B97: 539143 | C97: PANTH | D97: SAHASTRAA ADVISORS PRIVATE LIMITED | E97: BUY | F97: 100,000 | G97: 19.05 | H97: BSE
A98: 2022-09-12 | B98: 526588 | C98: PHOTOQUP | D98: VIBHU GUPTA | E98: BUY | F98: 44,098 | G98: 21.5 | H98: BSE
A99: 2022-09-12 | B99: 526588 | C99: PHOTOQUP | D99: ANSHU GUPTA | E99: SELL | F99: 40,000 | G99: 21.5 | H99: BSE
A100: 2022-09-12 | B100: 537573 | C100: POLYMAC | D100: SANGITABEN DUSHYANTBHAI SOLANKI | E100: SELL | F100: 24,000 | G100: 37.54 | H100: BSE
A101: 2022-09-12 | B101: 537573 | C101: POLYMAC | D101: SANGITABEN DUSHYANTBHAI SOLANKI | E101: BUY | F101: 24,000 | G101: 37.68 | H101: BSE
A102: 2022-09-12 | B102: 511557 | C102: PROFINC | D102: ALOK ASHOK TIWARI | E102: SELL | F102: 3,749,999 | G102: 1.58 | H102: BSE
A103: 2022-09-12 | B103: 511557 | C103: PROFINC | D103: SHRENI CONSTRUCTION PRIVATE LIMITED | E103: BUY | F103: 1,650,008 | G103: 1.55 | H103: BSE
A104: 2022-09-12 | B104: 511557 | C104: PROFINC | D104: SHRENI CONSTRUCTION PRIVATE LIMITED | E104: SELL | F104: 1,650,008 | G104: 1.61 | H104: BSE
A105: 2022-09-12 | B105: 530951 | C105: RAMINFO | D105: AMIT KUMAR | E105: SELL | F105: 34,290 | G105: 148.1 | H105: BSE
A106: 2022-09-12 | B106: 530815 | C106: REFNOL | D106: SYKES AND RAY EQUITIES (INDIA) LIMITED | E106: BUY | F106: 7 | G106: 63.5 | H106: BSE
A107: 2022-09-12 | B107: 530815 | C107: REFNOL | D107: SYKES AND RAY EQUITIES (INDIA) LIMITED | E107: SELL | F107: 16,652 | G107: 69.95 | H107: BSE
A108: 2022-09-12 | B108: 505807 | C108: ROLCOEN | D108: SYKES AND RAY EQUITIES (INDIA) LIMITED | E108: SELL | F108: 4,000 | G108: 297.85 | H108: BSE
A109: 2022-09-12 | B109: 505807 | C109: ROLCOEN | D109: ORIENTAL INSURENCE | E109: SELL | F109: 5,000 | G109: 297.85 | H109: BSE
A110: 2022-09-12 | B110: 505807 | C110: ROLCOEN | D110: RAJ KUMAR MAJOKA HUF . | E110: BUY | F110: 4,300 | G110: 297.85 | H110: BSE
A111: 2022-09-12 | B111: 516110 | C111: SCANDENT | D111: JAYESH SURYAKANT SIRIYA | E111: BUY | F111: 250,000 | G111: 20.75 | H111: BSE
A112: 2022-09-12 | B112: 516110 | C112: SCANDENT | D112: GAUTAM MOHAN DESHPANDE | E112: SELL | F112: 1,376,997 | G112: 21.06 | H112: BSE
A113: 2022-09-12 | B113: 516110 | C113: SCANDENT | D113: MULTIPLIER SHARE & STOCK ADVISORS PRIVATE LIMITED | E113: BUY | F113: 600,000 | G113: 20.75 | H113: BSE
A114: 2022-09-12 | B114: 511760 | C114: SEVENHILL | D114: SURESHKUMAR UTTAMCHAND JAIN | E114: SELL | F114: 720,000 | G114: 0.81 | H114: BSE
A115: 2022-09-12 | B115: 511760 | C115: SEVENHILL | D115: HITESHKUMAR MULCHAND JAIN | E115: SELL | F115: 720,000 | G115: 0.8 | H115: BSE
A116: 2022-09-12 | B116: 511760 | C116: SEVENHILL | D116: MAHAVEERKUMAR AMRATLAL JAIN | E116: SELL | F116: 720,000 | G116: 0.8 | H116: BSE
A117: 2022-09-12 | B117: 511760 | C117: SEVENHILL | D117: KIRITKUMAR HEERACHAND JAIN | E117: SELL | F117: 720,000 | G117: 0.8 | H117: BSE
A118: 2022-09-12 | B118: 539833 | C118: SICLTD | D118: KEDARNATHPARIDA | E118: BUY | F118: 386,120 | G118: 0.59 | H118: BSE
A119: 2022-09-12 | B119: 512197 | C119: SILVERO | D119: SRINIVASULU KARANAM | E119: SELL | F119: 20,183 | G119: 2.2 | H119: BSE
A120: 2022-09-12 | B120: 512197 | C120: SILVERO | D120: SHIVAJI SHINDE | E120: BUY | F120: 17,450 | G120: 2.2 | H120: BSE
A121: 2022-09-12 | B121: 519242 | C121: SRDAPRT | D121: GUTTIKONDA VARA LAKSHMI | E121: BUY | F121: 43,058 | G121: 45.34 | H121: BSE
A122: 2022-09-12 | B122: 519242 | C122: SRDAPRT | D122: RAHUL ANANTRAI MEHTA | E122: SELL | F122: 50,000 | G122: 45.95 | H122: BSE
A123: 2022-09-12 | B123: 512215 | C123: STEPHANOTIS | D123: MANISH KISHOR RUPAREL | E123: SELL | F123: 91,130 | G123: 20.5 | H123: BSE
A124: 2022-09-12 | B124: 512215 | C124: STEPHANOTIS | D124: ODYSSEY CORPORATION LIMITED | E124: BUY | F124: 83,930 | G124: 20.5 | H124: BSE
A125: 2022-09-12 | B125: 537392 | C125: TAAZAINT | D125: KISHORE KARUKOLA | E125: SELL | F125: 40,856 | G125: 24.35 | H125: BSE
A126: 2022-09-12 | B126: 537392 | C126: TAAZAINT | D126: VASUDEVAN PANCHANGAM | E126: BUY | F126: 41,241 | G126: 24.35 | H126: BSE
A127: 2022-09-12 | B127: 521005 | C127: TITANIN | D127: VAIDYANATHAN RADHAKRISHNAN | E127: SELL | F127: 13,562 | G127: 30.2 | H127: BSE
A128: 2022-09-12 | B128: 539040 | C128: TTIL | D128: MOHAMEDIQBALQURESHI | E128: BUY | F128: 21,932 | G128: 25.13 | H128: BSE
A129: 2022-09-12 | B129: 503657 | C129: VEERENRGY | D129: DHAVAL KANTILAL PATEL | E129: BUY | F129: 100,000 | G129: 16 | H129: BSE
A130: 2022-09-12 | B130: 503657 | C130: VEERENRGY | D130: CHANDULAL KARSAN PATEL | E130: BUY | F130: 60,000 | G130: 16 | H130: BSE
A131: 2022-09-12 | B131: 503657 | C131: VEERENRGY | D131: AJAY RAMESHCHANDRA VAKHARIA | E131: SELL | F131: 60,000 | G131: 16 | H131: BSE
A132: 2022-09-12 | B132: 524661 | C132: WELCURE | D132: PAWAN KUMAR KHURANA | E132: BUY | F132: 78,617 | G132: 7.82 | H132: BSE
A133: 2022-09-12 | B133: 524661 | C133: WELCURE | D133: PAWAN KUMAR KHURANA | E133: SELL | F133: 5,217 | G133: 7.82 | H133: BSE
A134: 2022-09-12 | B134: 509910 | C134: ZSOUTGAS | D134: VARP INFOTECH PRIVATE LIMITED | E134: BUY | F134: 2,000 | G134: 118.2 | H134: BSE
A135: 2022-09-12 | B135: 509910 | C135: ZSOUTGAS | D135: KANTA DEVI SAMDARIA | E135: SELL | F135: 2,000 | G135: 118.2 | H135: BSE
A136: 2022-09-12 | B136: AKASH | C136: Akash Infra-Projects Ltd | D136: SUNAYANA INVESTMENT COMPANY LIMITED | E136: BUY | F136: 100,000 | G136: 45.25 | H136: NSE
A137: 2022-09-12 | B137: BTML | C137: Bodhi Tree Multimedia Ltd | D137: NARINDER BAJAJ | E137: BUY | F137: 30,000 | G137: 260 | H137: NSE
A138: 2022-09-12 | B138: DIL | C138: Debock Industries Limited | D138: SKSE SECURITIES LTD | E138: BUY | F138: 1,081,477 | G138: 34.66 | H138: NSE
A139: 2022-09-12 | B139: HUBTOWN | C139: Ackruti City Limited | D139: MANSI SHARES & STOCK ADVISORS PVT LTD | E139: BUY | F139: 500,065 | G139: 84.7 | H139: NSE
A140: 2022-09-12 | B140: HUBTOWN | C140: Ackruti City Limited | D140: MULTIPLIER SHARE & STOCK ADVISORS PRIVATE LIMITED | E140: BUY | F140: 1,223,813 | G140: 84.75 | H140: NSE
A141: 2022-09-12 | B141: HUBTOWN | C141: Ackruti City Limited | D141: CHETAN RASIKLAL SHAH | E141: BUY | F141: 374,533 | G141: 84.87 | H141: NSE
A142: 2022-09-12 | B142: JALAN | C142: Jalan Transolu. India Ltd | D142: ANIL KUMAR SINGH | E142: BUY | F142: 180,000 | G142: 10.12 | H142: NSE
A143: 2022-09-12 | B143: KEERTI | C143: Keerti Know & Skill Ltd. | D143: BP EQUITIES PRIVATE LIMITED | E143: BUY | F143: 1 | G143: 32.85 | H143: NSE
A144: 2022-09-12 | B144: KEERTI | C144: Keerti Know & Skill Ltd. | D144: UDAY RAMESH SHAH | E144: BUY | F144: 63,000 | G144: 29.75 | H144: NSE
A145: 2022-09-12 | B145: KEERTI | C145: Keerti Know & Skill Ltd. | D145: BHARATH CHAMPALAL JAIN | E145: BUY | F145: 334,174 | G145: 29.88 | H145: NSE
A146: 2022-09-12 | B146: KORE | C146: Jay Jalaram Techno Ltd | D146: PODDAR VIJAY JAIDEO | E146: BUY | F146: 150,000 | G146: 57.85 | H146: NSE
A147: 2022-09-12 | B147: KORE | C147: Jay Jalaram Techno Ltd | D147: MULTIPLIER SHARE & STOCK ADVISORS PRIVATE LIMITED | E147: BUY | F147: 30,000 | G147: 52.55 | H147: NSE
A148: 2022-09-12 | B148: KORE | C148: Jay Jalaram Techno Ltd | D148: B.W.TRADERS | E148: BUY | F148: 90,000 | G148: 57.85 | H148: NSE
A149: 2022-09-12 | B149: KORE | C149: Jay Jalaram Techno Ltd | D149: VINEY PARKASH AGARWAL | E149: BUY | F149: 75,000 | G149: 53.19 | H149: NSE
A150: 2022-09-12 | B150: MUTHOOTCAP | C150: Muthoot Cap Serv Ltd | D150: BNP PARIBAS ARBITRAGE | E150: BUY | F150: 245,000 | G150: 196 | H150: NSE
A151: 2022-09-12 | B151: NAZARA | C151: Nazara Technologies Ltd | D151: GRAVITON RESEARCH CAPITAL LLP | E151: BUY | F151: 411,197 | G151: 777.14 | H151: NSE
A152: 2022-09-12 | B152: RIIL | C152: Reliance Indl Infra Ltd | D152: GRAVITON RESEARCH CAPITAL LLP | E152: BUY | F152: 96,602 | G152: 1189.4 | H152: NSE
A153: 2022-09-12 | B153: SELAN | C153: Selan Exploration Technol | D153: XTX MARKETS LLP | E153: BUY | F153: 76,409 | G153: 306.71 | H153: NSE
A154: 2022-09-12 | B154: SUULD | C154: Suumaya Industries Ltd | D154: L7 HITECH PRIVATE LIMITED | E154: BUY | F154: 225,000 | G154: 44.49 | H154: NSE
A155: 2022-09-12 | B155: TERASOFT | C155: Tera Software Limited | D155: GRAVITON RESEARCH CAPITAL LLP | E155: BUY | F155: 63,909 | G155: 60.41 | H155: NSE
A156: 2022-09-12 | B156: VAISHALI | C156: Vaishali Pharma Limited | D156: AMAYSHA TEXTILES PRIVATE LIMITED | E156: BUY | F156: 68,000 | G156: 100.5 | H156: NSE
A157: 2022-09-12 | B157: VERTOZ | C157: Vertoz Advertising Ltd | D157: SW CAPITAL PRIVATE LIMITED | E157: BUY | F157: 64,516 | G157: 126.61 | H157: NSE
A158: 2022-09-12 | B158: VETO | C158: Veto Switchgear Cable Ltd | D158: NAKSHATRA GARMENTS PRIVATE LIMITED | E158: BUY | F158: 180,393 | G158: 118.69 | H158: NSE
A159: 2022-09-12 | B159: VINYLINDIA | C159: Vinyl Chemicals (India) L | D159: YUGA STOCKS AND COMMODITIES PRIVATE LIMITED . | E159: BUY | F159: 152,567 | G159: 745.47 | H159: NSE
A160: 2022-09-12 | B160: AKASH | C160: Akash Infra-Projects Ltd | D160: SARVAGAY TEXTILE LLP | E160: SELL | F160: 200,000 | G160: 45.25 | H160: NSE
A161: 2022-09-12 | B161: ALPSINDUS | C161: Alps Industries Ltd. | D161: KINNARI RAKESH PUJARA | E161: SELL | F161: 200,023 | G161: 2.36 | H161: NSE
A162: 2022-09-12 | B162: ANTGRAPHIC | C162: Antarctica Graphics Ltd | D162: JEBY JOSEPH | E162: SELL | F162: 836,264 | G162: 1.1 | H162: NSE
A163: 2022-09-12 | B163: BODALCHEM | C163: Bodal Chemicals Ltd | D163: SAMYAKTVA CONSTRUCTION LLP | E163: SELL | F163: 700,000 | G163: 101.02 | H163: NSE
A164: 2022-09-12 | B164: BTML | C164: Bodhi Tree Multimedia Ltd | D164: ZYANA STOCKS AND COMMODITIES | E164: SELL | F164: 25,200 | G164: 260.9 | H164: NSE
A165: 2022-09-12 | B165: BTML | C165: Bodhi Tree Multimedia Ltd | D165: JAGRUTI ATUL SHAH | E165: SELL | F165: 19,200 | G165: 260.26 | H165: NSE
A166: 2022-09-12 | B166: CMMIPL | C166: CMM Infraprojects Limited | D166: KISHAN MUNDRA | E166: SELL | F166: 210,000 | G166: 11.22 | H166: NSE
A167: 2022-09-12 | B167: DIL | C167: Debock Industries Limited | D167: SKSE SECURITIES LTD | E167: SELL | F167: 1,076,937 | G167: 35.25 | H167: NSE
A168: 2022-09-12 | B168: EXCEL | C168: Excel Realty N Infra Ltd | D168: KOTAK MAHINDRA BANK LIMITED | E168: SELL | F168: 884,021 | G168: 7.25 | H168: NSE
A169: 2022-09-12 | B169: FOCUS | C169: Focus Lightg | D169: PURVI PRABHATCHANDRA JAIN | E169: SELL | F169: 52,605 | G169: 147.58 | H169: NSE
A170: 2022-09-12 | B170: GLOBE | C170: Globe Textiles (I) Ltd. | D170: SHRADDHA BHAVIKKUMAR PARIKH | E170: SELL | F170: 1,500,000 | G170: 6.7 | H170: NSE
A171: 2022-09-12 | B171: HUBTOWN | C171: Ackruti City Limited | D171: CHETAN RASIKLAL SHAH | E171: SELL | F171: 306,913 | G171: 84.75 | H171: NSE
A172: 2022-09-12 | B172: HUBTOWN | C172: Ackruti City Limited | D172: MULTIPLIER SHARE & STOCK ADVISORS PRIVATE LIMITED | E172: SELL | F172: 860,699 | G172: 84.84 | H172: NSE
A173: 2022-09-12 | B173: HUBTOWN | C173: Ackruti City Limited | D173: MANSI SHARES & STOCK ADVISORS PVT LTD | E173: SELL | F173: 311,124 | G173: 84.8 | H173: NSE
A174: 2022-09-12 | B174: JALAN | C174: Jalan Transolu. India Ltd | D174: MANISH JALAN | E174: SELL | F174: 150,000 | G174: 10 | H174: NSE
A175: 2022-09-12 | B175: KEERTI | C175: Keerti Know & Skill Ltd. | D175: MULTIPLIER SHARE & STOCK ADVISORS PRIVATE LIMITED | E175: SELL | F175: 67,800 | G175: 29.75 | H175: NSE
A176: 2022-09-12 | B176: KEERTI | C176: Keerti Know & Skill Ltd. | D176: BP EQUITIES PRIVATE LIMITED | E176: SELL | F176: 286,440 | G176: 29.75 | H176: NSE
A177: 2022-09-12 | B177: KORE | C177: Jay Jalaram Techno Ltd | D177: ATIVEER FINANCE CONSULTANTS LIMITED | E177: SELL | F177: 72,000 | G177: 57.85 | H177: NSE
A178: 2022-09-12 | B178: KORE | C178: Jay Jalaram Techno Ltd | D178: MULTIPLIER SHARE & STOCK ADVISORS PRIVATE LIMITED | E178: SELL | F178: 102,000 | G178: 57.85 | H178: NSE
A179: 2022-09-12 | B179: KORE | C179: Jay Jalaram Techno Ltd | D179: VINEY PARKASH AGARWAL | E179: SELL | F179: 15,000 | G179: 56.75 | H179: NSE
A180: 2022-09-12 | B180: MUTHOOTCAP | C180: Muthoot Cap Serv Ltd | D180: ELEVATION CAPITAL VI FII HOLDINGS LIMITED | E180: SELL | F180: 358,484 | G180: 196.47 | H180: NSE
A181: 2022-09-12 | B181: NAZARA | C181: Nazara Technologies Ltd | D181: GRAVITON RESEARCH CAPITAL LLP | E181: SELL | F181: 411,197 | G181: 777.23 | H181: NSE
A182: 2022-09-12 | B182: RIIL | C182: Reliance Indl Infra Ltd | D182: GRAVITON RESEARCH CAPITAL LLP | E182: SELL | F182: 96,602 | G182: 1190.29 | H182: NSE
A183: 2022-09-12 | B183: SELAN | C183: Selan Exploration Technol | D183: XTX MARKETS LLP | E183: SELL | F183: 76,808 | G183: 308.83 | H183: NSE
A184: 2022-09-12 | B184: TERASOFT | C184: Tera Software Limited | D184: GRAVITON RESEARCH CAPITAL LLP | E184: SELL | F184: 63,909 | G184: 60.63 | H184: NSE
A185: 2022-09-12 | B185: VERTOZ | C185: Vertoz Advertising Ltd | D185: SW CAPITAL PRIVATE LIMITED | E185: SELL | F185: 66,516 | G185: 128.05 | H185: NSE
A186: 2022-09-12 | B186: VETO | C186: Veto Switchgear Cable Ltd | D186: NAKSHATRA GARMENTS PRIVATE LIMITED | E186: SELL | F186: 180,393 | G186: 118.07 | H186: NSE
A187: 2022-09-12 | B187: VINYLINDIA | C187: Vinyl Chemicals (India) L | D187: YUGA STOCKS AND COMMODITIES PRIVATE LIMITED . | E187: SELL | F187: 172,567 | G187: 746.63 | H187: NSE

Sheet Call Tracker (Equity & F&O)
M5: Back To Main Page
A6: Retail Research Technical Calls & Fundamental Performance Report for the month of Sep-2022
M7: =Main!B10 -> 2022-09-13
B8: Positional Call
A9: Sr.no | B9: Date | D9: Company | E9: Rec | F9: Rec Price | G9: Stop Loss*** | H9: Call Closed At | I9: Target | J9: Remark | K9: Profit / Loss per Share | L9: All charges | M9: Net Gain / Loss % | N9: Status | O9: Closed Date | P9: Market Closing Price
A10: 1 | B10: 2022-08-12 | D10: BATAINDIA | E10: Buy | F10: 1905 | G10: 1750 | H10: 1982.5 | I10: 2100-2200 | J10: Part profit of Rs.77.5/- | K10: =H10-F10 -> 77.5 | L10: =(F10*-0.7)/100 -> -13.34 | M10: =(K10+L10)/F10 -> 3.37% | N10: Successful | O10: 2022-08-16 | R10: H
A11: 2 | B11: 2022-08-19 | D11: GSPL | E11: Buy | F11: 246.5 | G11: 229 | H11: 260 | I11: 270-280 | J11: Part profit of Rs.13.5/- | K11: 13.5 | L11: -1.73 | M11: 4.78% | N11: Successful | O11: 2022-09-09 | R11: H
A12: 3 | B12: 2022-08-22 | D12: VTL | E12: Buy | F12: 327.5 | G12: 298 | H12: 344.5 | I12: 360-390 | J12: Part profit of Rs.17/- | K12: =H12-F12 -> 17 | L12: =(F12*-0.7)/100 -> -2.29 | M12: =(K12+L12)/F12 -> 4.49% | N12: Successful | O12: 2022-08-25 | R12: H
A13: 4 | B13: 2022-08-22 | D13: RELIANCE | E13: Buy | F13: 2580-2610 | G13: 2480 | I13: 2750-2800 | J13: Open | R13: H
A14: 5 | B14: 2022-08-23 | D14: IGL | E14: Buy | F14: 405 | G14: 375 | H14: 428.5 | I14: 440-460 | J14: Profit of Rs.23.5/- | K14: =H14-F14 -> 23.5 | L14: =(F14*-0.7)/100 -> -2.84 | M14: =(K14+L14)/F14 -> 5.10% | N14: Successful | O14: 2022-09-02 | R14: H
A15: 6 | B15: 2022-08-26 | D15: DELTACORP | E15: Buy | F15: 210-214 | G15: 199 | I15: 230-235 | J15: Open | R15: N
A16: 7 | B16: 2022-08-29 | D16: GMMPFAUDLR | E16: Buy | F16: 1650 | G16: 1540 | H16: 1775 | I16: 1770-1850 | J16: Profit of Rs.125/- | K16: =H16-F16 -> 125 | L16: =(F16*-0.7)/100 -> -11.55 | M16: =(K16+L16)/F16 -> 6.88% | N16: Successful | O16: 2022-09-02 | R16: N
A17: 8 | B17: 2022-08-29 | D17: IEX | E17: Buy | F17: 157 | G17: 149.5 | H17: 158.5 | I17: 165-170 | J17: Profit of Rs.1.5/- | K17: =H17-F17 -> 1.5 | L17: =(F17*-0.7)/100 -> -1.10 | M17: =(K17+L17)/F17 -> 0.26% | N17: Neutral | O17: 2022-09-05 | R17: H
A18: 9 | B18: 2022-09-05 | D18: AMARAJABAT | E18: Buy | F18: 514 | G18: 480 | H18: 545 | I18: 550-580 | J18: Profit of Rs.31/- | K18: =H18-F18 -> 31 | L18: =(F18*-0.07)/100 -> -0.36 | M18: =(K18+L18)/F18 -> 5.96% | N18: Successful | O18: 2022-09-12 | R18: N
A19: 10 | B19: 2022-09-06 | D19: COLPAL | E19: Buy | F19: 1610-1640 | G19: 1535 | I19: 1750-1800 | J19: Open | R19: H
A20: 11 | B20: 2022-09-07 | D20: LTI | E20: Buy | F20: 4415 | G20: 4140 | H20: 4677.5 | I20: 4800-5000 | J20: Profit of Rs.262.5/- | K20: =H20-F20 -> 262.5 | L20: =(F20*-0.7)/100 -> -30.91 | M20: =(K20+L20)/F20 -> 5.25% | N20: Successful | O20: 2022-09-09 | R20: H
A21: 12 | B21: 2022-09-08 | D21: ENGINERSIN | E21: Buy | F21: 70.5-71.5 | G21: 65 | I21: 80-82 | J21: Open | R21: H
A22: 13 | B22: 2022-09-12 | D22: GMMPFAUDLR | E22: Buy | F22: 1900-1930 | G22: 1800 | I22: 2050-2150 | J22: Open | R22: N
A23: 14 | B23: 2022-09-12 | D23: MAPMYINDIA | E23: Buy | F23: 1400-1430 | G23: 1325 | I23: 1550-1650 | J23: Open | R23: H
A24: 15 | B24: 2022-09-12 | D24: HEIDELBERG | E24: Buy | F24: 190-193 | G24: 183 | I24: 205-215 | J24: Open | R24: N
A28: CLBS = Closing Basis ***
A29: Dividend adjusted <> | F29: Reinitiated $
A30: Part book {} | D30: s | F30: Revised stoploss #
B32: Momentum Call
A33: Sr.no | B33: Date | D33: Company | E33: Rec | F33: Rec Price | G33: Stop Loss | H33: Call Closed At | I33: Target | J33: Remark | K33: Profit / Loss per Share/Lot | L33: All charges | M33: Net Gain / Loss % | N33: Status | O33: Closed Date
A34: 1 | B34: 2022-08-23 | D34: INDIGO | E34: Buy | F34: 2005 | G34: 1940 | H34: 2060 | I34: 2080-2120 | J34: Profit of Rs.55/- | K34: =H34-F34 -> 55 | L34: =(F34*-0.7)/100 -> -14.04 | M34: =(K34+L34)/F34 -> 2.04% | N34: Successful | O34: 2022-09-02 | R34: H
A35: 2 | B35: 2022-08-26 | D35: MCDOWELL-N | E35: Buy | F35: 810 | G35: 787 | H35: 829 | I35: 840-850 | J35: Profit of Rs.19/- | K35: =H35-F35 -> 19 | L35: =(F35*-0.7)/100 -> -5.67 | M35: =(K35+L35)/F35 -> 1.65% | N35: Successful | O35: 2022-09-02 | R35: H
A36: 3 | B36: 2022-08-30 | D36: COFORGE | E36: Buy | F36: 3555 | G36: 3430 | H36: 3655 | I36: 3700-3800 | J36: Profit of Rs.19/- | K36: =H36-F36 -> 100 | L36: =(F36*-0.7)/100 -> -24.89 | M36: =(K36+L36)/F36 -> 2.11% | N36: Successful | O36: 2022-09-12 | R36: H
A37: 4 | B37: 2022-09-01 | D37: ZYDUSLIFE | E37: Buy | F37: 377-379 | G37: 367 | I37: 400-410 | J37: Open | R37: N
A38: 5 | B38: 2022-09-05 | D38: REDINGTON | E38: Buy | F38: 150 | G38: 145 | H38: 154.5 | I38: 157-160 | J38: Profit of Rs.4.5/- | K38: =H38-F38 -> 4.5 | L38: =(F38*-0.7)/100 -> -1.05 | M38: =(K38+L38)/F38 -> 2.30% | N38: Successful | O38: 2022-09-06 | R38: H
A39: 6 | B39: 2022-09-06 | D39: BALKRISIND | E39: Buy | F39: 1970 | G39: 1915 | H39: 2003 | I39: 2050-2100 | J39: Profit of Rs.33/- | K39: =H39-F39 -> 33 | L39: =(F39*-0.07)/100 -> -1.38 | M39: =(K39+L39)/F39 -> 1.61% | N39: Successful | O39: 2022-09-06 | R39: H
A40: 7 | B40: 2022-09-06 | D40: TATAPOWER | E40: Buy | F40: 243 | G40: 237 | H40: 251 | I40: 250-255 | J40: Profit of Rs.8/- | K40: 8 | L40: =(F40*-0.7)/100 -> -1.70 | M40: 2.59% | N40: Successful | O40: 2022-09-06 | R40: H
A41: 8 | B41: 2022-09-07 | D41: BALKRISIND | E41: Buy | F41: 1990-2000 | G41: 1930 | I41: 2060-2100 | J41: Open | R41: H
A42: 9 | B42: 2022-09-09 | D42: TATAPOWER | E42: Buy | F42: 241-243 | G42: 235 | I42: 250-255 | J42: Open | R42: H
A47: CLBS = Closing Basis *** | H47: *
A48: Dividend adjusted <> | F48: Reinitiated $
F49: Revised stoploss #
A51: Master Trade High Risk
A52: Sr.no | B52: Date | D52: Company | E52: Rec | F52: Rec Price | G52: Stop Loss | H52: Call Closed At | I52: Target | J52: Remark | K52: Profit / Loss per share | L52: All charges | M52: Gain / Loss per Lot | N52: Lot | O52: Status | P52: Closed Date
A53: 1 | B53: 2022-08-29 | D53: BHARTIARTL SEP FUT | E53: Buy | F53: 724 | G53: 710 | H53: 735.5 | I53: 740-750 | J53: Profit of Rs 11.5/- | K53: =H53-F53 -> 11.5 | L53: =(H53*N53)*0.07% -> 489.11 | M53: =(K53*N53)-L53 -> 10435.9 | N53: 950 | O53: Successful | P53: 2022-09-01 | R53: H
A54: 2 | B54: 2022-09-01 | D54: ICICIBANK SEP FUT | E54: Buy | F54: 873.5 | G54: 864 | H54: 884 | I54: 890-895 | J54: Profit of Rs 10.5/- | K54: =H54-F54 -> 10.5 | L54: =(H54*N54)*0.07% -> 850.85 | M54: =(K54*N54)-L54 -> 13586.7 | N54: 1375 | O54: Successful | P54: 2022-09-01 | R54: H
A55: 3 | B55: 2022-09-01 | D55: CONCOR SEP FUT | E55: Buy | F55: 696.5 | G55: 685 | H55: 685 | I55: 715-720 | J55: Loss of Rs 11.5/- | K55: =H55-F55 -> -11.5 | L55: =(H55*N55)*0.07% -> 479.50 | M55: =(K55*N55)-L55 -> -11979.5 | N55: 1000 | O55: Unsuccessful | P55: 2022-09-02 | R55: N
A56: 4 | B56: 2022-09-01 | D56: GSPL SEPT FUT | E56: Buy | F56: 240 | G56: 234.5 | H56: 246 | I56: 246-250 | J56: Profit of Rs 6/- | K56: =H56-F56 -> 6 | L56: =(H56*N56)*0.07% -> 430.50 | M56: =(K56*N56)-L56 -> 14569.5 | N56: 2500 | O56: Successful | P56: 2022-09-01 | R56: N
A57: 5 | B57: 2022-09-01 | D57: HDFCAMC SEPT FUT | E57: Buy | F57: 2070 | G57: 2000 | H57: 2000 | I57: 2140-2180 | J57: Loss of Rs 70/- | K57: -70 | L57: 280.00 | M57: -14280.0 | N57: 200 | O57: Unsuccessful | P57: 2022-09-06 | R57: N
A58: 6 | B58: 2022-09-02 | D58: SBIN SEPT FUT | E58: Sell | F58: 534 | G58: 545 | H58: 543 | I58: 520-510 | J58: Loss of Rs 9/- | K58: =F58-H58 -> -9 | L58: =(H58*N58)*0.07% -> 570.15 | M58: =(K58*N58)-L58 -> -14070.2 | N58: 1500 | O58: Unsuccessful | P58: 2022-09-06 | R58: H
A59: 7 | B59: 2022-09-02 | D59: ZYDUSLIFE SEPT FUT | E59: Buy | F59: 371.5 | G59: 365 | H59: 376 | I59: 380-385 | J59: Profit of Rs 4.5/- | K59: =H59-F59 -> 4.5 | L59: =(H59*N59)*0.07% -> 473.76 | M59: =(K59*N59)-L59 -> 7626.2 | N59: 1800 | O59: Successful | P59: 2022-09-05 | R59: H
A60: 8 | B60: 2022-09-02 | D60: GSPL SEPT FUT | E60: Buy | F60: 239.5 | G60: 234.5 | H60: 234.5 | I60: 246-250 | J60: Loss of Rs 5/- | K60: =H60-F60 -> -5 | L60: =(H60*N60)*0.07% -> 410.38 | M60: =(K60*N60)-L60 -> -12910.4 | N60: 2500 | O60: Unsuccessful | P60: 2022-09-05 | R60: N
A61: 9 | B61: 2022-09-05 | D61: PFC SEPT FUT | E61: Sell | F61: 117 | G61: 119 | H61: 115.5 | I61: 112 | J61: Profit of Rs 1.5/- | K61: =F61-H61 -> 1.5 | L61: =(H61*N61)*0.07% -> 501.27 | M61: =(K61*N61)-L61 -> 8798.7 | N61: 6200 | O61: Successful | P61: 2022-09-05 | R61: H
A62: 10 | B62: 2022-09-06 | D62: ZYDUSLIFE SEPT FUT | E62: Buy | F62: 370.5 | G62: 364 | H62: 375.5 | I62: 380-385 | J62: Profit of Rs 5/- | K62: =H62-F62 -> 5 | L62: 473.13 | M62: 8526.9 | N62: 1800 | O62: Successful | P62: 2022-09-07 | R62: H
A63: 11 | B63: 2022-09-06 | D63: TATACONSUM SEPT FUT | E63: Buy | F63: 824-826 | G63: 810 | I63: 840-855 | J63: Open | R63: H
A64: 12 | B64: 2022-09-07 | D64: HINDUNILVR SEPT FUT | E64: Buy | F64: 2585 | G64: 2540 | H64: 2619 | I64: 2630-2670 | J64: Profit of Rs 34/- | K64: =H64-F64 -> 34 | L64: =(H64*N64)*0.07% -> 549.99 | M64: =(K64*N64)-L64 -> 9650.0 | N64: 300 | O64: Successful | P64: 2022-09-09 | R64: N
A65: 13 | B65: 2022-09-07 | D65: BHARTIARTL SEPT FUT | E65: Buy | F65: 750 | G65: 736 | H65: 759 | I65: 770-780 | J65: Profit of Rs 9/- | K65: =H65-F65 -> 9 | L65: =(H65*N65)*0.07% -> 504.74 | M65: =(K65*N65)-L65 -> 8045.3 | N65: 950 | O65: Successful | P65: 2022-09-07 | R65: H
A66: 14 | B66: 2022-09-07 | D66: TECHM SEPT FUT | E66: Buy | F66: 1059 | G66: 1040 | H66: 1076 | I66: 1090-1100 | J66: Profit of Rs 17/- | K66: 17 | L66: 489.58 | M66: 10560.4 | N66: 650 | O66: Successful | P66: 2022-09-07 | R66: N
A67: 15 | B67: 2022-09-07 | D67: HCLTECH SEPT FUT | E67: Buy | F67: 933 | G67: 915 | H67: 943 | I67: 950-960 | J67: Profit of Rs 10/- | K67: 10 | L67: 462.07 | M67: 6537.9 | N67: 700 | O67: Successful | P67: 2022-09-07 | R67: H
A68: 16 | B68: 2022-09-08 | D68: SBIN SEPT FUT | E68: Sell | F68: 540 | G68: 548 | H68: 546 | I68: 530-520 | J68: Loss of Rs 6/- | K68: =F68-H68 -> -6 | L68: 573.30 | M68: -9573.3 | N68: 1500 | O68: Unsuccessful | P68: 2022-09-08 | R68: H
A69: 17 | B69: 2022-09-08 | D69: HCLTECH SEPT FUT | E69: Buy | F69: 935 | G69: 918 | H69: 946.5 | I69: 955-965 | J69: Profit of Rs 11.5/- | K69: =H69-F69 -> 11.5 | L69: =(H69*N69)*0.07% -> 463.79 | M69: =(K69*N69)-L69 -> 7586.2 | N69: 700 | O69: Successful | P69: 2022-09-09 | R69: H
A70: 18 | B70: 2022-09-09 | D70: SBIN SEPT FUT | E70: Buy | F70: 552 | G70: 544 | H70: 557.5 | I70: 560-568 | J70: Profit of Rs 5.5/- | K70: =H70-F70 -> 5.5 | L70: =(H70*N70)*0.07% -> 585.38 | M70: =(K70*N70)-L70 -> 7664.6 | N70: 1500 | O70: Successful | P70: 2022-09-12 | R70: H
A71: 19 | B71: 2022-09-12 | D71: ACC SEPT FUT | E71: Sell | F71: 2415 | G71: 2460 | H71: 2460 | I71: 2360-2320 | J71: Loss of Rs 45/- | K71: =F71-H71 -> -45 | L71: =(H71*N71)*0.07% -> 430.50 | M71: =(K71*N71)-L71 -> -11680.5 | N71: 250 | O71: Unsuccessful | P71: 2022-09-12 | R71: H
A72: 20 | B72: 2022-09-12 | D72: HINDUNILVR SEPT FUT | E72: Buy | F72: 2590-2600 | G72: 2550 | I72: 2650-2690 | J72: Open | R72: N
A73: 21 | B73: 2022-09-12 | D73: HDFCBANK SEPT FUT | E73: Buy | F73: 1500-1504 | G73: 1480 | I73: 1525-1545 | J73: Open | R73: N
A74: 22 | B74: 2022-09-12 | D74: BAJAJFINSV SEPT FUT | E74: Buy | F74: 17160-17200 | G74: 16890 | I74: 17500-17700 | J74: Open | R74: H
A80: Master Trade Medium Risk
A81: Sr.no | B81: Date | D81: Company | E81: Rec | F81: Rec Price | G81: Stop Loss | H81: Call Closed At | I81: Target | J81: Remark | K81: Profit/ Loss per lot | L81: All charges | M81: Gain / Loss per Lot | N81: Lot | O81: Status | P81: Closed Date
A82: 1 | B82: 2022-08-30 | D82: BANKNIFTY 39700 CE 8 SEP | E82: Buy | F82: 390 | G82: 280 | H82: 280 | I82: 600-700 | J82: Loss of Rs.110/- | K82: =H82-F82 -> -110 | L82: 100.00 | M82: =(K82*N82)-L82 -> -2850.0 | N82: 25 | O82: Unsuccessful | P82: 2022-09-01 | R82: H
A83: 2 | B83: 2022-09-01 | D83: BANKNIFTY 39500 CE 1-SEP | E83: Buy | F83: 120 | G83: 30 | H83: 175 | I83: 250-300 | J83: Profit of Rs.55/- | K83: 55 | L83: 100.00 | M83: 1275.0 | N83: 25 | O83: Successful | P83: 2022-09-01 | R83: N
A84: 3 | B84: 2022-09-01 | D84: BANKNIFTY 39500 CE 1-SEP | E84: Buy | F84: 95 | G84: 0 | H84: 0 | I84: 200-250 | J84: Loss of Rs.95/- | K84: =H84-F84 -> -95 | L84: 100.00 | M84: =(K84*N84)-L84 -> -2475.0 | N84: 25 | O84: Unsuccessful | P84: 2022-09-01 | R84: N
A85: 4 | B85: 2022-09-02 | D85: NIFTY 17400 PE 8 SEP | E85: Buy | F85: 82 | G85: 45 | H85: 122.5 | I85: 120-160 | J85: Profit of Rs.40.5/- | K85: 40.5 | L85: 100.00 | M85: 1925.0 | N85: 50 | O85: Successful | P85: 2022-09-02 | R85: H
A86: 5 | B86: 2022-09-02 | D86: BANKNIFTY 40000 CE 8 SEP | E86: Sell | F86: 170 | G86: 350 | H86: 340 | I86: 0.1 | J86: Loss of Rs.170/- | K86: =F86-H86 -> -170 | L86: 100.00 | M86: -4350.0 | N86: 25 | O86: Unsuccessful | P86: 2022-09-06 | R86: H
A87: 6 | B87: 2022-09-02 | D87: NIFTY 17400 PE 8 SEP | E87: Buy | F87: 97.5 | G87: 65 | H87: 65 | I87: 140-160 | J87: Loss of Rs.32.5/- | K87: =H87-F87 -> -32.5 | L87: 100.00 | M87: =(K87*N87)-L87 -> -1725.0 | N87: 50 | O87: Unsuccessful | P87: 2022-09-05 | R87: H
A88: 7 | B88: 2022-09-02 | D88: BANKNIFTY 39300 PE 8 SEP | E88: Buy | F88: 375 | G88: 270 | H88: 270 | I88: 500-600 | J88: Loss of Rs.105/- | K88: -105 | L88: 100.00 | M88: -2725.0 | N88: 25 | O88: Unsuccessful | P88: 2022-09-05 | R88: N
A89: 8 | B89: 2022-09-02 | D89: TATACOMM 1320 CE SEP | E89: Sell | F89: 26 | G89: 35 | H89: 35 | I89: 10.0-5 | J89: Loss of Rs.9/- | K89: =F89-H89 -> -9 | L89: 100.00 | M89: -4600.0 | N89: 500 | O89: Unsuccessful | P89: 2022-09-05 | R89: H
A90: 9 | B90: 2022-09-05 | D90: NIFTY 17500 PE 8 SEP | E90: Buy | F90: 77.5 | G90: 45 | H90: 45 | I90: 120-160 | J90: Loss of Rs.32.5/- | K90: =H90-F90 -> -32.5 | L90: 100.00 | M90: =(K90*N90)-L90 -> -1725.0 | N90: 50 | O90: Unsuccessful | P90: 2022-09-06 | R90: H
A91: 10 | B91: 2022-09-08 | D91: BANKNIFTY 39900 PE 8 SEP | E91: Buy | F91: 140 | G91: 30 | H91: 30 | I91: 250-300 | J91: Loss of Rs.110/- | K91: -110 | L91: 100.00 | M91: -2850.0 | N91: 25 | O91: Unsuccessful | P91: 2022-09-08 | R91: N
A92: 11 | B92: 2022-09-08 | D92: BALKRISIND 2050 CE SEP | E92: Buy | F92: 50 | G92: 35 | H92: 59 | I92: 65-80 | J92: Profit of Rs.9/- | K92: 9 | L92: 100.00 | M92: 2600.0 | N92: 300 | O92: Successful | P92: 2022-09-09 | R92: H
A93: 12 | B93: 2022-09-12 | D93: SBIN 580 CE SEP | E93: Buy | F93: 4.70-5.30 | G93: 1.75 | I93: 9-11.0 | J93: Open | R93: H
A94: 13 | B94: 2022-09-12 | D94: AMARAJABAT 555 CE SEP | E94: Buy | F94: 12-13.0 | J94: Open | R94: H
D95: AMARAJABAT 570 CE SEP | E95: Sell | F95: 7.50-8.0
A98: Techno -Funda (positional)
A99: Sr.no | B99: Date | D99: Company | E99: Rec | F99: Rec Price | G99: Stop Loss*** | H99: Call Closed At | I99: Target | J99: Remark | K99: Profit / Loss per Share/Lot | L99: All charges | M99: Net Gain / Loss % | N99: Status | O99: Closed Date | P99: Market Closing Price
A103: CLBS = Closing Basis *** | F103: Reinitiated $
A104: Dividend adjusted <> | F104: Revised stoploss # | H104: .................
B108: Investment Idea
A109: Sr.no | B109: Date | D109: Company | E109: Rec | F109: Rec Price | G109: Point of Review | H109: Close Rate | I109: Target | J109: Remark | K109: Profit / Loss per Share | L109: Gain / Loss % | M109: Status | N109: Closed Date
A110: 1 | B110: 2013-11-01 | D110: L&T Finance Holding | E110: Accu | F110: 82.00 | G110: - | H110: 100 | I110: 100.00 | J110: Target Achieved | K110: =H110-F110 -> 18.00 | L110: =K110/F110 -> 21.95% | M110: Successful | N110: 2016-10-14
A111: 2 | B111: 2014-06-04 | D111: Finolex Inds | E111: Buy | F111: 257.00 | G111: - | H111: 300 | I111: 300.00 | J111: Target Achieved | K111: 43.00 | L111: 16.73% | M111: Successful | N111: 2014-07-02
A112: 3 | B112: 2014-07-08 | D112: JK Cement | E112: Buy | F112: 393.00 | G112: - | H112: 468 | I112: 468.00 | J112: Target Achieved | K112: 75.00 | L112: 19.08% | M112: Successful | N112: 2014-08-12
A113: 4 | B113: 2014-08-06 | D113: Finolex Cables | E113: Buy | F113: 205.00 | G113: - | H113: 275 | I113: 250.00 | J113: Target Achieved | K113: 70.00 | L113: 34.15% | M113: Successful | N113: 2014-11-19
A114: 5 | B114: 2014-09-04 | D114: Exide Inds | E114: Buy | F114: 162.00 | G114: - | H114: 190 | I114: 190.00 | J114: Target Achieved | K114: 28.00 | L114: 17.28% | M114: Successful | N114: 2015-01-02
A115: 6 | B115: 2014-09-04 | D115: Deepak Nitrite | E115: Buy | F115: 75.00 | G115: - | H115: 91.5 | I115: 95-100 | J115: Profit of Rs.16.50/- | K115: 16.50 | L115: 22.00% | M115: Successful | N115: 2014-11-11
A116: 7 | B116: 2014-10-01 | D116: Mercks | E116: Buy | F116: 850.00 | G116: - | H116: 982.5 | I116: 1050.00 | J116: Profit of Rs.132.50/- | K116: 132.50 | L116: 15.59% | M116: Successful | N116: 2015-02-04
A117: 8 | B117: 2014-10-01 | D117: Grindwell Norton | E117: Buy | F117: 475.00 | G117: - | H117: 515 | I117: 600.00 | J117: Profit of Rs.40/- | K117: 40.00 | L117: 8.42% | M117: Successful | N117: 2014-10-27
A118: 9 | B118: 2014-10-01 | D118: Snowman Logistics | E118: Buy | F118: 86.00 | G118: - | H118: 99 | I118: 140.00 | J118: Profit of Rs.13.00/- | K118: 13.00 | L118: 15.12% | M118: Successful | N118: 2014-10-27
A119: 10 | B119: 2014-10-14 | D119: Birla Corp | E119: Buy | F119: 496.60 | G119: - | H119: 621 | I119: 580.00 | J119: Target Achieved | K119: 124.40 | L119: 25.05% | M119: Successful | N119: 2016-08-23
A120: 11 | B120: 2014-10-14 | D120: Ultratech Cem | E120: Buy | F120: 2481.90 | G120: - | H120: 2840 | I120: 2870.00 | J120: Profit of Rs.358.10/- | K120: 358.10 | L120: 14.43% | M120: Successful | N120: 2015-01-13
A121: 12 | B121: 2014-10-16 | D121: Sintex Inds | E121: Buy | F121: 84.50 | G121: - | H121: 93 | I121: 110.00 | J121: Profit of Rs.8.50/- | K121: 8.50 | L121: 10.06% | M121: Successful | N121: 2014-10-27
A122: 13 | B122: 2014-10-16 | D122: HSIL | E122: Buy | F122: 401.00 | G122: - | H122: 428 | I122: 450.00 | J122: Profit of Rs.27.00/- | K122: 27.00 | L122: 6.73% | M122: Successful | N122: 2015-01-16
A123: 14 | B123: 2014-10-16 | D123: Eveready Inds | E123: Buy | F123: 101.00 | G123: - | H123: 112 | I123: 120.00 | J123: Profit of Rs.11.00/- | K123: 11.00 | L123: 10.89% | M123: Successful | N123: 2014-10-27
A124: 15 | B124: 2014-11-11 | D124: Pennar Inds | E124: Buy | F124: 59.00 | G124: - | H124: 76 | I124: 76.00 | J124: Target Achieved | K124: 17.00 | L124: 28.81% | M124: Successful | N124: 2017-10-24
A125: 16 | B125: 2014-11-11 | D125: Snowman Logistics | E125: Buy | F125: 99.00 | G125: - | H125: 120 | I125: 120.00 | J125: Profit of Rs.21/- | K125: 21.00 | L125: 21.21% | M125: Successful | N125: 2014-11-17
A126: 17 | B126: 2014-11-13 | D126: Dharamsi Morarji Chem | E126: Buy | F126: 22.00 | G126: - | H126: 33.55 | I126: 32.00 | J126: Profit of Rs 11.55/- | K126: 11.55 | L126: 52.50% | M126: Successful | N126: 2015-07-03
A127: 18 | B127: 2014-12-03 | D127: Tatachem | E127: Buy | F127: 440.00 | G127: - | H127: 520 | I127: 520.00 | J127: Profit of Rs 80.00/- | K127: 80.00 | L127: 18.18% | M127: Successful | N127: 2015-07-23
A128: 19 | B128: 2014-12-03 | D128: Advanta | E128: Buy | F128: 360.00 | G128: - | H128: 427 | I128: 425.00 | J128: Profit of Rs.67.00/- | K128: 67.00 | L128: 18.61% | M128: Successful | N128: 2015-02-23
A129: 20 | B129: 2015-01-08 | D129: GDL | E129: Buy | F129: 360.00 | G129: - | H129: 455 | I129: 420.00 | J129: Profit of Rs.95.00/- | K129: 95.00 | L129: 26.39% | M129: Successful | N129: 2015-01-20
A130: 21 | B130: 2015-01-08 | D130: NRB Bearing | E130: Buy | F130: 130.00 | H130: 175.5 | I130: 165.00 | J130: Profit of Rs 45.50/- | K130: 45.50 | L130: 35.00% | M130: Successful | N130: 2017-12-19
A131: 22 | B131: 2015-02-05 | D131: GSFC | E131: Accu | F131: 98.00 | H131: 120 | I131: 120.00 | J131: Target Achieved | K131: 22.00 | L131: 22.45% | M131: Successful | N131: 2017-01-18
A132: 23 | B132: 2015-02-05 | D132: Sundrmfast | E132: Accu | F132: 196.00 | H132: 262 | I132: 255.00 | J132: Target Achieved | K132: 66.00 | L132: 33.67% | M132: Successful | N132: 2016-08-17
A133: 24 | B133: 2015-03-04 | D133: GPPL | E133: Accu | F133: 235 | H133: 77.00 | I133: 280-285 | J133: Loss of Rs.158/- | K133: -158.00 | L133: -67.23% | M133: Unsuccessful | N133: 2019-02-26
A134: 25 | B134: 2015-03-04 | D134: ORIENTCEM | E134: Accu | F134: 185.00 | H134: 224 | I134: 220-225 | J134: Target Achieved | K134: 39.00 | L134: 21.08% | M134: Successful | N134: 2016-10-04
A135: 26 | B135: 2015-03-27 | D135: PFS | E135: Accu | F135: 49.5 | H135: 15.85 | I135: 67.00 | J135: Loss of Rs.33.65/- | K135: -33.65 | L135: -68% | M135: Unsuccessful | N135: 2019-06-11
A136: 27 | B136: 2015-03-30 | D136: Walchandnagar Ind Ltd | E136: Accu | F136: 183.50 | H136: 219 | I136: 218.00 | J136: Profit of Rs.35.50/- | K136: 35.50 | L136: 19.35% | M136: Successful | N136: 2015-04-09
A137: 28 | B137: 2015-04-20 | D137: Kalpataru Power Transmission Ltd | E137: Accu | F137: =(227+237)/2 -> 232.00 | H137: 298 | I137: 298.00 | J137: Target Achieved | K137: 66.00 | L137: 28.45% | M137: Successful | N137: 2017-03-29
A138: 29 | B138: 2015-05-04 | D138: Mastek Ltd | E138: Buy | F138: 385.00 | H138: =212.5+331 -> 543.5 | I138: 510.00 | J138: Profit of Rs 158.50/- | K138: 158.50 | L138: 41.17% | M138: Successful | N138: 2015-08-19
A139: 30 | B139: 2015-05-04 | D139: Suprajit Eng | E139: Buy | F139: 115.50 | H139: 146 | I139: 142.00 | J139: Profit of Rs 30.50/- | K139: 30.50 | L139: 26.41% | M139: Successful | N139: 2015-07-17
A140: 31 | B140: 2015-05-27 | D140: TCI | E140: Buy | F140: 237.50 | H140: 279.5 | I140: 278.00 | J140: Target Achieved | K140: 42.00 | L140: 17.68% | M140: Successful | N140: 2015-08-06
A141: 32 | B141: 2015-06-19 | D141: HSIL | E141: Accu | F141: 340.00 | H141: 448 | I141: 448.00 | J141: Target Achieved | K141: 108.00 | L141: 31.76% | M141: Successful | N141: 2017-10-10
A142: 33 | B142: 2015-07-06 | D142: Capital First | E142: Accu | F142: 390.00 | H142: 460 | I142: 460.00 | J142: Target Achieved | K142: 70.00 | L142: 17.95% | M142: Successful | N142: 2016-04-18
A143: 34 | B143: 2015-07-10 | D143: Dolphin OffShore | E143: Accu | F143: 122.5 | H143: 61.00 | I143: 172.00 | J143: Loss of Rs.61.50/- | K143: -61.50 | L143: -50.20% | M143: Unsuccessful | N143: 2018-08-21
A144: 35 | B144: 2015-08-03 | D144: Allcargo logistics | E144: Accu | F144: 297.50 | H144: 350 | I144: 360.00 | J144: Profit of Rs 52.50/- | K144: 52.50 | L144: 17.65% | M144: Successful | N144: 2015-08-16
A145: 36 | B145: 2015-08-03 | D145: Camline Fine | E145: Accu | F145: 115.50 | H145: 149 | I145: 140.00 | J145: Profit of Rs 33.50/- | K145: 33.50 | L145: 29.00% | M145: Successful | N145: 2017-01-05
A146: 37 | B146: 2015-09-04 | D146: TCI | E146: Accu | F146: 226.00 | H146: 292 | I146: 292.00 | J146: Target Achieved | K146: 66.00 | L146: 29.20% | M146: Successful | N146: 2015-10-09
A147: 38 | B147: 2015-09-07 | D147: Kalpataru Power Transmission Ltd | E147: Accu | F147: 232.50 | H147: 312.5 | I147: 310.00 | J147: Target Achieved | K147: 80.00 | L147: 34.41% | M147: Successful | N147: 2017-03-29
A148: 39 | B148: 2015-09-21 | D148: LLOYD ELECTRIC & ENG LTD | E148: Accu | F148: 196.50 | H148: 238 | I148: 238.00 | J148: Target Achieved | K148: 41.50 | L148: 21.12% | M148: Successful | N148: 2015-10-14
A149: 40 | B149: 2015-09-24 | D149: L&T Finance Holding | E149: Accu | F149: 65.00 | H149: 82 | I149: 82.00 | J149: Target Achieved | K149: 17.00 | L149: 26.15% | M149: Successful | N149: 2016-07-27
A150: 41 | B150: 2015-10-14 | D150: KEC International ltd | E150: Accu | F150: 144.00 | H150: 182.5 | I150: 181.00 | J150: Target Achieved | K150: 38.50 | L150: 26.74% | M150: Successful | N150: 2017-03-23
A151: 42 | B151: 2015-10-14 | D151: Gruh Finance | E151: Accu | F151: 264.00 | H151: 311 | I151: 311.00 | J151: Target Achieved | K151: 47.00 | L151: 17.80% | M151: Successful | N151: 2016-08-22
A152: 43 | B152: 2015-11-10 | D152: Pidilitind | E152: Buy | F152: 549.50 | H152: 630 | I152: 630.00 | J152: Target Achieved | K152: 80.50 | L152: 14.65% | M152: Successful | N152: 2016-02-19
A153: 44 | B153: 2015-12-04 | D153: Zensar Technology | E153: Accu | F153: 1027.50 | H153: 1315 | I153: 1250.00 | J153: Target Achieved | K153: 287.50 | L153: 27.98% | M153: Successful | N153: 2018-05-24
A154: 45 | B154: 2015-12-29 | D154: Vinati Organics Ltd | E154: Accu | F154: 465.00 | H154: 540 | I154: 540.00 | J154: Target Achieved | K154: 75.00 | L154: 16.13% | M154: Successful | N154: 2016-06-09
A155: 46 | B155: 2016-01-11 | D155: GSFC | E155: Buy | F155: 81.00 | H155: 110 | I155: 110.00 | J155: Target Achieved | K155: 29.00 | L155: 35.80% | M155: Successful | N155: 2017-01-10
A156: 47 | B156: 2016-01-13 | D156: SSWL | E156: Buy | F156: 417.50 | H156: 547 | I156: 535.00 | J156: Target Achieved | K156: 129.50 | L156: 31.02% | M156: Successful | N156: 2016-07-27
A157: 48 | B157: 2016-02-08 | D157: Persistent System Ltd | E157: Accu | F157: 650.00 | H157: 800 | I157: 800.00 | J157: Target Achieved | K157: 150.00 | L157: 23.08% | M157: Successful | N157: 2018-02-23
A158: 49 | B158: 2016-03-04 | D158: UPL | E158: Accu | F158: 437.50 | H158: 504.5 | I158: 522.00 | J158: Profit of Rs.67/- | K158: 67.00 | L158: 15.31% | M158: Successful | N158: 2016-04-20
A159: 50 | B159: 2016-03-09 | D159: Ashoka Buildcon Ltd | E159: Accu | F159: 189.50 | H159: 218 | I159: 218.00 | J159: Target Achieved | K159: 28.50 | L159: 15.04% | M159: Successful | N159: 2017-10-26
A160: 51 | B160: 2016-04-11 | D160: PTC INDIA FIN SERV LTD | E160: Accu | F160: 36.5 | H160: 15.85 | I160: 60.00 | J160: Loss of Rs.20.65/- | K160: -20.65 | L160: -56.58% | M160: Unsuccessful | N160: 2019-06-11
A161: 52 | B161: 2016-04-12 | D161: CAMLINFINE $ | E161: Accu | F161: 93.00 | H161: 149 | I161: 140.00 | J161: Profit of Rs 56/- | K161: 56.00 | L161: 60.22% | M161: Successful | N161: 2017-01-05
A162: 53 | B162: 2016-04-12 | D162: Greaves Cotton Ltd. | E162: Accu | F162: 130.00 | H162: 150 | I162: 150-155 | J162: Target Achieved | K162: 20.00 | L162: 15.38% | M162: Successful | N162: 2016-07-13
A163: 54 | B163: 2016-04-13 | D163: DHFL | E163: Accu | F163: 196.00 | H163: 299 | I163: 299.00 | J163: Target Achieved | K163: 103.00 | L163: 52.55% | M163: Successful | N163: 2016-09-07
A164: 55 | B164: 2016-04-13 | D164: Magma | E164: Accu | F164: 88.00 | H164: 103 | I164: 103.00 | J164: Target Achieved | K164: 15.00 | L164: 17.05% | M164: Successful | N164: 2016-06-09
A165: 56 | B165: 2016-05-02 | D165: KEC International ltd $ | E165: Accu | F165: 127.50 | H165: 148 | I165: 148-150 | J165: Target Achieved | K165: =H165-F165 -> 20.50 | L165: =K165/F165 -> 16.08% | M165: Successful | N165: 2016-07-13
A166: 57 | B166: 2016-05-03 | D166: Mindtree | E166: Accu | F166: 675.00 | H166: 815 | I166: 790-800 | J166: Target Achieved | K166: =H166-F166 -> 140.00 | L166: =K166/F166 -> 20.74% | M166: Successful | N166: 2018-02-23
A167: 58 | B167: 2016-06-01 | D167: Atulauto | E167: Accu | F167: 500 | H167: 232.50 | I167: 565-570 | J167: Loss of Rs.267.50 /- | K167: =H167-F167 -> -267.50 | L167: =K167/F167 -> -53.50% | M167: Unsuccessful | N167: 2019-09-27
A168: 59 | B168: 2016-06-06 | D168: TRITURBINE | E168: Accu | F168: 110.00 | H168: 126.5 | I168: 125.00 | J168: Profit of Rs.16.50/- | K168: =H168-F168 -> 16.50 | L168: =K168/F168 -> 15.00% | M168: Successful | N168: 2016-07-01
A169: 60 | B169: 2016-06-17 | D169: Pennar Industries Ltd | E169: Accu | F169: 44.00 | H169: 69.5 | I169: 69.50 | J169: Profit of Rs.25.50/- | K169: =H169-F169 -> 25.50 | L169: =K169/F169 -> 57.95% | M169: Successful | N169: 2017-08-30
A170: 61 | B170: 2016-06-28 | D170: EVEREADY | E170: Accu | F170: 262.50 | H170: 340 | I170: 333.00 | J170: Profit of Rs.77.50/- | K170: 77.50 | L170: 29.52% | M170: Successful | N170: 2017-10-09
A171: 62 | B171: 2016-06-28 | D171: FIEMIND | E171: Accu | F171: 840.00 | H171: 1230 | I171: 1230.00 | J171: Target Achieved | K171: 390.00 | L171: 46.43% | M171: Successful | N171: 2016-10-06
A172: 63 | B172: 2016-07-05 | D172: Bajaj Corp Ltd | E172: Accu | F172: 395 | H172: =(468.5+342.5)/2 -> 405.50 | I172: 510.00 | J172: Profit of Rs.10.50/- | K172: =H172-F172 -> 10.50 | L172: =K172/F172 -> 3% | M172: Neutral | N172: 2019-05-21
A173: 64 | B173: 2016-08-02 | D173: GPPL $ | E173: Buy | F173: =169.5-12.8 -> 156.7 | H173: 77.00 | I173: 198-200 | J173: Loss of Rs.79.7/- | K173: -79.70 | L173: -50.86% | M173: Unsuccessful | N173: 2019-02-26
A174: 65 | B174: 2016-08-04 | D174: WONDERLA HOLIDAYS LTD | E174: Accu | F174: 400 | H174: 305.00 | I174: 475.00 | J174: Loss of Rs.95/- | K174: -95.00 | L174: -23.75% | M174: Unsuccessful | N174: 2019-05-21
A175: 66 | B175: 2016-08-11 | D175: CAMLINFINE | E175: Accu | F175: 86.50 | H175: 130 | I175: 130.00 | J175: Profit of Rs.43.50/- | K175: 43.50 | L175: 50.29% | M175: Successful | N175: 2017-12-22
A176: 67 | B176: 2016-08-18 | D176: GRANULES | E176: Accu | F176: 133.5 | H176: 126.50 | I176: 178.00 | J176: Exit | K176: -7.00 | L176: -5.24% | M176: Unsuccessful | N176: 2016-09-02
A177: 68 | B177: 2016-08-31 | D177: VA TECH WABAG | E177: Accu | F177: 560.00 | H177: 725 | I177: 725.00 | J177: Target Achieved | K177: 165.00 | L177: 29.46% | M177: Successful | N177: 2016-03-27
A178: 69 | B178: 2016-09-01 | D178: SKIPPER LIMITED | E178: Accu | F178: 160.50 | H178: 210 | I178: 210.00 | J178: Target Achieved | K178: 49.50 | L178: 30.84% | M178: Successful | N178: 2017-05-16
A179: 70 | B179: 2016-10-03 | D179: IFBIND | E179: Accu | F179: 430.00 | H179: 596 | I179: 575.00 | J179: Profit of Rs.166/- | K179: 166.00 | L179: 38.60% | M179: Successful | N179: 2017-02-03
A180: 71 | B180: 2016-10-14 | D180: ASIANTILES | E180: Accu | F180: 280.00 | H180: 345 | I180: 345.00 | J180: Target Achieved | K180: =H180-F180 -> 65.00 | L180: =K180/F180 -> 23.21% | M180: Successful | N180: 2017-03-20
A181: 72 | B181: 2016-10-14 | D181: DEEPIND | E181: Accu | F181: 245.00 | H181: 325.5 | I181: 330.00 | J181: Profit of Rs.80.5/- | K181: 80.50 | L181: =K181/F181 -> 32.86% | M181: Successful | N181: 2017-02-03
A182: 73 | B182: 2016-10-17 | D182: DCBBANK | E182: Accu | F182: 125.00 | H182: 160 | I182: 160.00 | J182: Target Achieved | K182: 35.00 | L182: 28.00% | M182: Successful | N182: 2017-03-09
A183: 74 | B183: 2016-10-17 | D183: ORIENTREF | E183: Accu | F183: 114.00 | H183: 145 | I183: 145.00 | J183: Target Achieved | K183: 31.00 | L183: =K183/F183 -> 27.19% | M183: Successful | N183: 2017-05-04
A184: 75 | B184: 2016-10-17 | D184: GANECOS | E184: Accu | F184: 212.00 | H184: 280 | I184: 276.00 | J184: Profit of Rs.68/- | K184: 68.00 | L184: =K184/F184 -> 32.08% | M184: Successful | N184: 2017-05-03
A185: 76 | B185: 2016-11-04 | D185: NBCC | E185: Accu | F185: 155.00 | H185: 210 | I185: 210.00 | J185: Profit of Rs.55/- | K185: 55.00 | L185: =K185/F185 -> 35.48% | M185: Successful | N185: 2017-07-28
A186: 77 | B186: 2016-12-06 | D186: PRECAM | E186: Accu | F186: 150.5 | H186: 72.50 | I186: 174.00 | J186: Loss of Rs.78/- | K186: -78.00 | L186: -51.83% | M186: Unsuccessful | N186: 2018-08-21
A187: 78 | B187: 2016-12-08 | D187: INFRATEL | E187: Accu | F187: 380.00 | H187: 478 | I187: 468.00 | J187: Target Achieved | K187: =H187-F187 -> 98.00 | L187: =K187/F187 -> 25.79% | M187: Successful | N187: 2017-10-17
A188: 79 | B188: 2016-12-30 | D188: GODREJPROP | E188: Accu | F188: 305.00 | H188: 375 | I188: 375.00 | J188: Target Achieved | K188: =H188-F188 -> 70.00 | L188: =K188/F188 -> 22.95% | M188: Successful | N188: 2017-02-02
A189: 80 | B189: 2017-01-04 | D189: DEEPAKNTR | E189: Accu | F189: 99.50 | H189: 158 | I189: 158.00 | J189: Target Achieved | K189: =H189-F189 -> 58.50 | L189: =K189/F189 -> 58.79% | M189: Successful | N189: 2017-06-12
A190: 81 | B190: 2017-01-04 | D190: DEEPAKNTR | E190: Accu | F190: 99.50 | H190: 158 | I190: 158.00 | J190: Target Achieved | K190: 58.50 | L190: 58.79% | M190: Successful | N190: 2017-06-12
A191: 82 | B191: 2017-02-20 | D191: RECLTD | E191: Accu | F191: 140.50 | H191: 220 | I191: 220.00 | J191: Target Achieved | K191: =H191-F191 -> 79.50 | L191: =K191/F191 -> 56.58% | M191: Successful | N191: 2017-05-09
A192: 83 | B192: 2017-02-20 | D192: SUBROS | E192: Accu | F192: 202.50 | H192: 234 | I192: 234.00 | J192: Target Achieved | K192: 31.50 | L192: 15.56% | M192: Successful | N192: 2017-04-11
A193: 84 | B193: 2017-03-24 | D193: VRLLOG | E193: Accu | F193: 300.50 | H193: 417.5 | I193: 420.00 | J193: Profit of Rs.117/- | K193: =H193-F193 -> 117.00 | L193: =K193/F193 -> 38.94% | M193: Successful | N193: 2017-12-01
A194: 85 | B194: 2017-03-24 | D194: FIEMIND | E194: Accu | F194: 850.00 | H194: 1042.5 | I194: 1023.00 | J194: Profit of Rs 192.50/- | K194: 192.50 | L194: 22.65% | M194: Successful | N194: 2017-04-05
A195: 86 | B195: 2017-04-05 | D195: RATNAMANI | E195: Accu | F195: 785.00 | H195: 930 | I195: 920.00 | J195: Profit of Rs.145/- | K195: =H195-F195 -> 145.00 | L195: =K195/F195 -> 18.47% | M195: Successful | N195: 2017-08-29
A196: 87 | B196: 2017-04-06 | D196: ZEEMEDIA | E196: Accu | F196: 40 | H196: 13.10 | I196: 60.00 | J196: Loss of Rs.26.9/- | K196: -26.90 | L196: -67.25% | M196: Unsuccessful | N196: 2018-02-07
A197: 88 | B197: 2017-04-12 | D197: DABUR | E197: Accu | F197: 289.50 | H197: 354 | I197: 360.00 | J197: Profit of Rs.64.5/- | K197: =H197-F197 -> 64.50 | L197: =K197/F197 -> 22.28% | M197: Successful | N197: 2017-11-01
A198: 89 | B198: 2017-04-20 | D198: KPRMILL | E198: Accu | F198: 700.00 | H198: 840 | I198: 840.00 | J198: Profit of Rs.140/- | K198: 140.00 | L198: 20.00% | M198: Successful | N198: 2017-06-07
A199: 90 | B199: 2017-06-01 | D199: ESSELPACK | E199: Accu | F199: 130.00 | H199: 144.25 | I199: 170.00 | J199: Profit of Rs.14.25/- | K199: 14.25 | L199: 10.96% | M199: Successful | N199: 2019-07-29
A200: 91 | B200: 2017-06-15 | D200: KEI | E200: Accu | F200: 214.50 | H200: 262 | I200: 262.00 | J200: Profit of Rs.47.5/- | K200: 47.50 | L200: 22.14% | M200: Successful | N200: 2017-08-30
A201: 92 | B201: 2017-07-17 | D201: MAYURUNIQ | E201: Accu | F201: 370.00 | H201: 447.5 | I201: 450.00 | J201: Target Achieved | K201: 77.50 | L201: 20.95% | M201: Successful | N201: 2017-10-27
A202: 93 | B202: 2017-07-27 | D202: RAMCOCEM | E202: Accu | F202: 657.50 | H202: 825 | I202: 820.00 | J202: Target Achieved | K202: 167.50 | L202: 25.48% | M202: Successful | N202: 2017-12-21
A203: 94 | B203: 2017-08-17 | D203: FINPIPE | E203: Accu | F203: 605.00 | H203: 750 | I203: 750.00 | J203: Profit of Rs.145/- | K203: 145.00 | L203: 23.97% | M203: Successful | N203: 2017-10-19
A204: 95 | B204: 2017-09-01 | D204: SHK | E204: Accu | F204: 255 | H204: 217.25 | I204: 320.00 | J204: Loss of Rs.37.75/- | K204: -37.75 | L204: -15% | M204: Unsuccessful | N204: 2019-07-15
A205: 96 | B205: 2017-09-19 | D205: SKIPPER | E205: Accu | F205: 215.00 | H205: 258 | I205: 258.00 | J205: Target Achieved | K205: 43.00 | L205: 20.00% | M205: Successful | N205: 2017-11-01
A206: 97 | B206: 2017-09-19 | D206: SKIPPER | E206: Accu | F206: 215.00 | H206: 258 | I206: 258.00 | J206: Target Achieved | K206: 43.00 | L206: 20.00% | M206: Successful | N206: 2017-11-01
A207: 98 | B207: 2017-09-20 | D207: CAMLINFINE$ | E207: Accu | F207: 75.00 | H207: 90 | I207: 90.00 | J207: Profit of Rs.15.00/- | K207: =H207-F207 -> 15.00 | L207: =K207/F207 -> 20.00% | M207: Successful | N207: 2017-10-11
A208: 99 | B208: 2017-10-03 | D208: GNA | E208: Accu | F208: 315.00 | H208: 392 | I208: 384.00 | J208: Profit of Rs.77/- | K208: 77.00 | L208: 24.44% | M208: Successful | N208: 2017-10-09
A209: 100 | B209: 2017-10-05 | D209: NOCIL | E209: Accu | F209: 145.00 | H209: 179 | I209: 180.00 | J209: Profit of Rs.34/- | K209: 34.00 | L209: 23.45% | M209: Successful | N209: 2017-10-17
A210: 101 | B210: 2017-10-06 | D210: CENTURYPLY | E210: Accu | F210: 256.00 | H210: 323 | I210: 320.00 | J210: Target Achieved | K210: 67.00 | L210: 26.17% | M210: Successful | N210: 2017-11-28
A211: 102 | B211: 2017-10-09 | D211: EIHOTEL | E211: Accu | F211: 137.50 | H211: 184 | I211: 183.00 | J211: Profit of Rs.46.5/- | K211: 46.50 | L211: 33.82% | M211: Successful | N211: 2018-01-08
A212: 103 | B212: 2017-10-10 | D212: NRBBEARING | E212: Accu | F212: 125.50 | H212: 158 | I212: 155.00 | J212: Profit of Rs.32.5/- | K212: 32.50 | L212: 25.90% | M212: Successful | N212: 2017-11-28
A213: 104 | B213: 2017-10-10 | D213: BOROSIL | E213: Accu | F213: 895.00 | H213: 1122.5 | I213: 1078.00 | J213: Profit of Rs.227.5/- | K213: 227.50 | L213: 25.42% | M213: Successful | N213: 2018-01-17
A214: 105 | B214: 2017-10-12 | D214: CYIENT | E214: Accu | F214: 525.00 | H214: 629 | I214: 629.00 | J214: Target Achieved | K214: 104.00 | L214: 19.81% | M214: Successful | N214: 2018-01-19
A215: 106 | B215: 2017-11-07 | D215: HATSUN | E215: Accu | F215: 740.00 | H215: 892.5 | I215: 900.00 | J215: Profit of Rs.152.5/- | K215: =H215-F215 -> 152.50 | L215: =K215/F215 -> 20.61% | M215: Successful | N215: 2017-11-13
A216: 107 | B216: 2017-12-04 | D216: SANGHIIND | E216: Accu | F216: 118.50 | H216: 143.5 | I216: 145.00 | J216: Profit of Rs.25/- | K216: =H216-F216 -> 25.00 | L216: =K216/F216 -> 21.10% | M216: Successful | N216: 2017-12-28
A217: 108 | B217: 2017-12-21 | D217: KAJARIACER | E217: Accu | F217: 715 | H217: 500.00 | I217: 872.00 | J217: Loss of Rs.215/- | K217: =H217-F217 -> -215.00 | L217: =K217/F217 -> -30.07% | M217: Unsuccessful | N217: 2019-07-24
A218: 109 | B218: 2017-12-29 | D218: GNA | E218: Accu | F218: 435.00 | H218: 542.5 | I218: 539.00 | J218: Target Achieved | K218: 107.50 | L218: 24.71% | M218: Successful | N218: 2018-04-16
A219: 110 | B219: 2017-12-29 | D219: ZENSARTECH | E219: Accu | F219: 885.00 | H219: 1090 | I219: 1084.00 | J219: Target Achieved | K219: 205.00 | L219: 23.16% | M219: Successful | N219: 2018-04-23
A220: 111 | B220: 2018-04-02 | D220: EVERESTIND | E220: Accu | F220: 478.50 | H220: 442 | I220: 613.00 | J220: Loss of Rs.36.50 /- | K220: =H220-F220 -> -36.50 | L220: =K220/F220 -> -7.63% | M220: Unsuccessful | N220: 2019-10-24
A221: 112 | B221: 2018-04-04 | D221: GPPL$ | E221: Accu | F221: =141.5-7.3 -> 134.2 | H221: 77.00 | I221: 180.00 | J221: Loss of Rs.57.2/- | K221: =H221-F221 -> -57.20 | L221: =K221/F221 -> -42.62% | M221: Unsuccessful | N221: 2019-02-26
A222: 113 | B222: 2018-04-19 | D222: MANPASAND | E222: Accu | F222: 430 | H222: 220.00 | I222: 537.00 | J222: Loss of Rs.210/- | K222: =H222-F222 -> -210.00 | L222: =K222/F222 -> -48.84% | M222: Unsuccessful | N222: 2018-06-01
A223: 114 | B223: 2018-04-30 | D223: HEIDELBERG | E223: Accu | F223: 153.5 | H223: 196 | I223: 196.00 | J223: Profit of Rs.42.50/- | K223: =H223-F223 -> 42.50 | L223: =K223/F223 -> 27.69% | M223: Successful | N223: 2019-05-20
A224: 115 | B224: 2018-07-25 | D224: ZEEMEDIA | E224: Accu | F224: 27.5 | H224: 13.10 | I224: 60.00 | J224: Loss of Rs.14.40/- | K224: -14.40 | L224: -52.36% | M224: Unsuccessful | N224: 2018-02-07
A225: 116 | B225: 2018-08-06 | D225: GABRIEL | E225: Accu | F225: 148.5 | H225: 102 | I225: 182.00 | J225: Loss of Rs.46.50/- | K225: =H225-F225 -> -46.50 | L225: =K225/F225 -> -31.31% | M225: Unsuccessful | N225: 2019-07-15
A226: 117 | B226: 2018-08-23 | D226: INDIANHUME | E226: Accu | F226: 285 | H226: 355 | I226: 364.00 | J226: Profit of Rs.70/- | K226: 70.00 | L226: 24.56% | M226: Successful | N226: 2018-12-21
... 62 more rows
